{"text_format":"1","workbook":"xlsx","n_sheets":27,"sheets":["Vejledning til brug af ark","Kodefinder","Adm.ark specialer","Delkursusleder 1","(Evt. delkursusleder 2)","Honorarlønnet 1","Honorarlønnet 2","Honorarlønnet 3","Honorarlønnet 4","Honorarlønnet 5","Honorarlønnet 6","Honorarlønnet 7","Honorarlønnet 8","Honorarlønnet 9","Honorarlønnet 10","Honorarlønnet 11","Honorarlønnet 12","Honorarlønnet 13","Honorarlønnet 14","Honorarlønnet 15","Sekretær","Samlingsark","Hovedkursusleder","SST, økonomi","Lønadm.","Lønadm_backup","Adm.ark satser"],"not_rendered":{"charts":0,"images":1,"macros":1,"external_links":0,"defined_names":48,"comments":1,"pivot_tables":0},"unopened":[],"bounds":{"document_bytes":16777216,"sheet_cells":100000,"rows_first":2000,"rows_last":500,"rows_between":2000,"halvings":0,"cell_chars":16384,"cell_head_chars":4096},"cells_cut":0,"cells_raw":0,"read":"whole","date_system":"1900"}

{"sheet":"Vejledning til brug af ark","index":0,"n_rows":13,"n_cols":24,"rows_kept":13,"cut":false,"hidden":false,"merged":[[6,15,6,23],[11,20,11,21],[12,20,12,21]]}
["Sådan udfyldes arket:",null,null,null,null,null,null,null,null,null,null,null,null,null,null,"Spørgsmål og svar",null,null,null,null,null,null,null,"vers. 33"]
[null,null,null,null,null,null,null,null,null,null,null,null,null,null,null,null,null,null,null,null,null,null,null,"2024-07-11"]
[null,null,null,null,null,null,null,null,null,null,null,null,null,null,null,"Mere end 15 undervisere? Udfyld 2 selvstændige dokumenter med bemærkning"]
[null,null,null,null,null,null,null,null,null,null,null,null,null,null,null,"Mere end 2 delkursusleder eller mere end 1 sekretær? Udfyld 2 selvstændige dokumenter med bemærkning"]
[null,null,null,null,null,null,null,null,null,null,null,null,null,null,null,"Skal alle faneblade udfyldes? Nej, kun de grønne faneblade må udfyldes."]
[null,null,null,null,null,null,null,null,null,null,null,null,null,null,null,"Hvilket format skal excelarket sendes i? Arket skal sendes som vedhæftet excel-fil, må IKKE konverteres til pdf"]
[null,null,null,null,null,null,null,null,null,null,null,null,null,null,null,"Probemer med filstørrelse? Hvis den endelige fil er for stor til Outlook (20 mb) anbefales du at dele filen med din institutions fildelingssystem eller at ZIP-komprimere filen."]
[]
[null,null,null,null,null,null,null,null,null,null,null,null,null,null,null,"Telefonliste"]
[null,null,null,null,null,null,null,null,null,null,null,null,null,null,null,"Hvis du oplever problemer med at benytte arket er du velkommen til at kontakte"]
[]
[null,null,null,null,null,null,null,null,null,null,null,null,null,null,null,"Pernille Birger Jensen, Sundhedsstyrelsen",null,null,null,"mail:","specialespecifikke@sst.dk",null,"tlf:","20 34 40 19"]
[null,null,null,null,null,null,null,null,null,null,null,null,null,null,null,"Koncern LØN",null,null,null,"mail:","koncernloen@sst.dk"]

{"sheet":"Kodefinder","index":1,"n_rows":633,"n_cols":16,"rows_kept":633,"cut":false,"hidden":true,"merged":[]}
["Nummer","Speciale","Speciale_","Kursus-nummer","Kursusnavn"]
[100,"Almen Medicin, Kbh",{"$f":"INDEX(P:P,MATCH(B2,O:O,0))","v":"Almen_Medicin_Kbh"},24101,"ØST25 modul 13"]
[100,"Almen Medicin, Kbh","Almen_Medicin_Kbh",24102,"ØST25 modul 14",null,null,null,null,null,null,null,null,null,"Almen Medicin, Kbh","Almen_Medicin_Kbh"]
[100,"Almen Medicin, Kbh","Almen_Medicin_Kbh",24103,"ØST25 modul 15",null,"Almen Medicin, Kbh",null,null,null,"karkirurgi",null,null,null,"Almen Medicin, Odense","Almen_Medicin_Odense"]
[100,"Almen Medicin, Kbh","Almen_Medicin_Kbh",24104,"ØST25 modul 16",null,"ØST23 modul 13",null,null,null,"basalt ultralydskursus",null,null,null,"Almen Medicin, Århus","Almen_Medicin_Aarhus"]
[100,"Almen Medicin, Kbh","Almen_Medicin_Kbh",24105,"ØST26 modul 11",null,null,null,null,null,null,null,null,null,"Anæstesiologi","Anæstesiologi"]
[100,"Almen Medicin, Kbh","Almen_Medicin_Kbh",24106,"ØST26 modul 12",null,null,null,null,null,"Almen Medicin, Odense",null,null,null,"Arbejdsmedicin","Arbejdsmedicin"]
[100,"Almen Medicin, Kbh","Almen_Medicin_Kbh",24107,"ØST26 modul 13",null,null,null,null,null,"SYD 2021-2",null,null,null,"Børne- og ungdomspsykiatri","Børne_og_ungdomspsykiatri"]
[100,"Almen Medicin, Kbh","Almen_Medicin_Kbh",24108,"ØST26 modul 14",null,null,null,null,null,null,null,null,null,"Dermato-venerologi","Dermato_venerologi"]
[100,"Almen Medicin, Kbh","Almen_Medicin_Kbh",24109,"ØST26 modul 15",null,{"$f":"INDEX(D:D,MATCH(G5,E:E,0))","v":{"$error":"#N/A"}},null,null,null,null,null,null,null,"Diagnostisk radiologi","Diagnostisk_radiologi"]
[100,"Almen Medicin, Kbh","Almen_Medicin_Kbh",24110,"ØST26 modul 16",null,{"$f":"IFERROR(INDEX(D:D,MATCH(K5,E:E,0)),\"Der findes flere kurser med samme navn. Du skal manuelt vælge kursusnummer\")","v":"Der findes flere kurser med samme navn. Du skal manuelt vælge kursusnummer"},null,null,null,null,null,null,null,"Gynækologi og obstetrik","Gynækologi_og_obstetrik"]
[100,"Almen Medicin, Kbh","Almen_Medicin_Kbh",24111,"ØST26X modul 11",null,null,null,null,null,null,null,null,null,"IM: Endokrinologi","IM_Endokrinologi"]
[100,"Almen Medicin, Kbh","Almen_Medicin_Kbh",24112,"ØST26X modul 12",null,{"$f":"INDEX(D:D,MATCH(1,(G4=B:B)*(G5=E:E),0))","v":{"$error":"#N/A"}},null,null,null,null,null,null,null,"IM: Fælleskurser","IM_Fælleskurser"]
[100,"Almen Medicin, Kbh","Almen_Medicin_Kbh",24113,"ØST26X modul 13",null,{"$f":"INDEX(D:D,MATCH(1,(K7=B:B)*(K8=E:E),0))","v":{"$error":"#N/A"}},null,null,null,null,null,null,null,"IM: Gastroenterologi og Hepatologi","IM_Gastroenterologi_og_Hepatologi"]
[100,"Almen Medicin, Kbh","Almen_Medicin_Kbh",24114,"ØST26X modul 14",null,null,null,null,null,null,null,null,null,"IM: Geriatri","IM_Geriatri"]
[100,"Almen Medicin, Kbh","Almen_Medicin_Kbh",24115,"ØST26X modul 15",null,null,null,null,null,null,null,null,null,"IM: Hæmatologi","IM_Hæmatologi"]
[100,"Almen Medicin, Kbh","Almen_Medicin_Kbh",24116,"ØST26X modul 16",null,null,null,null,null,null,null,null,null,"IM: Infektionsmedicin","IM_Infektionsmedicin"]
[100,"Almen Medicin, Kbh","Almen_Medicin_Kbh",24117,"ØST27 modul 10",null,null,null,null,null,null,null,null,null,"IM: Kardiologi","IM_Kardiologi"]
[100,"Almen Medicin, Kbh","Almen_Medicin_Kbh",24118,"ØST27 modul 11",null,null,null,null,null,null,null,null,null,"IM: Lungesygdomme","IM_Lungesygdomme"]
[100,"Almen Medicin, Kbh","Almen_Medicin_Kbh",24119,"ØST27 modul 12",null,null,null,null,null,null,null,null,null,"IM: Nefrologi","IM_Nefrologi"]
[100,"Almen Medicin, Kbh","Almen_Medicin_Kbh",24120,"ØST27 modul 13",null,null,null,null,null,null,null,null,null,"IM: Reumatologi","IM_Reumatologi"]
[100,"Almen Medicin, Kbh","Almen_Medicin_Kbh",24121,"ØST27 modul 14",null,null,null,null,null,null,null,null,null,"Karkirurgi","Karkirurgi"]
[100,"Almen Medicin, Kbh","Almen_Medicin_Kbh",24124,"ØST28 modul 10",null,null,null,null,null,null,null,null,null,"Kirurgi","Kirurgi"]
[100,"Almen Medicin, Kbh","Almen_Medicin_Kbh",24125,"ØST28 modul 11",null,null,null,null,null,null,null,null,null,"Kir._færdighedskurser_KBH_Odense_og_Århus","Kir._færdighedskurser_KBH_Odense_og_Århus"]
[100,"Almen Medicin, Kbh","Almen_Medicin_Kbh",24131,"ØST28X modul 10",null,null,null,null,null,null,null,null,null,"Klinisk Biokemi","Klinisk_Biokemi"]
[100,"Almen Medicin, Kbh","Almen_Medicin_Kbh",24142,"ØST33 modul 09",null,null,null,null,null,null,null,null,null,"Klinisk Farmakologi","Klinisk_Farmakologi"]
[100,"Almen Medicin, Kbh","Almen_Medicin_Kbh",24143,"ØST34 modul 09",null,null,null,null,null,null,null,null,null,"Klinisk Fysiologi og Nuklearmedicin","Klinisk_Fysiologi_og_Nuklearmedicin"]
[100,"Almen Medicin, Kbh","Almen_Medicin_Kbh",24144,"ØST35 modul 08",null,null,null,null,null,null,null,null,null,"Klinisk Genetik","Klinisk_Genetik"]
[100,"Almen Medicin, Kbh","Almen_Medicin_Kbh",24146,"ØST36 modul 08",null,null,null,null,null,null,null,null,null,"Klinisk Immunologi","Klinisk_Immunologi"]
[100,"Almen Medicin, Kbh","Almen_Medicin_Kbh",24148,"ØST37 modul 07",null,null,null,null,null,null,null,null,null,"Klinisk Mikrobiologi","Klinisk_Mikrobiologi"]
[100,"Almen Medicin, Kbh","Almen_Medicin_Kbh",24150,"ØST38 modul 07",null,null,null,null,null,null,null,null,null,"Klinisk Onkologi","Klinisk_Onkologi"]
[100,"Almen Medicin, Kbh","Almen_Medicin_Kbh",24152,"ØST38X modul 07",null,null,null,null,null,null,null,null,null,"Kommunallægekurser","Kommunallægekurser"]
[100,"Almen Medicin, Kbh","Almen_Medicin_Kbh",24154,"ØST39 modul 06",null,null,null,null,null,null,null,null,null,"Neurokirurgi","Neurokirurgi"]
[100,"Almen Medicin, Kbh","Almen_Medicin_Kbh",24156,"ØST40 modul 04",null,null,null,null,null,null,null,null,null,"Neurologi","Neurologi"]
[100,"Almen Medicin, Kbh","Almen_Medicin_Kbh",24157,"ØST40 modul 05",null,null,null,null,null,null,null,null,null,"Oftalmologi","Oftalmologi"]
[100,"Almen Medicin, Kbh","Almen_Medicin_Kbh",24158,"ØST40 modul 06",null,null,null,null,null,null,null,null,null,"Ortopædisk kirurgi","Ortopædisk_kirurgi"]
[100,"Almen Medicin, Kbh","Almen_Medicin_Kbh",24160,"ØST40X modul 03",null,null,null,null,null,null,null,null,null,"Oto-rhino-laryngologi","Oto_rhino_laryngologi"]
[100,"Almen Medicin, Kbh","Almen_Medicin_Kbh",24161,"ØST40X modul 04",null,null,null,null,null,null,null,null,null,"Patologisk anatomi og cytologi","Patologisk_anatomi_og_cytologi"]
[100,"Almen Medicin, Kbh","Almen_Medicin_Kbh",24162,"ØST40X modul 05",null,null,null,null,null,null,null,null,null,"Plastikkirurgi","Plastikkirurgi"]
[100,"Almen Medicin, Kbh","Almen_Medicin_Kbh",24163,"ØST40X modul 06",null,null,null,null,null,null,null,null,null,"Psykiatri","Psykiatri"]
[100,"Almen Medicin, Kbh","Almen_Medicin_Kbh",24165,"ØST41 modul 01",null,null,null,null,null,null,null,null,null,"Pædiatri","Pædiatri"]
[100,"Almen Medicin, Kbh","Almen_Medicin_Kbh",24166,"ØST41 modul 02",null,null,null,null,null,null,null,null,null,"Retsmedicin","Retsmedicin"]
[100,"Almen Medicin, Kbh","Almen_Medicin_Kbh",24167,"ØST41 modul 03",null,null,null,null,null,null,null,null,null,"Samfundsmedicin","Samfundsmedicin"]
[100,"Almen Medicin, Kbh","Almen_Medicin_Kbh",24168,"ØST41 modul 04",null,null,null,null,null,null,null,null,null,"Thoraxkirurgi","Thoraxkirurgi"]
[100,"Almen Medicin, Kbh","Almen_Medicin_Kbh",24169,"ØST41 modul 05",null,null,null,null,null,null,null,null,null,"Urologi","Urologi"]
[100,"Almen Medicin, Kbh","Almen_Medicin_Kbh",24171,"ØST42 modul 01",null,null,null,null,null,null,null,null,null,"SOL","SOL_2"]
[100,"Almen Medicin, Kbh","Almen_Medicin_Kbh",24172,"ØST42 modul 02",null,null,null,null,null,null,null,null,null,"Tand-, mund- og kæbekirurgi","Tand_mund_og_kæbekirurgi"]
[100,"Almen Medicin, Kbh","Almen_Medicin_Kbh",24173,"ØST42 modul 03",null,null,null,null,null,null,null,null,null,"Ortodonti","Ortodonti"]
[100,"Almen Medicin, Kbh","Almen_Medicin_Kbh",24174,"ØST42 modul 04",null,null,null,null,null,null,null,null,null,"Akutmedicin","Akutmedicin"]
[100,"Almen Medicin, Kbh","Almen_Medicin_Kbh",24177,"ØST42X modul 01"]
[100,"Almen Medicin, Kbh","Almen_Medicin_Kbh",24178,"ØST42X modul 02"]
[100,"Almen Medicin, Kbh","Almen_Medicin_Kbh"]
[null,null,{"$error":"#N/A"}]
[200,"Almen Medicin, Odense","Almen_Medicin_Odense",24201,"SYD2020-1"]
[200,"Almen Medicin, Odense","Almen_Medicin_Odense",24202,"SYD2020-2"]
[200,"Almen Medicin, Odense","Almen_Medicin_Odense",24203,"SYD2020-3"]
[200,"Almen Medicin, Odense","Almen_Medicin_Odense",24208,"SYD2022-1"]
[200,"Almen Medicin, Odense","Almen_Medicin_Odense",24209,"SYD2022-2"]
[200,"Almen Medicin, Odense","Almen_Medicin_Odense",24212,"SYD2023-1"]
[200,"Almen Medicin, Odense","Almen_Medicin_Odense",24213,"SYD2023-2"]
[200,"Almen Medicin, Odense","Almen_Medicin_Odense",24214,"SYD2023-3"]
[200,"Almen Medicin, Odense","Almen_Medicin_Odense",24215,"SYD2023-4"]
[200,"Almen Medicin, Odense","Almen_Medicin_Odense",24216,"SYD2023-5"]
[200,"Almen Medicin, Odense","Almen_Medicin_Odense",24217,"SYD2024-1"]
[200,"Almen Medicin, Odense","Almen_Medicin_Odense"]
[null,null,{"$f":"INDEX(P:P,MATCH(B66,O:O,0))","v":{"$error":"#N/A"}}]
[300,"Almen Medicin, Århus","Almen_Medicin_Aarhus",24301,"Nord 24"]
[300,"Almen Medicin, Århus","Almen_Medicin_Aarhus",24302,"Nord 25"]
[300,"Almen Medicin, Århus","Almen_Medicin_Aarhus",24303,"Nord 26"]
[300,"Almen Medicin, Århus","Almen_Medicin_Aarhus",24304,"Nord 27"]
[300,"Almen Medicin, Århus","Almen_Medicin_Aarhus",24305,"Nord 28"]
[300,"Almen Medicin, Århus","Almen_Medicin_Aarhus",24308,"Nord 31"]
[300,"Almen Medicin, Århus","Almen_Medicin_Aarhus",24309,"Nord 32"]
[300,"Almen Medicin, Århus","Almen_Medicin_Aarhus",24310,"Nord 33"]
[300,"Almen Medicin, Århus","Almen_Medicin_Aarhus",24311,"Nord 34"]
[300,"Almen Medicin, Århus","Almen_Medicin_Aarhus",24312,"Nord 35"]
[300,"Almen Medicin, Århus","Almen_Medicin_Aarhus",24313,"Nord 36"]
[300,"Almen Medicin, Århus","Almen_Medicin_Aarhus",24314,"Nord 37"]
[300,"Almen Medicin, Århus","Almen_Medicin_Aarhus",24316,"Nord 39"]
[300,"Almen Medicin, Århus","Almen_Medicin_Aarhus",24317,"Nord 40"]
[300,"Almen Medicin, Århus","Almen_Medicin_Aarhus",24318,"Nord 41"]
[300,"Almen Medicin, Århus","Almen_Medicin_Aarhus",24319,"Nord 42"]
[300,"Almen Medicin, Århus","Almen_Medicin_Aarhus"]
[null,null,{"$error":"#N/A"}]
[400,"Anæstesiologi","Anæstesiologi",24401,"Luftvejshåndtering"]
[400,"Anæstesiologi","Anæstesiologi",24402,"Avanceret Intensiv terapi"]
[400,"Anæstesiologi","Anæstesiologi",24403,"Obstetrisk anæstesi og det nyfødte barn - Aarhus"]
[400,"Anæstesiologi","Anæstesiologi",24404,"Ultralyd "]
[400,"Anæstesiologi","Anæstesiologi",24405,"Anæstesi "]
[400,"Anæstesiologi","Anæstesiologi",24406,"Intensiv terapi -NORD & SYD - Aalborg"]
[400,"Anæstesiologi","Anæstesiologi",24407,"Intensiv terapi - ØST"]
[400,"Anæstesiologi","Anæstesiologi",24408,"Pædiatrisk anæstesi  - Aarhus"]
[400,"Anæstesiologi","Anæstesiologi",24409,"Klinisk beslutningstagning "]
[400,"Anæstesiologi","Anæstesiologi",24410,"Akutte og kroniske smerter"]
[400,"Anæstesiologi","Anæstesiologi",24411,"Neuro, traume, præhospital"]
[400,"Anæstesiologi","Anæstesiologi",24412,"Patientsikkerhed og kom."]
[400,"Anæstesiologi","Anæstesiologi"]
[null,null,{"$error":"#N/A"}]
[500,"Arbejdsmedicin","Arbejdsmedicin",24501,"Pressehåndtering og individuel risikokommunikation"]
[500,"Arbejdsmedicin","Arbejdsmedicin",24502," Forebyggelse og tilbage til arbejde"]
[500,"Arbejdsmedicin","Arbejdsmedicin"]
[null,null,{"$error":"#N/A"}]
[600,"Børne- og ungdomspsykiatri","Børne_og_ungdomspsykiatri",24601,"ADHD, Komorbiditet og differentialdiagnostik "]
[600,"Børne- og ungdomspsykiatri","Børne_og_ungdomspsykiatri",24602,"Farmakologisk behandling af ADHD (Psykofarmakologi 2) "]
[600,"Børne- og ungdomspsykiatri","Børne_og_ungdomspsykiatri",24603,"Retspsykiatri"]
[600,"Børne- og ungdomspsykiatri","Børne_og_ungdomspsykiatri",24604,"Adfærds- og personlighedsforstyrrelser "]
[600,"Børne- og ungdomspsykiatri","Børne_og_ungdomspsykiatri",24605,"Misbrug"]
[600,"Børne- og ungdomspsykiatri","Børne_og_ungdomspsykiatri",24606,"Teoretisk kursus psykopatologi "]
[600,"Børne- og ungdomspsykiatri","Børne_og_ungdomspsykiatri",24607,"Teoretisk kursus Psykoterapi "]
[600,"Børne- og ungdomspsykiatri","Børne_og_ungdomspsykiatri",24608,"Autismespektrumforstyrrelser, generelle udviklingsforstyrrelser og sjældne neuropsykiatriske lidelser "]
[600,"Børne- og ungdomspsykiatri","Børne_og_ungdomspsykiatri"]
[null,null,{"$error":"#N/A"}]
[700,"Dermato-venerologi","Dermato_venerologi",24701,"Dermatologiske manifestationer ved interne medicinske sygdomme"]
[700,"Dermato-venerologi","Dermato_venerologi",24702,"Kursus i basal dermatologi (Øst)"]
[700,"Dermato-venerologi","Dermato_venerologi",24703,"Den professionelle dermatolog og infektioner i huden"]
[700,"Dermato-venerologi","Dermato_venerologi"]
[null,null,{"$error":"#N/A"}]
[800,"Diagnostisk radiologi","Diagnostisk_radiologi",24801,"Abdominal radiologi"]
[800,"Diagnostisk radiologi","Diagnostisk_radiologi",24806,"Neuroradiologi"]
[800,"Diagnostisk radiologi","Diagnostisk_radiologi",24808,"Thorax radiologi"]
[800,"Diagnostisk radiologi","Diagnostisk_radiologi"]
[null,null,{"$error":"#N/A"}]
[900,"Gynækologi og obstetrik","Gynækologi_og_obstetrik",24901,"Intrapartal obstetrik"]
[900,"Gynækologi og obstetrik","Gynækologi_og_obstetrik",24902,"Urogynækologi"]
[900,"Gynækologi og obstetrik","Gynækologi_og_obstetrik",24903,"Benign gynækologi"]
[900,"Gynækologi og obstetrik","Gynækologi_og_obstetrik",24904,"Reproduktionsmedicin"]
[900,"Gynækologi og obstetrik","Gynækologi_og_obstetrik",24905,"Kommunikation A"]
[900,"Gynækologi og obstetrik","Gynækologi_og_obstetrik",24906,"Endokrin gynækologi"]
[900,"Gynækologi og obstetrik","Gynækologi_og_obstetrik"]
[null,null,{"$f":"INDEX(P:P,MATCH(B130,O:O,0))","v":{"$error":"#N/A"}}]
[1000,"IM: Endokrinologi","IM_Endokrinologi",241001,"Diabetes- og ernæringsbetingede sygdomme"]
[1000,"IM: Endokrinologi","IM_Endokrinologi",241003,"Knogle- og calciummetaboliske sygdomme"]
[1000,"IM: Endokrinologi","IM_Endokrinologi"]
[null,null,{"$error":"#N/A"}]
[1100,"IM: Fælleskurser","IM_Fælleskurser",241101,"Akut medicin, Nord - Maj"]
[1100,"IM: Fælleskurser","IM_Fælleskurser",241102,"Akut medicin, Syd - Maj"]
[1100,"IM: Fælleskurser","IM_Fælleskurser",241103,"Akut medicin, Øst - Maj"]
[1100,"IM: Fælleskurser","IM_Fælleskurser",241107,"De 8 selskabers kursusdag, Nord - Maj"]
[1100,"IM: Fælleskurser","IM_Fælleskurser",241108,"De 8 selskabers kursusdag, Syd - Maj"]
[1100,"IM: Fælleskurser","IM_Fælleskurser",241109,"De 8 selskabers kursusdag, Øst - Maj"]
[1100,"IM: Fælleskurser","IM_Fælleskurser",241113,"Rationel farmakoterapi, Nord - Maj"]
[1100,"IM: Fælleskurser","IM_Fælleskurser",241114,"Rationel farmakoterapi, Syd - Maj"]
[1100,"IM: Fælleskurser","IM_Fælleskurser",241115,"Rationel farmakoterapi, Øst - Maj"]
[1100,"IM: Fælleskurser","IM_Fælleskurser",241119,"Neurologi for intern medicinere, Nord - Maj"]
[1100,"IM: Fælleskurser","IM_Fælleskurser",241120,"Neurologi for intern medicinere, Syd - Maj"]
[1100,"IM: Fælleskurser","IM_Fælleskurser",241121,"Neurologi for intern medicinere, Øst - Maj"]
[1100,"IM: Fælleskurser","IM_Fælleskurser",241125,"Psykiatri for intern medicinere, Nord - Maj"]
[1100,"IM: Fælleskurser","IM_Fælleskurser",241126,"Psykiatri for intern medicinere, Syd - Maj"]
[1100,"IM: Fælleskurser","IM_Fælleskurser",241127,"Psykiatri for intern medicinere, Øst - Maj"]
[1100,"IM: Fælleskurser","IM_Fælleskurser",241131,"Rationel klinisk beslutningsteori, Nord - Maj"]
[1100,"IM: Fælleskurser","IM_Fælleskurser",241132,"Rationel klinisk beslutningsteori, Syd - Maj"]
[1100,"IM: Fælleskurser","IM_Fælleskurser",241133,"Rationel klinisk beslutningsteori, Øst - Maj"]
[1100,"IM: Fælleskurser","IM_Fælleskurser",241137,"Onkologi for intern medicinere, Nord - Maj"]
[1100,"IM: Fælleskurser","IM_Fælleskurser",241138,"Onkologi for intern medicinere, Syd - Maj"]
[1100,"IM: Fælleskurser","IM_Fælleskurser",241139,"Onkologi for intern medicinere, Øst - Maj"]
[1100,"IM: Fælleskurser","IM_Fælleskurser",241143,"Den terminale patient, palliativ behandling, Nord - Maj"]
[1100,"IM: Fælleskurser","IM_Fælleskurser",241144,"Den terminale patient, palliativ behandling, Syd - Maj"]
[1100,"IM: Fælleskurser","IM_Fælleskurser",241145,"Den terminale patient, palliativ behandling, Øst - Maj"]
[1100,"IM: Fælleskurser","IM_Fælleskurser",241149,"Den ældre patient, Nord - Maj"]
[1100,"IM: Fælleskurser","IM_Fælleskurser",241150,"Den ældre patient, Syd - Maj"]
[1100,"IM: Fælleskurser","IM_Fælleskurser",241151,"Den ældre patient, Øst - Maj"]
[1100,"IM: Fælleskurser","IM_Fælleskurser",241155,"Den termianle patient, palliativ behandling region nord nov 23 udsat pga sygdom "]
[1100,"IM: Fælleskurser","IM_Fælleskurser"]
[null,null,{"$error":"#N/A"}]
[1200,"IM: Gastroenterologi og Hepatologi","IM_Gastroenterologi_og_Hepatologi",241201,"Gastrointestinal Endoskopi"]
[1200,"IM: Gastroenterologi og Hepatologi","IM_Gastroenterologi_og_Hepatologi",241202,"Gastrointestinal Billeddiagnostik"]
[1200,"IM: Gastroenterologi og Hepatologi","IM_Gastroenterologi_og_Hepatologi"]
[null,null,{"$error":"#N/A"}]
[1300,"IM: Geriatri","IM_Geriatri",241301,"Geriatriske sygdomme 2, fald m.m."]
[1300,"IM: Geriatri","IM_Geriatri"]
[null,null,{"$error":"#N/A"}]
[1400,"IM: Hæmatologi","IM_Hæmatologi",241401,"Akut leukæmi, myelodysplasi og transplantation"]
[1400,"IM: Hæmatologi","IM_Hæmatologi",241402,"Myeloproliferativ neoplasi og trombofili"]
[1400,"IM: Hæmatologi","IM_Hæmatologi"]
[null,null,{"$error":"#N/A"}]
[1500,"IM: Infektionsmedicin","IM_Infektionsmedicin",241501,"Infektionshygiejne/profylakse, sepsis og urogenitale infektioner"]
[1500,"IM: Infektionsmedicin","IM_Infektionsmedicin",241504,"Diplomkursus i Tropemedicin"]
[1500,"IM: Infektionsmedicin","IM_Infektionsmedicin"]
[null,null,{"$error":"#N/A"}]
[1600,"IM: Kardiologi","IM_Kardiologi",241601,"TEE Simulation"]
[1600,"IM: Kardiologi","IM_Kardiologi",241605,"ÅR 3 KURSUS (HU3)"]
[1600,"IM: Kardiologi","IM_Kardiologi",241606,"ÅR 4 KURSUS (HU4)"]
[1600,"IM: Kardiologi","IM_Kardiologi",241607,"ÅR 5 KURSUS (HU5)"]
[1600,"IM: Kardiologi","IM_Kardiologi"]
[null,null,{"$error":"#N/A"}]
[1700,"IM: Lungesygdomme","IM_Lungesygdomme",241701,"Kursus i Klinisk respirationsfysiologi"]
[1700,"IM: Lungesygdomme","IM_Lungesygdomme",241703,"Kursus i Astma"]
[1700,"IM: Lungesygdomme","IM_Lungesygdomme",241704,"Kursus i Allergi "]
[1700,"IM: Lungesygdomme","IM_Lungesygdomme",241706,"Kursus i Infiltratudredning, pleuraeffusioner, mesotheliom og hæmoptyse "]
[1700,"IM: Lungesygdomme","IM_Lungesygdomme",241708,"Kursus i Interstitielle Lungesygdomme "]
[1700,"IM: Lungesygdomme","IM_Lungesygdomme"]
[null,null,{"$error":"#N/A"}]
[1800,"IM: Nefrologi","IM_Nefrologi","241801","Transplantation og Immunologi"]
[1800,"IM: Nefrologi",{"$f":"INDEX(P:P,MATCH(B194,O:O,0))","v":"IM_Nefrologi"}]
[null,null,{"$error":"#N/A"}]
[1900,"IM: Reumatologi","IM_Reumatologi",241902,"Delkursus 2 - Inflammatoriske lidelser 2"]
[1900,"IM: Reumatologi","IM_Reumatologi",241904,"Delkursus 4 - Den patologiske overekstremitet"]
[1900,"IM: Reumatologi","IM_Reumatologi",241905,"Delkursus 5 - Vaskulit og bindevævssygdomme"]
[1900,"IM: Reumatologi","IM_Reumatologi"]
[null,null,{"$error":"#N/A"}]
[2000,"Karkirurgi","Karkirurgi",242001,"Basalt ultralydskursus f"]
[2000,"Karkirurgi","Karkirurgi",242002,"Basale endovaskulære teknikker"]
[2000,"Karkirurgi","Karkirurgi"]
[null,null,{"$error":"#N/A"}]
[2100,"Kirurgi","Kirurgi",242101,"Mammakursus, Århus"]
[2100,"Kirurgi","Kirurgi",242102,"Teoretisk fælleskirurgisk kursus , Region øst"]
[2100,"Kirurgi","Kirurgi",242103,"Den kirurgiske kræftpatient, København"]
[2100,"Kirurgi","Kirurgi",242104,"Avanceret kirurgisk endoskopi, København"]
[2100,"Kirurgi","Kirurgi",242105,"Den akutte kirurgiske patient, København"]
[2100,"Kirurgi","Kirurgi",242106,"Børnekirurgi, Odense"]
[2100,"Kirurgi","Kirurgi",242107,"Traumatologi Århus"]
[2100,"Kirurgi","Kirurgi"]
[null,null,{"$error":"#N/A"}]
[2200,"Kir. færdighedskurser, KBH, Odense og Århus",{"$error":"#N/A"},242201,"Praktisk fælleskirurgisk kursus,Århus"]
[2200,"Kir. færdighedskurser, KBH, Odense og Århus",{"$error":"#N/A"},242202,"Praktisk fælleskirurgisk kursus,Odense"]
[2200,"Kir. færdighedskurser, KBH, Odense og Århus",{"$error":"#N/A"},242203,"Laparoskopisk kirurgi, København"]
[2200,"Kir. færdighedskurser, KBH, Odense og Århus",{"$error":"#N/A"},242204,"Åben kirurgi,København"]
[2200,"Kir. færdighedskurser, KBH, Odense og Århus",{"$error":"#N/A"},242205,"Åben kirurgi, Odense"]
[2200,"Kir. færdighedskurser, KBH, Odense og Århus",{"$error":"#N/A"},242206,"Praktisk fælleskirurgisk kursus,København"]
[2200,"Kir. færdighedskurser, KBH, Odense og Århus",{"$error":"#N/A"},242207,"Laparoskopisk kursus, Århus"]
[2200,"Kir. færdighedskurser, KBH, Odense og Århus",{"$error":"#N/A"}]
[null,null,{"$error":"#N/A"}]
[2400,"Klinisk Biokemi","Klinisk_Biokemi",242401,"Koagulation"]
[2400,"Klinisk Biokemi","Klinisk_Biokemi"]
[null,null,{"$error":"#N/A"}]
[2500,"Klinisk Farmakologi","Klinisk_Farmakologi",242501,"Undervisningsmetoder og -pædagogik i klinisk farmakologi"]
[2500,"Klinisk Farmakologi","Klinisk_Farmakologi",242502,"Farmakokinetik og TDM"]
[2500,"Klinisk Farmakologi","Klinisk_Farmakologi"]
[null,null,{"$error":"#N/A"}]
[2600,"Klinisk Fysiologi og Nuklearmedicin","Klinisk_Fysiologi_og_Nuklearmedicin",242601,"Isotopteknik 1 - \"Radioaktive isotoper og ioniserende stråling\" (Kbh)"]
[2600,"Klinisk Fysiologi og Nuklearmedicin","Klinisk_Fysiologi_og_Nuklearmedicin",242603,"Lunge-patofysiologi"]
[2600,"Klinisk Fysiologi og Nuklearmedicin","Klinisk_Fysiologi_og_Nuklearmedicin",242604,"Metodekursus 4 (Molecular Imaging)"]
[2600,"Klinisk Fysiologi og Nuklearmedicin","Klinisk_Fysiologi_og_Nuklearmedicin",242605,"MR og UL/Doppler"]
[2600,"Klinisk Fysiologi og Nuklearmedicin","Klinisk_Fysiologi_og_Nuklearmedicin"]
[null,null,{"$error":"#N/A"}]
[2700,"Klinisk Genetik","Klinisk_Genetik",242701,"Klinisk Genetik 3"]
[2700,"Klinisk Genetik","Klinisk_Genetik",242702,"Genetisk Fosterdiagnostik"]
[2700,"Klinisk Genetik","Klinisk_Genetik"]
[null,null,{"$error":"#N/A"}]
[2800,"Klinisk Immunologi","Klinisk_Immunologi",242801,"Teoretisk immunologi "]
[2800,"Klinisk Immunologi","Klinisk_Immunologi",242802,"Diagnostisk immunologi"]
[2800,"Klinisk Immunologi","Klinisk_Immunologi"]
[null,null,{"$error":"#N/A"}]
[2900,"Klinisk Mikrobiologi","Klinisk_Mikrobiologi",242901,"Kursus i farmakokinetik og -dynamik (PKPD) samt resistensmekanismer "]
[2900,"Klinisk Mikrobiologi","Klinisk_Mikrobiologi"]
[null,null,{"$error":"#N/A"}]
[3000,"Klinisk Onkologi","Klinisk_Onkologi",243001,"Radioterapi"]
[3000,"Klinisk Onkologi","Klinisk_Onkologi",243002,"Kommunikation"]
[3000,"Klinisk Onkologi","Klinisk_Onkologi",243003,"Medicinsk kræftbehandling"]
[3000,"Klinisk Onkologi","Klinisk_Onkologi"]
[null,null,{"$error":"#N/A"}]
[3100,"Neurokirurgi","Neurokirurgi",243102,"Internationale kurser, SNS/EANS"]
[3100,"Neurokirurgi","Neurokirurgi"]
[null,null,{"$error":"#N/A"}]
[3200,"Neurologi","Neurologi",243201,"Neuroinflammation"]
[3200,"Neurologi","Neurologi",243202,"Klinisk neurologi 2"]
[3200,"Neurologi","Neurologi",243203,"Demens og neuropsykologi"]
[3200,"Neurologi",{"$f":"INDEX(P:P,MATCH(B258,O:O,0))","v":"Neurologi"},243204,"Cerebrovaskulære sygdomme"]
[3200,"Neurologi","Neurologi",243205,"Klinisk neurologi 1"]
[3200,"Neurologi","Neurologi"]
[null,null,{"$error":"#N/A"}]
[3300,"Oftalmologi","Oftalmologi",243301,"I1, Vejle"]
[3300,"Oftalmologi","Oftalmologi",243303,"HB2"]
[3300,"Oftalmologi","Oftalmologi",243306,"HB4"]
[3300,"Oftalmologi","Oftalmologi",243307,"HK5"]
[3300,"Oftalmologi","Oftalmologi",243308,"HK6"]
[3300,"Oftalmologi","Oftalmologi",243311,"HK9"]
[3300,"Oftalmologi","Oftalmologi",243316,"HK13"]
[3300,"Oftalmologi","Oftalmologi"]
[null,null,{"$error":"#N/A"}]
[3400,"Ortopædisk kirurgi","Ortopædisk_kirurgi",243401,"Protesekirurgi"]
[3400,"Ortopædisk kirurgi","Ortopædisk_kirurgi",243402,"Børneortopædi"]
[3400,"Ortopædisk kirurgi","Ortopædisk_kirurgi",243403,"Idrætstraumatologi"]
[3400,"Ortopædisk kirurgi","Ortopædisk_kirurgi",243404,"Rygkirurgi"]
[3400,"Ortopædisk kirurgi","Ortopædisk_kirurgi",243405,"Introduktion forår"]
[3400,"Ortopædisk kirurgi","Ortopædisk_kirurgi",243406,"Håndkirurgi"]
[3400,"Ortopædisk kirurgi","Ortopædisk_kirurgi",243498,"Heldagsmøde/workshop"]
[3400,"Ortopædisk kirurgi","Ortopædisk_kirurgi"]
[null,null,{"$error":"#N/A"}]
[3500,"Oto-rhino-laryngologi","Oto_rhino_laryngologi",243501,"Mellemøret"]
[3500,"Oto-rhino-laryngologi","Oto_rhino_laryngologi",243502,"Næse-Bihuler"]
[3500,"Oto-rhino-laryngologi","Oto_rhino_laryngologi",243503,"Billeddiagnostik"]
[3500,"Oto-rhino-laryngologi","Oto_rhino_laryngologi",243504,"Hoved-Hals kirurgi"]
[3500,"Oto-rhino-laryngologi","Oto_rhino_laryngologi",243505,"Endoskopi"]
[3500,"Oto-rhino-laryngologi","Oto_rhino_laryngologi"]
[null,null,{"$error":"#N/A"}]
[3600,"Patologisk anatomi og cytologi","Patologisk_anatomi_og_cytologi",243603,"Gastrointestinal patologi"]
[3600,"Patologisk anatomi og cytologi","Patologisk_anatomi_og_cytologi",243604,"Mammapatologi"]
[3600,"Patologisk anatomi og cytologi","Patologisk_anatomi_og_cytologi",243607,"Nedre luftvejes patologi"]
[3600,"Patologisk anatomi og cytologi","Patologisk_anatomi_og_cytologi",243609,"Øvre luftvejes patologi"]
[3600,"Patologisk anatomi og cytologi","Patologisk_anatomi_og_cytologi",243612,"CNS- og muskelpatologi"]
[3600,"Patologisk anatomi og cytologi","Patologisk_anatomi_og_cytologi",243613,"Lever- og pancreaspatologi"]
[3600,"Patologisk anatomi og cytologi","Patologisk_anatomi_og_cytologi",243614,"Knogle- og bløddelspatologi"]
[3600,"Patologisk anatomi og cytologi","Patologisk_anatomi_og_cytologi"]
[null,null,{"$error":"#N/A"}]
[3700,"Plastikkirurgi","Plastikkirurgi",243701,"Nordisk kursus I: Misdannelser "]
[3700,"Plastikkirurgi","Plastikkirurgi",243702,"Nordisk kursus II: Traumatologi"]
[3700,"Plastikkirurgi","Plastikkirurgi",243705,"Mikrokirurgi"]
[3700,"Plastikkirurgi","Plastikkirurgi",243706,"ATLS"]
[3700,"Plastikkirurgi","Plastikkirurgi"]
[null,null,{"$error":"#N/A"}]
[3800,"Psykiatri","Psykiatri",243801,"Ældrepsykiatri"]
[3800,"Psykiatri","Psykiatri",243802,"Psykiatriens organisatoriske og sociale aspekter"]
[3800,"Psykiatri","Psykiatri",243803,"Teoretisk grundlag for psykoterapi"]
[3800,"Psykiatri","Psykiatri",243804,"Børne- og ungdomspsyk. lidelser med forløb ind i voksenalderen "]
[3800,"Psykiatri","Psykiatri",243805,"Oligofreni"]
[3800,"Psykiatri","Psykiatri",243806,"Neuropsykiatri"]
[3800,"Psykiatri","Psykiatri",243807,"III Psykopatologi"]
[3800,"Psykiatri","Psykiatri",243808,"I Psykopatologi"]
[3800,"Psykiatri","Psykiatri",243809,"Ældrepsykiatri"]
[3800,"Psykiatri","Psykiatri",243810,"Misbrug "]
[3800,"Psykiatri","Psykiatri",243811,"Erklæringsudstedelse "]
[3800,"Psykiatri","Psykiatri",243812,"Biologiske behandlingsmetoder"]
[3800,"Psykiatri","Psykiatri",243813,"Børne- og ungdomspsyk. lidelser med forløb ind i voksenalderen "]
[3800,"Psykiatri","Psykiatri",243814,"Oligofreni "]
[3800,"Psykiatri","Psykiatri",243815,"II Psykopatologi"]
[3800,"Psykiatri","Psykiatri",243816,"Retspsykiatri"]
[3800,"Psykiatri","Psykiatri",243819,"I Psykopatologi"]
[3800,"Psykiatri","Psykiatri"]
[null,null,{"$error":"#N/A"}]
[3900,"Pædiatri","Pædiatri",243901,"Neuropæditari"]
[3900,"Pædiatri",{"$f":"INDEX(P:P,MATCH(B322,O:O,0))","v":"Pædiatri"},243903,"Neonatologi og børnekirurgi"]
[3900,"Pædiatri","Pædiatri",243905,"Akut pædiatri"]
[3900,"Pædiatri","Pædiatri",243909,"Infektionspædiatri, immunologi og reumatologi"]
[3900,"Pædiatri","Pædiatri",243910,"Nefrologi og urologisk børnekirurgi"]
[3900,"Pædiatri","Pædiatri",243915,"Børnekardiologi"]
[3900,"Pædiatri","Pædiatri"]
[null,null,{"$error":"#N/A"}]
[4000,"Retsmedicin","Retsmedicin",244001,"Læsionspatologi"]
[4000,"Retsmedicin","Retsmedicin"]
[null,null,{"$error":"#N/A"}]
[4100,"Samfundsmedicin","Samfundsmedicin",244101,"Kvalitetsudvikling i sundhedsvæsnet"]
[4100,"Samfundsmedicin","Samfundsmedicin",244102,"Sundhedsjura"]
[4100,"Samfundsmedicin","Samfundsmedicin",244103,"Risikovurdering, risikostyring, risikokommunikation"]
[4100,"Samfundsmedicin","Samfundsmedicin"]
[null,null,{"$error":"#N/A"}]
[4200,"Thoraxkirurgi","Thoraxkirurgi",244201,"Onkologi"]
[4200,"Thoraxkirurgi","Thoraxkirurgi",244202,"ATLS"]
[4200,"Thoraxkirurgi","Thoraxkirurgi",244204,"EACTS - Fundamentals in thoracic surgery"]
[4200,"Thoraxkirurgi","Thoraxkirurgi",244206,"EACTS tidl. K nr 234209"]
[4200,"Thoraxkirurgi","Thoraxkirurgi"]
[null,null,{"$error":"#N/A"}]
[4300,"Urologi","Urologi",244301,"Urologisk radiologi"]
[4300,"Urologi","Urologi",244302,"Nefrologi 1"]
[4300,"Urologi","Urologi",244304,"Urolithiasis"]
[4300,"Urologi","Urologi",244306,"LUTS (urodynamik)"]
[4300,"Urologi","Urologi",244308,"Andrologi/fertilitet"]
[4300,"Urologi","Urologi",244310,"Færdighedskursus endo 1"]
[4300,"Urologi","Urologi",244311,"Færdighedskursus endo 2"]
[4300,"Urologi","Urologi",244314,"Færdighedskursus ULS 1"]
[4300,"Urologi","Urologi",244316,"Færdighedskursus lap. 1"]
[4300,"Urologi","Urologi",244317,"Færdighedskursus lap 2"]
[4300,"Urologi","Urologi"]
[null,null,{"$error":"#N/A"}]
[4400,"SOL","SOL_2",244401,"9. Januar 2023 kl. 10:00"]
[4400,"SOL","SOL_2",244402,"16. Januar 2023 kl. 10:00"]
[4400,"SOL","SOL_2",244403,"23. Januar 2023 kl. 10:00"]
[4400,"SOL","SOL_2",244404,"6. Februar 2023 kl. 10:00"]
[4400,"SOL","SOL_2",244405,"6. Marts 2023 kl. 10:00"]
[4400,"SOL","SOL_2",244406,"13. Marts 2023 kl. 10:00"]
[4400,"SOL","SOL_2",244407,"20. Marts 2023 kl. 10:00"]
[4400,"SOL","SOL_2",244408,"27. Marts 2023 kl. 10:00"]
[4400,"SOL","SOL_2",244409,"11. April 2023 kl. 10:00"]
[4400,"SOL","SOL_2",244410,"17. April 2023 kl. 10:00"]
[4400,"SOL","SOL_2",244411,"8. Maj 2023 kl. 10:00"]
[4400,"SOL","SOL_2",244412,"22. Maj 2023 kl. 10:00"]
[4400,"SOL","SOL_2",244413,"12. Juni 2023 kl. 10:00"]
[4400,"SOL","SOL_2",244414,"19. Juni 2023 kl. 10:00"]
[4400,"SOL","SOL_2"]
[null,null,{"$error":"#N/A"}]
[4600,"Tand-, mund- og kæbekirurgi","Tand_mund_og_kæbekirurgi",244601,"Histopatologi og Oral Medicin"]
[4600,"Tand-, mund- og kæbekirurgi","Tand_mund_og_kæbekirurgi"]
[null,null,{"$error":"#N/A"}]
[4700,"Ortodonti","Ortodonti",244701,"Læbe-ganespaltr"]
[4700,"Ortodonti","Ortodonti",244702,"Pædiatri"]
[4700,"Ortodonti","Ortodonti",244703,"Øre-, næse- halsygdomme"]
[4700,"Ortodonti","Ortodonti"]
[null,null,{"$error":"#N/A"}]
[5000,"Kir. Færdighedskursus operativ gynækologi",{"$error":"#N/A"},245001,"Operativ Gynækologi I"]
[5000,"Kir. Færdighedskursus operativ gynækologi",{"$error":"#N/A"}]
[null,null,{"$error":"#N/A"}]
[5100,"Kir. Færdighedskursus otopædisk kirurgi",{"$error":"#N/A"},245101,"Ort. Kir Færdighedstræning I"]
[5100,"Kir. Færdighedskursus otopædisk kirurgi",{"$error":"#N/A"}]
[null,null,{"$error":"#N/A"}]
[6000,"Akutmedicin","Akutmedicin",246003,"Flowmaster"]
[6000,"Akutmedicin",{"$f":"INDEX(P:P,MATCH(B386,O:O,0))","v":"Akutmedicin"},246004,"Akutmedicinsk ultralyd øst"]
[6000,"Akutmedicin","Akutmedicin",246005,"Akutmedicinsk ultralyd syd"]
[6000,"Akutmedicin","Akutmedicin",246007,"ABCDE"]
[6000,"Akutmedicin","Akutmedicin",246008,"Akutte kirurgiske tilstande"]
[6000,"Akutmedicin","Akutmedicin",246012,"Katastrofemedicin og transport "]
[6000,"Akutmedicin","Akutmedicin"]
[null,null,{"$error":"#N/A"}]
[null,null,{"$error":"#N/A"}]
[null,null,{"$error":"#N/A"}]
[null,null,{"$error":"#N/A"}]
[null,null,{"$error":"#N/A"}]
[null,null,{"$error":"#N/A"}]
[null,null,{"$error":"#N/A"}]
[null,null,{"$error":"#N/A"}]
[null,null,{"$error":"#N/A"}]
[null,null,{"$error":"#N/A"}]
[null,null,{"$error":"#N/A"}]
[null,null,{"$error":"#N/A"}]
[null,null,{"$error":"#N/A"}]
[null,null,{"$error":"#N/A"}]
[null,null,{"$error":"#N/A"}]
[null,null,{"$error":"#N/A"}]
[null,null,{"$error":"#N/A"}]
[null,null,{"$error":"#N/A"}]
[null,null,{"$error":"#N/A"}]
[null,null,{"$error":"#N/A"}]
[null,null,{"$error":"#N/A"}]
[null,null,{"$error":"#N/A"}]
[null,null,{"$error":"#N/A"}]
[null,null,{"$error":"#N/A"}]
[null,null,{"$error":"#N/A"}]
[null,null,{"$error":"#N/A"}]
[null,null,{"$error":"#N/A"}]
[null,null,{"$error":"#N/A"}]
[null,null,{"$error":"#N/A"}]
[null,null,{"$error":"#N/A"}]
[null,null,{"$error":"#N/A"}]
[null,null,{"$error":"#N/A"}]
[null,null,{"$error":"#N/A"}]
[null,null,{"$error":"#N/A"}]
[null,null,{"$error":"#N/A"}]
[null,null,{"$error":"#N/A"}]
[null,null,{"$error":"#N/A"}]
[null,null,{"$error":"#N/A"}]
[null,null,{"$error":"#N/A"}]
[null,null,{"$error":"#N/A"}]
[null,null,{"$error":"#N/A"}]
[null,null,{"$error":"#N/A"}]
[null,null,{"$error":"#N/A"}]
[null,null,{"$error":"#N/A"}]
[null,null,{"$error":"#N/A"}]
[null,null,{"$error":"#N/A"}]
[null,null,{"$error":"#N/A"}]
[null,null,{"$error":"#N/A"}]
[null,null,{"$error":"#N/A"}]
[null,null,{"$error":"#N/A"}]
[null,null,{"$error":"#N/A"}]
[null,null,{"$error":"#N/A"}]
[null,null,{"$error":"#N/A"}]
[null,null,{"$error":"#N/A"}]
[null,null,{"$error":"#N/A"}]
[null,null,{"$error":"#N/A"}]
[null,null,{"$error":"#N/A"}]
[null,null,{"$error":"#N/A"}]
[null,null,{"$f":"INDEX(P:P,MATCH(B450,O:O,0))","v":{"$error":"#N/A"}}]
[null,null,{"$error":"#N/A"}]
[null,null,{"$error":"#N/A"}]
[null,null,{"$error":"#N/A"}]
[null,null,{"$error":"#N/A"}]
[null,null,{"$error":"#N/A"}]
[null,null,{"$error":"#N/A"}]
[null,null,{"$error":"#N/A"}]
[null,null,{"$error":"#N/A"}]
[null,null,{"$error":"#N/A"}]
[null,null,{"$error":"#N/A"}]
[null,null,{"$error":"#N/A"}]
[null,null,{"$error":"#N/A"}]
[null,null,{"$error":"#N/A"}]
[null,null,{"$error":"#N/A"}]
[null,null,{"$error":"#N/A"}]
[null,null,{"$error":"#N/A"}]
[null,null,{"$error":"#N/A"}]
[null,null,{"$error":"#N/A"}]
[null,null,{"$error":"#N/A"}]
[null,null,{"$error":"#N/A"}]
[null,null,{"$error":"#N/A"}]
[null,null,{"$error":"#N/A"}]
[null,null,{"$error":"#N/A"}]
[null,null,{"$error":"#N/A"}]
[null,null,{"$error":"#N/A"}]
[null,null,{"$error":"#N/A"}]
[null,null,{"$error":"#N/A"}]
[null,null,{"$error":"#N/A"}]
[null,null,{"$error":"#N/A"}]
[null,null,{"$error":"#N/A"}]
[null,null,{"$error":"#N/A"}]
[null,null,{"$error":"#N/A"}]
[null,null,{"$error":"#N/A"}]
[null,null,{"$error":"#N/A"}]
[null,null,{"$error":"#N/A"}]
[null,null,{"$error":"#N/A"}]
[null,null,{"$error":"#N/A"}]
[null,null,{"$error":"#N/A"}]
[null,null,{"$error":"#N/A"}]
[null,null,{"$error":"#N/A"}]
[null,null,{"$error":"#N/A"}]
[null,null,{"$error":"#N/A"}]
[null,null,{"$error":"#N/A"}]
[null,null,{"$error":"#N/A"}]
[null,null,{"$error":"#N/A"}]
[null,null,{"$error":"#N/A"}]
[null,null,{"$error":"#N/A"}]
[null,null,{"$error":"#N/A"}]
[null,null,{"$error":"#N/A"}]
[null,null,{"$error":"#N/A"}]
[null,null,{"$error":"#N/A"}]
[null,null,{"$error":"#N/A"}]
[null,null,{"$error":"#N/A"}]
[null,null,{"$error":"#N/A"}]
[null,null,{"$error":"#N/A"}]
[null,null,{"$error":"#N/A"}]
[null,null,{"$error":"#N/A"}]
[null,null,{"$error":"#N/A"}]
[null,null,{"$error":"#N/A"}]
[null,null,{"$error":"#N/A"}]
[null,null,{"$error":"#N/A"}]
[null,null,{"$error":"#N/A"}]
[null,null,{"$error":"#N/A"}]
[null,null,{"$f":"INDEX(P:P,MATCH(B514,O:O,0))","v":{"$error":"#N/A"}}]
[null,null,{"$error":"#N/A"}]
[null,null,{"$error":"#N/A"}]
[null,null,{"$error":"#N/A"}]
[null,null,{"$error":"#N/A"}]
[null,null,{"$error":"#N/A"}]
[null,null,{"$error":"#N/A"}]
[null,null,{"$error":"#N/A"}]
[null,null,{"$error":"#N/A"}]
[null,null,{"$error":"#N/A"}]
[null,null,{"$error":"#N/A"}]
[null,null,{"$error":"#N/A"}]
[null,null,{"$error":"#N/A"}]
[null,null,{"$error":"#N/A"}]
[null,null,{"$error":"#N/A"}]
[null,null,{"$error":"#N/A"}]
[null,null,{"$error":"#N/A"}]
[null,null,{"$error":"#N/A"}]
[null,null,{"$error":"#N/A"}]
[null,null,{"$error":"#N/A"}]
[null,null,{"$error":"#N/A"}]
[null,null,{"$error":"#N/A"}]
[null,null,{"$error":"#N/A"}]
[null,null,{"$error":"#N/A"}]
[null,null,{"$error":"#N/A"}]
[null,null,{"$error":"#N/A"}]
[null,null,{"$error":"#N/A"}]
[null,null,{"$error":"#N/A"}]
[null,null,{"$error":"#N/A"}]
[null,null,{"$error":"#N/A"}]
[null,null,{"$error":"#N/A"}]
[null,null,{"$error":"#N/A"}]
[null,null,{"$error":"#N/A"}]
[null,null,{"$error":"#N/A"}]
[null,null,{"$error":"#N/A"}]
[null,null,{"$error":"#N/A"}]
[null,null,{"$error":"#N/A"}]
[null,null,{"$error":"#N/A"}]
[null,null,{"$error":"#N/A"}]
[null,null,{"$error":"#N/A"}]
[null,null,{"$error":"#N/A"}]
[null,null,{"$error":"#N/A"}]
[null,null,{"$error":"#N/A"}]
[null,null,{"$error":"#N/A"}]
[null,null,{"$error":"#N/A"}]
[null,null,{"$error":"#N/A"}]
[null,null,{"$error":"#N/A"}]
[null,null,{"$error":"#N/A"}]
[null,null,{"$error":"#N/A"}]
[null,null,{"$error":"#N/A"}]
[null,null,{"$error":"#N/A"}]
[null,null,{"$error":"#N/A"}]
[null,null,{"$error":"#N/A"}]
[null,null,{"$error":"#N/A"}]
[null,null,{"$error":"#N/A"}]
[null,null,{"$error":"#N/A"}]
[null,null,{"$error":"#N/A"}]
[null,null,{"$error":"#N/A"}]
[null,null,{"$error":"#N/A"}]
[null,null,{"$error":"#N/A"}]
[null,null,{"$error":"#N/A"}]
[null,null,{"$error":"#N/A"}]
[null,null,{"$error":"#N/A"}]
[null,null,{"$error":"#N/A"}]
[null,null,{"$f":"INDEX(P:P,MATCH(B578,O:O,0))","v":{"$error":"#N/A"}}]
[null,null,{"$error":"#N/A"}]
[null,null,{"$error":"#N/A"}]
[null,null,{"$error":"#N/A"}]
[null,null,{"$error":"#N/A"}]
[null,null,{"$error":"#N/A"}]
[null,null,{"$error":"#N/A"}]
[null,null,{"$error":"#N/A"}]
[null,null,{"$error":"#N/A"}]
[null,null,{"$error":"#N/A"}]
[null,null,{"$error":"#N/A"}]
[null,null,{"$error":"#N/A"}]
[null,null,{"$error":"#N/A"}]
[null,null,{"$error":"#N/A"}]
[null,null,{"$error":"#N/A"}]
[null,null,{"$error":"#N/A"}]
[null,null,{"$error":"#N/A"}]
[null,null,{"$error":"#N/A"}]
[null,null,{"$error":"#N/A"}]
[null,null,{"$error":"#N/A"}]
[null,null,{"$error":"#N/A"}]
[null,null,{"$error":"#N/A"}]
[null,null,{"$error":"#N/A"}]
[null,null,{"$error":"#N/A"}]
[null,null,{"$error":"#N/A"}]
[null,null,{"$error":"#N/A"}]
[null,null,{"$error":"#N/A"}]
[null,null,{"$error":"#N/A"}]
[null,null,{"$error":"#N/A"}]
[null,null,{"$error":"#N/A"}]
[null,null,{"$error":"#N/A"}]
[null,null,{"$error":"#N/A"}]
[null,null,{"$error":"#N/A"}]
[null,null,{"$error":"#N/A"}]
[null,null,{"$error":"#N/A"}]
[null,null,{"$error":"#N/A"}]
[null,null,{"$error":"#N/A"}]
[null,null,{"$error":"#N/A"}]
[null,null,{"$error":"#N/A"}]
[null,null,{"$error":"#N/A"}]
[null,null,{"$error":"#N/A"}]
[null,null,{"$error":"#N/A"}]
[null,null,{"$error":"#N/A"}]
[null,null,{"$error":"#N/A"}]
[null,null,{"$error":"#N/A"}]
[null,null,{"$error":"#N/A"}]
[null,null,{"$error":"#N/A"}]
[null,null,{"$error":"#N/A"}]
[null,null,{"$error":"#N/A"}]
[null,null,{"$error":"#N/A"}]
[null,null,{"$error":"#N/A"}]
[null,null,{"$error":"#N/A"}]
[null,null,{"$error":"#N/A"}]
[null,null,{"$error":"#N/A"}]
[null,null,{"$error":"#N/A"}]
[null,null,{"$error":"#N/A"}]

{"sheet":"Adm.ark specialer","index":2,"n_rows":51,"n_cols":151,"rows_kept":51,"cut":false,"hidden":false,"merged":[]}
["Speciale",null,"Nr.","Almen_Medicin_Kbh",null,"Nr.","Almen_Medicin_Odense",null,"Nr.","Almen_Medicin_Aarhus",null,"Nr.","Anæstesiologi",null,"Nr.","Arbejdsmedicin",null,"Nr.","Børne_og_ungdomspsykiatri",null,"Nr.","Dermato_venerologi",null,"Nr.","Diagnostisk_radiologi",null,"Nr.","Gynækologi_og_obstetrik",null,"Nr.","IM_Endokrinologi",null,"Nr.","IM_Fælleskurser",null,"Nr.","IM_Gastroenterologi_og_Hepatologi",null,"Nr.","IM_Geriatri",null,"Nr.","IM_Hæmatologi",null,"Nr.","IM_Infektionsmedicin",null,"Nr.","IM_Kardiologi",null,"Nr.","IM_Lungesygdomme",null,"Nr.","IM_Nefrologi",null,"Nr.","IM_Reumatologi",null,"Nr.","Karkirurgi",null,"Nr.","Kirurgi",null,"Nr.","Kir._færdighedskurser_KBH_Odense_og_Århus",null,"Nr.","Kir._Færdighedskurser_Århus",null,"Nr.","Klinisk_Biokemi",null,"Nr.","Klinisk_Farmakologi",null,"Nr.","Klinisk_Fysiologi_og_Nuklearmedicin",null,"Nr.","Klinisk_Genetik",null,"Nr.","Klinisk_Immunologi",null,"Nr.","Klinisk_Mikrobiologi",null,"Nr.","Klinisk_Onkologi",null,"Nr.","Neurokirurgi",null,"Nr.","Neurologi",null,"Nr.","Oftalmologi",null,"Nr.","Ortopædisk_kirurgi",null,"Nr.","Oto_rhino_laryngologi",null,"Nr.","Patologisk_anatomi_og_cytologi",null,"Nr.","Plastikkirurgi",null,"Nr.","Psykiatri",null,"Nr.","Pædiatri",null,"Nr.","Retsmedicin",null,"Nr.","Samfundsmedicin",null,"Nr.","Thoraxkirurgi",null,"Nr.","Urologi",null,"Nr.","SOL_2",null,"Nr.","Kommunallægekurser",null,"Nr.","Tand_mund_og_kæbekirurgi",null,"Nr.","Ortodonti",null,"Nr.","Færdighedskurser_operativ_gynækologi",null,"Nr.","Færdighedskurser_ort._kir.",null,"Nr.","Akutmedicin"]
["[vælg fra liste]",null,null,"[vælg fra liste]",null,null,"[vælg fra liste]",null,null,"[vælg fra liste]",null,null,"[vælg fra liste]",null,null,"[vælg fra liste]",null,null,"[vælg fra liste]",null,null,"[vælg fra liste]",null,null,"[vælg fra liste]",null,null,"[vælg fra liste]",null,null,"[vælg fra liste]",null,null,"[vælg fra liste]",null,null,"[vælg fra liste]",null,null,"[vælg fra liste]",null,null,"[vælg fra liste]",null,null,"[vælg fra liste]",null,null,"[vælg fra liste]",null,null,"[vælg fra liste]",null,null,"[vælg fra liste]",null,null,"[vælg fra liste]",null,null,"[vælg fra liste]",null,null,"[vælg fra liste]",null,null,"[vælg fra liste]",null,null,"Udgået",null,null,"[vælg fra liste]",null,null,"[vælg fra liste]",null,null,"[vælg fra liste]",null,null,"[vælg fra liste]",null,null,"[vælg fra liste]",null,null,"[vælg fra liste]",null,null,"[vælg fra liste]",null,null,"[vælg fra liste]",null,null,"[vælg fra liste]",null,null,"[vælg fra liste]",null,null,"[vælg fra liste]",null,null,"[vælg fra liste]",null,null,"[vælg fra liste]",null,null,"[vælg fra liste]",null,null,"[vælg fra liste]",null,null,"[vælg fra liste]",null,null,"[vælg fra liste]",null,null,"[vælg fra liste]",null,null,"[vælg fra liste]",null,null,"[vælg fra liste]",null,null,"[vælg fra liste]",null,null,"[vælg fra liste]",null,null,"[vælg fra liste]",null,null,"[vælg fra liste]",null,null,"[vælg fra liste]",null,null,"[vælg fra liste]",null,null,"[vælg fra liste]"]
["Akutmedicin",null,24122,"ØST27 modul 15",null,24204,"SYD2021-1",null,24306,"Nord 29",null,24413,"Luftvejshåndtering",null,24501,"Pressehåndtering og individuel risikokommunikation",null,24609,"Psykofarmakologi, interaktion og bivirkninger (Psykofarmakologi 1) ",null,24704,"Kursus i basal dermatologi (Vest)",null,24802,"Fysik og radiobiologi",null,24907,"Føtalmedicin",null,241002,"Thyreoideasygdomme",null,241104,"Akut medicin, Nord - November",null,241203,"Gastroenterologi",null,241302,"Aldring og Samfund",null,241403,"Den Hæmatologiske patient",null,241502,"CNS-infektioner",null,241602,"TEE Simulation",null,241702,"Kursus i KOL og NIV"," ",241802,"Sekundær og kompliceret primær arteriel hypertension"," ",241901,"Delkursus 1 - Inflammatoriske lidelser 1",null,242003,"Underekstremitetsiskæmi",null,242108,"Den akutte kirurgiske patient, Århus",null,242208,"Praktisk fælleskirurgisk kursus, Århus",null,null,null,null,242402,"Hæmatologi",null,242503,"Lægemiddelmetabolisme og -ekskretion. Farmakogenetik",null,242602,"Isotopteknik 1 - ”Kursus i biomedicinsk isotopteknik” (Årh)",null,242703,"Onkologisk Genetik",null,242803,"Immunhæmatologi",null,242902,"Kursus i international sundhed og rejserelaterede infektionssygdomme",null,243004,"Onkologiske sygdomme",null,243101,"Beslutningsteori og kommunikation II",null,243206,"Neurorehabilitering og smerter",null,243302,"I1, Kbh",null,243407,"Ort. Kir. Statistik og Forskningsmetodologi",null,243506,"Praksis ",null,243601,"Introduktionskursus",null,243703,"Nordisk kursus III: Cancer",null,243817,"Psykiatriens organisatoriske og sociale aspekter",null,243902,"Socialpædiatri",null,null,null,null,244104,"Folkesundhed",null,244203,"POCUS",null,244303,"Nefrologi 2",null,244415,"19. august 2024",null,null,null,null,244602,"Kæbe- og Ansigtsanomalier",null,244704,"Odontologisk. udvik. Forstyrrelse 1",null,245002,"Operativ Gynækologi II",null,245102,"Ort. Kir Færdighedstræning II",null,246001,"Hjertelungeredningskursus (ALS)"]
["Almen_Medicin_Aarhus",null,24123,"ØST27 modul 16",null,24205,"SYD2021-2",null,24307,"Nord 30",null,24414,"Avanceret Intensiv terapi",null,24502," Forebyggelse og tilbage til arbejde",null,24610,"Belastningsreaktioner og PTSD ",null,24705,"Eksemer",null,24803,"Kar og interventionsradiologi",null,24908,"Gynækologisk onkologi",null,241005,"Binyre- og gonadesygdomme",null,241105,"Akut medicin, Syd - November",null,241204,"Avanc. Gastroenterologi og hepatologi",null,241303,"Kursusplanlægning",null,241404,"Behandlingsmodaliteter i hæmatologi",null,241503,"Knogle og bløddelsinfektioner",null,241603,"ÅR 1 KURSUS (HU1)",null,241705,"Kursus i Pulmonale infektioner ",null,null,null,null,241903,"Delkursus 3 - Den patologiske underekstremitet og degenerative rygsygdomme",null,242004,"Sår- og fodterapi",null,242109,"Avanceret kirurgisk endoskopi, Århus",null,242209,"Åben kirurgi, Århus",null,null,null,null,null,null,null,null,null,null,242606,"Matematik, statistik og kinetik",null,null,null,null,null,null,null,242903,"Kursus i kliniske aspekter, diagnostik og behandling af infektionssygdomme ",null,243005,"Intern medicin & Komorbiditet",null,243103,"Undervisere, internationale kurser",null,243207,"Bevægeforstyrrelser 1",null,243304,"HB3, Ålborg",null,243408,"Traumatologi I",null,243507,"Audiologi",null,243602,"Diagnostiske metoder",null,243704,"Nordisk kursus IV: Æstetisk",null,243818,"Teoretisk grundlag for psykoterapi",null,243904,"Børnepsykiatri",null,null,null,null,244105,"Projektledelse",null,244207,"EACTS tidl. 234210",null,244305,"Urologisk mikrobiologi",null,244416,"26. august 2024",null,null,null,null,null,null,null,244705,"Odontologisk. udvikl. Forstyrrelse 2",null,null,null,null,null,null,null,246002,"Akut radiologi for akutlæger"]
["Almen_Medicin_Kbh",null,24126,"ØST28 modul 12",null,24206,"SYD2021-3 FT",null,24315,"Nord 38",null,24415,"Anæstesi ",null,null,null,null,24611,"Seksualitet og seksuelle overgreb ",null,24706,"Inflammatoriske hudsygdomme",null,24804,"Mammaradiologi",null,24909,"Antepartal obstetrik",null,null,null,null,241106,"Akut medicin, Øst - November",null,241205,"Møde delkursusledere",null,null,null,null,null,null,null,null,null,null,241604,"ÅR 2 KURSUS (HU2)",null,241707,"Kursus i Invasiv diagnostik ",null,null,null," ",241906,"Delkursus 6 - Komplekse reumatologiske tilstande",null,null,null,null,242110,"Mammakursus, Århus",null,242210,"Praktisk fælleskirurgisk kursus, København",null,null,null,null,null,null,null,null,null,null,242607,"CNS patofysiologi",null,null,null,null,null,null,null,null,null,null,243006,"Understøttende behandling",null,null,null,null,243208,"Bevægeforstyrrelser  2",null,243305,"HB3, Kbh",null,243409,"Traumatologi II",null,243508,"Paraklinik",null,243605,"Uro- nyre- og testispatologi",null,243707,"Nordisk kursusleder møde, Helsinki",null,243820,"Neuropsykiatri",null,243906,"Genetik",null,null,null,null,244106,"Sundhed og miljø",null,244208,"EACTS tidl. 234211",null,244307,"Urologisk onkologi",null,244417,"9. september 2024",null,null,null,null,null,null,null,null,null,null,null,null,null,null,null,null,246006,"Akutmedicinsk ultralyd nord"]
["Almen_Medicin_Odense",null,24127,"ØST28 modul 13",null,24207,"SYD2021-4 FT",null,24320,"Nord 43",null,24416,"Intensiv terapi - ØST",null,null,null,null,24612,"Teoretisk kursus biologisk psykiatri (",null,24707,"Dermato-patologi og laser",null,24805,"Muskuloskeletal radiologi",null,24910,"Kommunikation B",null,null,null,null,241111,"De 8 selskabers kursusdag, Syd - November",null,null,null,null,null,null,null,null,null,null,null,null,null,null,null,null,null,null,null,null,null,null,241907,"USU-møder",null,null,null,null,242111,"Teoretisk fælleskirurgisk kursus , Region øst",null,242211,"Laparoskopisk kirurgi, Odense",null,null,null,null,null,null,null,null,null,null,242608,"Møde for kursusudvalget",null,null,null,null,null,null,null,null,null,null,243007,"MDT",null,null,null,null,243209,"Hovedpine",null,243309,"HK7",null,243410,"Tumorkirurgi",null,243509,"Vestibulogi",null,243606,"Gynæko- og føtalpatologi",null,null,null,null,243821,"Erklæringsudstedelse",null,243907,"Pulmonologi og allergologi",null,null,null,null,244107,"Sundhedsøkonomi",null,244209,"Internat for VVU",null,244309,"Børneurologi",null,244418,"16. september 2024",null,null,null,null,null,null,null,null,null,null,null,null,null,null,null,null,246009,"Akut pædiatri"]
["Anæstesiologi",null,24128,"ØST28 modul 14",null,24210,"SYD2022-3",null,24321,"Nord 44",null,24417,"Intensiv terapi -Nord og Syd- odense",null,null,null,null,24613,"Teoretisk kursus udviklingspsykopatologi ",null,null,null,null,24807,"Pædiatrisk radiologi",null,24996,"Temadag kursusledere",null,null,null,null,241112,"De 8 selskabers kursusdag, Øst - November",null,null,null,null,null,null,null,null,null,null,null,null,null,null,null,null,null,null,null,null,null,null,null,null,null,null,null,null,242112,"Traumatolgi København",null,null,null,null,null,null,null,null,null,null,null,null,null,null,null,null,null,null,null,null,null,null,null,null,null,null,null,null,null,null,null,243210,"Social neurologi",null,243310,"HK8",null,243411,"Fod / Ankel Kirurgi",null,243596,"Uddannelsesrådsmøde DGI byen",null,243608,"Molekylærpatologi",null,null,null,null,243822,"Misbrug ",null,243908,"Endokrinologi",null,null,null,null,null,null,null,null,null,null,244312,"Færdighedskursus endo 3",null,244419,"30. september 2024",null,null,null,null,null,null,null,null,null,null,null,null,null,null,null,null,246010,"Traumekurset"]
["Arbejdsmedicin",null,24129,"ØST28 modul 15",null,24211,"SYD2022-4",null,null,null,null,24418,"Obstetrisk anæstesi og det nyfødte barn - Kbh",null,null,null,null,24614,"Affektive lidelser ",null,null,null,null,24809,"Onkoradiologi",null,null,null,null,null,null,null,241116,"Rationel farmakoterapi, Nord - November",null,null,null,null,null,null,null,null,null,null,null,null,null,null,null,null,null,null," ",null,null,null,null,null,null,null,null,null,242113,"Den kirurgiske kræftpatient, Region Nord",null,null,null,null,null,null,null,null,null,null,null,null,null,null,null,null,null,null,null,null,null,null,null,null,null,null,null,null,null,null,null,243211,"Klinisk neurologi 1",null,243312,"HK10",null,243412,"Introduktion efterår",null,243598,"Evaluering og opfølgning af Praksiskursus",null,243610,"Dermatopatologi",null,null,null,null,243823,"III Psykopatologi",null,243911,"Gastroenterologi og ernæring ",null,null,null,null,null,null,null,null,null,null,244315,"Færdighedskursus ULS 2",null,244420,"21. oktober 2024",null,null,null,null,null,null,null,null,null,null,null,null,null,null,null,null,246011,"Symptomer"]
["Børne_og_ungdomspsykiatri",null,24130,"ØST28 modul 16",null,24218,"SYD2024-2",null,null,null,null,24419,"Klinisk beslutningstagning ",null,null,null,null,24615,"Spædbarnspsykiatri",null,null,null,null,24810,"Teknik og strålebeskyttelse",null,null,null,null,null,null,null,241117,"Rationel farmakoterapi, Syd - November",null,null,null,null,null,null,null,null,null,null,null,null,null,null,null,null,null,null,null,null,null,null,null,null,null,null,null,null,242114,"Traumatolgi Odense",null,null,null,null,null,null,null,null,null,null,null,null,null,null,null,null,null,null,null,null,null,null,null,null,null,null,null,null,null,null,null,null,null,null,243313,"HK11, Ålborg",null,243413,"Infektionskirurgi efterår",null,null,null,null,243611,"Hæmatopatologi",null,null,null,null,243824,"II Psykopatologi",null,243912,"Pædiatrisk hæmotologi og onkologi ",null,null,null,null,null,null,null,null,null,null,244318,"Færdighedskursus lap. 3",null,244421,"28. oktober 2024",null,null,null,null,null,null,null,null,null,null,null,null,null,null,null,null,246098,"Temadag"]
["Dermato_venerologi",null,24132,"ØST28X modul 11",null,24219,"SYD2024-3",null,null,null,null,24420,"Ultralyd ",null,null,null,null,24616,"Spiseforstyrrelser",null,null,null,null,24811,"Urogenital radiologi",null,null,null,null,null,null,null,241118,"Rationel farmakoterapi, Øst - November",null,null,null,null,null,null,null,null,null,null,null,null,null,null,null,null,null,null," ",null,null,null,null,null,null,null,null,null,242115,"Børnekirurgi, Region H",null,null,null,null,null,null,null,null,null,null,null,null,null,null,null,null,null,null,null,null,null,null,null,null,null,null,null,null,null,null,null,null,null,null,243314,"HK11, Kbh",null,243414,"Skulder / Albue Kirurgi",null,null,null,null,null,null,null,null,null,null,243825,"Retspsykiatri",null,243913,"Tværgående pædiatri",null,null,null,null,null,null,null,null,null,null,244319,"1/2 dags møde for delkursusledere",null,244422,"4. november 2024"]
["Diagnostisk_radiologi",null,24133,"ØST28X modul 12",null,24220,"SYD2024-4",null,null,null,null,24421,"Akutte og kroniske smerter",null,null,null,null,24617,"Skizofreni ",null,null,null,null,24898,"kursusdag for delkursusledere",null,null,null,null,null,null,null,241122,"Neurologi for intern medicinere, Nord - November",null,null,null,null,null,null,null,null,null,null,null,null,null,null,null,null,null,null,null,null,null,null,null,null,null,null,null,null,null,null,null,null,null,null,null,null,null,null,null,null,null,null,null,null,null,null,null,null,null,null,null,null,null,null,null,null,null,null,null,null,null,null,null,null,243315,"HK12",null,243498,"Heldagsmøde/workshop",null,null,null,null,null,null,null,null,null,null,243826,"Biologiske behandlingsmetoder",null,243914,"Ungdomsmedicin",null,null,null,null,null,null,null,null,null,null,null,null,null,244423,"18. november 2024"]
["Færdighedskurser_operativ_gynækologi",null,24134,"ØST28X modul 13",null,null,null,null,null,null,null,24422,"Pædiatrisk anæstesi",null,null,null,null,24618,"OCD, Tics og Tourette ",null,null,null,null,null,null,null,null,null,null,null,null,null,241123,"Neurologi for intern medicinere, Syd - November",null,null,null,null,null,null,null,null,null,null,null,null,null,null,null,null,null,null,null,null,null,null,null,null,null,null,null,null,null,null,null,null,null,null,null,null,null,null,null,null,null,null,null,null,null,null,null,null,null,null,null,null,null,null,null,null,null,null,null,null,null,null,null,null,243317,"HK14",null,null,null,null,null,null,null,null,null,null,null,null,null,null,null,null,null,null,null,null,null,null,null,null,null,null,null,null,null,null,null,244424,"25. november 2024"]
["Færdighedskurser_ort._kir.",null,24135,"ØST28X modul 14",null,null,null,null,null,null,null,24423,"Patientsikkerhed og kom.",null,null,null,null,24619,"Angst og psykosomatik ",null,null,null,null,null,null,null,null,null,null,null,null,null,241124,"Neurologi for intern medicinere, Øst - November",null,null,null,null,null,null,null,null,null,null,null,null,null,null,null,null,null,null,null,null,null,null,null,null,null,null,null,null,null,null,null,null,null,null,null,null,null,null,null,null,null,null,null,null,null,null,null,null,null,null,null,null,null,null,null,null,null,null,null,null,null,null,null,null,null,null,null,null,null,null,null,null,null,null,null,null,null,null,null,null,null,null,null,null,null,null,null,null,null,null,null,null,null,null,null,null,null,244425,"9. december 2024"]
["Gynækologi_og_obstetrik",null,24136,"ØST28X modul 15",null,null,null,null,null,null,null,24424,"Neuro, traume, præhospital",null,null,null,null,null,null,null,null,null,null,null,null,null,null,null,null,null,null,null,241128,"Psykiatri for intern medicinere, Nord - November",null,null,null,null,null,null,null,null,null,null,null,null,null,null,null,null,null,null,null,null,null,null,null,null,null,null,null,null,null,null,null,null,null,null,null,null,null,null,null,null,null,null,null,null,null,null,null,null,null,null,null,null,null,null,null,null,null,null,null,null,null,null,null,null,null,null,null,null,null,null,null,null,null,null,null,null,null,null,null,null,null,null,null,null,null,null,null,null,null,null,null,null,null,null,null,null,null,224422,"SOL 2, 14.-16. november"]
["IM_Endokrinologi",null,24137,"ØST28X modul 16",null,null,null,null,null,null,null,null,null,null,null,null,null,null,null,null,null,null,null,null,null,null,null,null,null,null,null,null,241129,"Psykiatri for intern medicinere, Syd - November"]
["IM_Fælleskurser",null,24138,"ØST29 modul 10",null,null,null,null,null,null,null,null,null,null,null,null,null,null,null,null,null,null,null,null,null,null,null,null,null,null,null,null,241130,"Psykiatri for intern medicinere, Øst - November"]
["IM_Gastroenterologi_og_Hepatologi",null,24139,"ØST29 modul 11",null,null,null,null,null,null,null,null,null,null,null,null,null,null,null,null,null,null,null,null,null,null,null,null,null,null,null,null,241134,"Rationel klinisk beslutningsteori, Nord - November"]
["IM_Geriatri",null,24140,"ØST29 modul 12",null,null,null,null,null,null,null,null,null,null,null,null,null,null,null,null,null,null,null,null,null,null,null,null,null,null,null,null,241135,"Rationel klinisk beslutningsteori, Syd - November"]
["IM_Hæmatologi",null,24141,"ØST30 modul 10",null,null,null,null,null,null,null,null,null,null,null,null,null,null,null,null,null,null,null,null,null,null,null,null,null,null,null,null,241136,"Rationel klinisk beslutningsteori, Øst - November"]
["IM_Infektionsmedicin",null,24145,"ØST35 modul 09",null,null,null,null,null,null,null,null,null,null,null,null,null,null,null,null,null,null,null,null,null,null,null,null,null,null,null,null,241140,"Onkologi for intern medicinere, Nord - November"]
["IM_Kardiologi",null,24147,"ØST36 modul 09",null,null,null,null,null,null,null,null,null,null,null,null,null,null,null,null,null,null,null,null,null,null,null,null,null,null,null,null,241141,"Onkologi for intern medicinere, Syd - November"]
["IM_Lungesygdomme",null,24149,"ØST37 modul 08",null,null,null,null,null,null,null,null,null,null,null,null,null,null,null,null,null,null,null,null,null,null,null,null,null,null,null,null,241142,"Onkologi for intern medicinere, Øst - November"]
["IM_Nefrologi",null,24151,"ØST38 modul 08",null,null,null,null,null,null,null,null,null,null,null,null,null,null,null,null,null,null,null,null,null,null,null,null,null,null,null,null,241146,"Den terminale patient, palliativ behandling, Nord - November"]
["IM_Reumatologi",null,24153,"ØST38X modul 08",null,null,null,null,null,null,null,null,null,null,null,null,null,null,null,null,null,null,null,null,null,null,null,null,null,null,null,null,241147,"Den terminale patient, palliativ behandling, Syd - November"]
["Karkirurgi",null,24155,"ØST39 modul 07",null,null,null,null,null,null,null,null,null,null,null,null,null,null,null,null,null,null,null,null,null,null,null,null,null,null,null,null,241148,"Den terminale patient, palliativ behandling, Øst - November"]
["Kir._færdighedskurser_KBH_Odense_og_Århus",null,24159,"ØST40 modul 07",null,null,null,null,null,null,null,null,null,null,null,null,null,null,null,null,null,null,null,null,null,null,null,null,null,null,null,null,241152,"Den ældre patient, Nord - November"]
["Kirurgi",null,24164,"ØST40X modul 07",null,null,null,null,null,null,null,null,null,null,null,null,null,null,null,null,null,null,null,null,null,null,null,null,null,null,null,null,241153,"Den ældre patient, Syd - November"]
["Klinisk_Biokemi",null,24170,"ØST41 modul 06",null,null,null,null,null,null,null,null,null,null,null,null,null,null,null,null,null,null,null,null,null,null,null,null,null,null,null,null,241154,"Den ældre patient, Øst - November"]
["Klinisk_Farmakologi",null,24175,"ØST42 modul 05",null,null,null,null,null,null,null,null,null,null,null,null,null,null,null,null,null,null,null,null,null,null,null,null,null,null,null,null,241155,"Den terminale patient, palliativ behandling region nord nov 23 udsat pga sygdom "]
["Klinisk_Fysiologi_og_Nuklearmedicin",null,24176,"ØST42 modul 06",null,null,null,null,null,null,null,null,null,null,null,null,null,null,null,null,null,null,null,null,null,null,null,null,null,null,null,null,241199,"Planlægningsmøde for kursusudvalg"]
["Klinisk_Genetik",null,24179,"ØST42X modul 03"]
["Klinisk_Immunologi",null,24180,"ØST42X modul 04"]
["Klinisk_Mikrobiologi",null,24181,"ØST42X modul 05"]
["Klinisk_Onkologi",null,24182,"ØST42X modul 06"]
["Kommunallægekurser",null,24183,"ØST43 modul 01"]
["Neurokirurgi",null,24184,"ØST43 modul 02"]
["Neurologi",null,24185,"ØST43 modul 03"]
["Oftalmologi",null,24186,"ØST43 modul 04"]
["Ortodonti",null,24187,"ØST43 modul 05"]
["Ortopædisk_kirurgi",null,24188,"ØST44 modul 01"]
["Oto_rhino_laryngologi",null,24189,"ØST44 modul 02"]
["Patologisk_anatomi_og_cytologi",null,24190,"ØST44 modul 03"]
["Plastikkirurgi",null,24191,"ØST44X modul 01"]
["Psykiatri",null,24192,"ØST44X modul 02"]
["Pædiatri"]
["Retsmedicin"]
["Samfundsmedicin"]
["SOL_2"]
["Tand_mund_og_kæbekirurgi"]
["Thoraxkirurgi"]
["Urologi"]

{"sheet":"Delkursusleder 1","index":3,"n_rows":46,"n_cols":5,"rows_kept":46,"cut":false,"hidden":false,"merged":[[45,0,45,3],[41,0,43,3],[17,1,17,3],[0,1,0,3],[13,1,13,3],[11,1,11,3],[20,1,20,3],[39,0,39,3],[7,1,7,3],[5,1,5,3],[10,0,10,3]]}
[null,"Honorar Delkursusleder 1"]
[null,null,"       Læs mere om de specialespecifikke kurser på Sundhedsstyrelsens","hjemmeside"]
[null,"NB. Skemaet SKAL udfyldes elektronisk"]
["Udfyldes af delkursusleder inden kurset"]
[]
["Speciale:","[vælg fra liste]"]
[]
["Kursusnavn:","[vælg fra liste]"]
[]
["Kursusnummer:",{"$f":"IF(B6=\"[vælg fra liste]\",\"Kursusnummer findes automatisk efter du har indtastet speciale/kursusnavn\",IFERROR(INDEX(Kodefinder!D:D,MATCH(1,(B6=Kodefinder!C:C)*(B8=Kodefinder!E:E),0)),\"Der findes flere kurser med samme navn. Skriv selv kursusnummer i denne celle\"))","v":"Kursusnummer findes automatisk efter du har indtastet speciale/kursusnavn"}]
["Udfyldes manuelt af kursusleder hvis formlen ikke selv finder kursusnummer(se evt. arket \"Adm.ark for specialer\" til venstre for dette ark)"]
["Kursussted, by:"]
[]
["Navn delkursusleder:"]
[]
["Cpr.nr.:",null,{"$f":"IFERROR(IF(LEN(B16)>10,\"CPR-nummer ikke gyldigt - du har mere end 10 tegn med. Husk ikke at inkludere bindestreg\",IF(LEN(B16)=0,\"\",IF(LEN(B16)<10,\"CPR-nummer ikke gyldigt - Du har indtastet for få tegn\",IF(0=MOD(LEFT(B16)*4+MID(B16,2,1)*3+MID(B16,3,1)*2+MID(B16,4,1)*7+MID(B16,5,1)*6+MID(B16,6,1)*5+(MID(B16,7,1)*4+MID(B16,8,1)*3)+MID(B16,9,1)*2+MID(B16,10,1),11),\"\",\"CPR-nummer ikke gyldigt - Tjek cifrene i dit CPR igennem igen\")))),\"CPR-nummer ikke gyldigt - Et af cifrene i dit CPR er ikke et tal\")","v":""}]
["Ingen bindestreg. CPR-nummer fremgår af formellinje under tastning, hvorefter det skjules."]
["Rolle","Kursusleder"]
["Jeg sender en faktura"]
[]
["E-mail"]
[]
["Dato for første undervisningsdag DD-MM-ÅÅ:",null,{"$f":"IF(B23>D24+181,\"Datoen ser ud til ikke at passe i enten format eller til perioden\",\"\")","v":""},"Aktuel sats"]
[null,null,null,{"$f":"'Adm.ark satser'!G1","v":"2024-04-01"},{"$f":"IF(D24<((NOW())-180),\"Det ser ud til at du bruger et gammelt ark\",\"\")","v":""}]
[]
[]
[]
["Udfyldes HVIS også underviser","Obligatorisk",null,"Udfyldes automatisk"]
["Antal forelæsningstimer",null,"Udgift til forelæsningstimer ",{"$f":"B29*'Adm.ark satser'!C2","v":0}]
["Antal diskussionstimer",null,"Udgift til diskussionstimer ",{"$f":"B30*'Adm.ark satser'!C3","v":0}]
["Antal medhjælper timer",null,"Udgift til medhjælpertimer",{"$f":"B31*'Adm.ark satser'!C4","v":0}]
[null,null,"Beløb i alt",{"$f":"SUM(D29+D30+D31)","v":0}]
[]
[]
[]
[]
["Udfyldes af delkursusleder"]
["Honorar"]
[null,"Fast honorar på kr. 8.000 - evt. til deling mellem flere delkursusledere"]
["Der udbetales til NemKonto. Lønsedlen sendes til din e-boks. Ved CVR./SE-nr. SKAL der sendes e-faktura til EAN nr: 5798000362147 via sundhedsstyrelsens hjemmeside."]
["Evt. bemærkninger"]
[]
[]
[]
[]
["Den nederste række i fanen Samlingsark skal kopieres med i mail til hovedkursusleder, når delkursusleder kvitterer for oplysningernes rigtighed. "]

{"sheet":"(Evt. delkursusleder 2)","index":4,"n_rows":45,"n_cols":5,"rows_kept":45,"cut":false,"hidden":false,"merged":[[30,1,30,3],[45,0,48,6],[0,1,0,3],[5,1,5,3],[9,1,9,3],[7,2,7,3],[11,1,11,3],[24,1,24,3],[26,1,26,3],[28,2,28,3]]}
[null,"Honorar Delkursusleder 2"]
[null,null,"       Læs mere om de specialespecifikke kurser på Sundhedsstyrelsens","hjemmeside"]
[null,"NB. Skemaet SKAL udfyldes elektronisk"]
["Udfyldes af evt. delkursusleder 2"]
[]
["Navn delkursusleder:"]
[]
["Cpr.nr.:",null,"Jeg sender en faktura"]
["Ingen bindestreg. CPR-nummer fremgår af formellinje under tastning, hvorefter det skjules."]
["Rolle","Kursusleder"]
[{"$f":"IFERROR(IF(LEN(B8)>10,\"CPR-nummer ikke gyldigt - du har mere end 10 tegn med. Husk ikke at inkludere bindestreg\",IF(LEN(B8)=0,\"\",IF(LEN(B8)<10,\"CPR-nummer ikke gyldigt - Du har indtastet for få tegn\",IF(0=MOD(LEFT(B8)*4+MID(B8,2,1)*3+MID(B8,3,1)*2+MID(B8,4,1)*7+MID(B8,5,1)*6+MID(B8,6,1)*5+(MID(B8,7,1)*4+MID(B8,8,1)*3)+MID(B8,9,1)*2+MID(B8,10,1),11),\"\",\"CPR-nummer ikke gyldigt - Tjek cifrene i dit CPR igennem igen\")))),\"CPR-nummer ikke gyldigt - Et af cifrene i dit CPR er ikke et tal\")","v":""}]
["E-mail"]
[]
[]
[]
[]
["Der udbetales til NemKonto. Lønsedlen sendes til din e-boks. "]
["Ved CVR./SE-nr. SKAL der sendes e-faktura til EAN nr: 5798000362147 via sundhedsstyrelsens hjemmeside"]
[]
["Udfyldes af delkursusleder",null,"Max beløb til deling mellem delkursusledere",8000]
["Honorar",null,"Total beløb for delkursusleder 1 og 2",{"$f":"A22+'Delkursusleder 1'!A39","v":0}]
[]
["Udfyldes automatisk, trækkes fra delkursuslederark"]
[]
["Speciale:",{"$f":"'Delkursusleder 1'!B6","v":"[vælg fra liste]"}]
[]
["Kursusnavn:",{"$f":"'Delkursusleder 1'!B8","v":"[vælg fra liste]"}]
[]
["Dato for første undervisningsdag DD-MM-ÅÅ:",{"$f":"'Delkursusleder 1'!B23","v":"00:00:00"},{"$f":"IF(B29>'Delkursusleder 1'!$D$24+181,\"Datoen ser ud til ikke at passe i enten format eller til perioden\",\"\")","v":""}]
[]
["Kursussted, by:",{"$f":"'Delkursusleder 1'!B12:D12","v":0}]
[]
["Udfyldes HVIS også underviser","Obligatorisk",null,"Udfyldes automatisk"]
["Antal forelæsningstimer",null,"Udgift til forelæsningstimer ",{"$f":"B34*'Adm.ark satser'!C2","v":0}]
["Antal diskussionstimer",null,"Udgift til diskussionstimer ",{"$f":"B35*'Adm.ark satser'!C3","v":0}]
["Antal medhjælper timer",null,"Udgift til medhjælpertimer",{"$f":"B36*'Adm.ark satser'!C4","v":0}]
[null,null,"Beløb i alt",{"$f":"SUM(D34+D35+D36)","v":0}]
[]
[null,null,null,"Aktuel sats"]
[null,null,null,{"$f":"'Adm.ark satser'!G1","v":"2024-04-01"},{"$f":"IF(D40<((NOW())-180),\"Det ser ud til at du bruger et gammelt ark\",\"\")","v":""}]
[]
["Dit honorar udbetales til NemKonto. Lønsedlen sendes til din e-boks. "]
["Ved CVR./SE-nr. SKAL der sendes e-faktura til EAN nr: 5798000362147 via sundhedsstyrelsens hjemmeside."]
[]
["Evt. bemærkninger"]

{"sheet":"Honorarlønnet 1","index":5,"n_rows":30,"n_cols":7,"rows_kept":30,"cut":false,"hidden":false,"merged":[[0,1,0,4],[30,0,33,4],[1,2,1,4],[24,1,24,3],[6,2,6,3],[4,1,4,3],[8,1,8,3],[18,1,18,3],[20,1,20,3]]}
[null,"Honorar"]
[null,null,"NB. Skemaet SKAL udfyldes elektronisk"]
["Udfyldes af underviser"]
[{"$f":"IFERROR(IF(LEN(B7)>10,\"CPR-nummer ikke gyldigt - du har mere end 10 tegn med. Husk ikke at inkludere bindestreg\",IF(LEN(B7)=0,\"\",IF(LEN(B7)<10,\"CPR-nummer ikke gyldigt - Du har indtastet for få tegn\",IF(0=MOD(LEFT(B7)*4+MID(B7,2,1)*3+MID(B7,3,1)*2+MID(B7,4,1)*7+MID(B7,5,1)*6+MID(B7,6,1)*5+(MID(B7,7,1)*4+MID(B7,8,1)*3)+MID(B7,9,1)*2+MID(B7,10,1),11),\"\",\"CPR-nummer ikke gyldigt - Tjek cifrene i dit CPR igennem igen\")))),\"CPR-nummer ikke gyldigt - Et af cifrene i dit CPR er ikke et tal\")","v":""}]
["Navn:"]
[]
["Cpr.nr.:",null,"Jeg sender en faktura",null,null,null,"Ja"]
["Ingen bindestreg. CPR-nummer fremgår af formellinje under tastning, hvorefter det skjules.",null,null,null,null,null,"Nej"]
["E-mail"]
[]
["Udfyldes af underviser","Obligatorisk",null,"Udfyldes automatisk","Aktuel sats"]
["Antal forelæsningstimer",null,"Udgift til forelæsningstimer ",{"$f":"B12*'Adm.ark satser'!C2","v":0},{"$f":"'Adm.ark satser'!G1","v":"2024-04-01"}]
["Antal diskussionstimer",null,"Udgift til diskussionstimer ",{"$f":"B13*'Adm.ark satser'!C3","v":0},{"$f":"IF(E12<((NOW())-180),\"Det ser ud til at du bruger et gammelt ark\",\"\")","v":""}]
["Antal medhjælper timer",null,"Udgift til medhjælpertimer",{"$f":"B14*'Adm.ark satser'!C4","v":0}]
[null,null,"Beløb i alt",{"$f":"SUM(D12+D13+D14)","v":0}]
[]
["Udfyldes automatisk, trækkes fra delkursuslederark"]
[]
["Speciale:",{"$f":"'Delkursusleder 1'!B6","v":"[vælg fra liste]"}]
[]
["Kursusnavn:",{"$f":"'Delkursusleder 1'!B8","v":"[vælg fra liste]"}]
[]
["Dato for første undervisningsdag DD-MM-ÅÅ:",{"$f":"+'Delkursusleder 1'!B23","v":"00:00:00"},{"$f":"IF(B23>'Delkursusleder 1'!$D$24+181,\"Datoen ser ud til ikke at passe i enten format eller til perioden\",\"\")","v":""}]
[]
["Kursussted, by:",{"$f":"'Delkursusleder 1'!B12:D12","v":0}]
[]
["Dit honorar udbetales til NemKonto. Lønsedlen sendes til din e-boks. "]
["Ved CVR./SE-nr. SKAL der sendes e-faktura til EAN nr: 5798000362147 via sundhedsstyrelsens hjemmeside."]
[]
["Evt. bemærkninger"]

{"sheet":"Honorarlønnet 2","index":6,"n_rows":30,"n_cols":7,"rows_kept":30,"cut":false,"hidden":false,"merged":[[1,2,1,4],[24,1,24,3],[30,0,33,4],[0,1,0,4],[6,2,6,3],[4,1,4,3],[8,1,8,3],[20,1,20,3],[18,1,18,3]]}
[null,"Honorar"]
[null,null,"NB. Skemaet SKAL udfyldes elektronisk"]
["Udfyldes af underviser"]
[{"$f":"IFERROR(IF(LEN(B7)>10,\"CPR-nummer ikke gyldigt - du har mere end 10 tegn med. Husk ikke at inkludere bindestreg\",IF(LEN(B7)=0,\"\",IF(LEN(B7)<10,\"CPR-nummer ikke gyldigt - Du har indtastet for få tegn\",IF(0=MOD(LEFT(B7)*4+MID(B7,2,1)*3+MID(B7,3,1)*2+MID(B7,4,1)*7+MID(B7,5,1)*6+MID(B7,6,1)*5+(MID(B7,7,1)*4+MID(B7,8,1)*3)+MID(B7,9,1)*2+MID(B7,10,1),11),\"\",\"CPR-nummer ikke gyldigt - Tjek cifrene i dit CPR igennem igen\")))),\"CPR-nummer ikke gyldigt - Et af cifrene i dit CPR er ikke et tal\")","v":""}]
["Navn:"]
[]
["Cpr.nr.:",null,"Jeg sender en faktura",null,null,null,"Ja"]
["Ingen bindestreg. CPR-nummer fremgår af formellinje under tastning, hvorefter det skjules.",null,null,null,null,null,"Nej"]
["E-mail"]
[]
["Udfyldes af underviser","Obligatorisk",null,"Udfyldes automatisk","Aktuel sats"]
["Antal forelæsningstimer",null,"Udgift til forelæsningstimer ",{"$f":"B12*'Adm.ark satser'!C2","v":0},{"$f":"'Adm.ark satser'!G1","v":"2024-04-01"}]
["Antal diskussionstimer",null,"Udgift til diskussionstimer ",{"$f":"B13*'Adm.ark satser'!C3","v":0},{"$f":"IF(E12<((NOW())-180),\"Det ser ud til at du bruger et gammelt ark\",\"\")","v":""}]
["Antal medhjælper timer",null,"Udgift til medhjælpertimer",{"$f":"B14*'Adm.ark satser'!C4","v":0}]
[null,null,"Beløb i alt",{"$f":"SUM(D12+D13+D14)","v":0}]
[]
["Udfyldes automatisk, trækkes fra delkursuslederark"]
[]
["Speciale:",{"$f":"'Delkursusleder 1'!B6","v":"[vælg fra liste]"}]
[]
["Kursusnavn:",{"$f":"'Delkursusleder 1'!B8","v":"[vælg fra liste]"}]
[]
["Dato for første undervisningsdag DD-MM-ÅÅ:",{"$f":"+'Delkursusleder 1'!B23","v":"00:00:00"},{"$f":"IF(B23>'Delkursusleder 1'!$D$24+181,\"Datoen ser ud til ikke at passe i enten format eller til perioden\",\"\")","v":""}]
[]
["Kursussted, by:",{"$f":"'Delkursusleder 1'!B12:D12","v":0}]
[]
["Dit honorar udbetales til NemKonto. Lønsedlen sendes til din e-boks. "]
["Ved CVR./SE-nr. SKAL der sendes e-faktura til EAN nr: 5798000362147 via sundhedsstyrelsens hjemmeside."]
[]
["Evt. bemærkninger"]

{"sheet":"Honorarlønnet 3","index":7,"n_rows":30,"n_cols":5,"rows_kept":30,"cut":false,"hidden":false,"merged":[[1,2,1,4],[24,1,24,3],[30,0,33,4],[0,1,0,4],[6,2,6,3],[8,1,8,3],[4,1,4,3],[20,1,20,3],[18,1,18,3]]}
[null,"Honorar"]
[null,null,"NB. Skemaet SKAL udfyldes elektronisk"]
["Udfyldes af underviser"]
[{"$f":"IFERROR(IF(LEN(B7)>10,\"CPR-nummer ikke gyldigt - du har mere end 10 tegn med. Husk ikke at inkludere bindestreg\",IF(LEN(B7)=0,\"\",IF(LEN(B7)<10,\"CPR-nummer ikke gyldigt - Du har indtastet for få tegn\",IF(0=MOD(LEFT(B7)*4+MID(B7,2,1)*3+MID(B7,3,1)*2+MID(B7,4,1)*7+MID(B7,5,1)*6+MID(B7,6,1)*5+(MID(B7,7,1)*4+MID(B7,8,1)*3)+MID(B7,9,1)*2+MID(B7,10,1),11),\"\",\"CPR-nummer ikke gyldigt - Tjek cifrene i dit CPR igennem igen\")))),\"CPR-nummer ikke gyldigt - Et af cifrene i dit CPR er ikke et tal\")","v":""}]
["Navn:"]
[]
["Cpr.nr.:",null,"Jeg sender en faktura"]
["Ingen bindestreg. CPR-nummer fremgår af formellinje under tastning, hvorefter det skjules."]
["E-mail"]
[]
["Udfyldes af underviser","Obligatorisk",null,"Udfyldes automatisk","Aktuel sats"]
["Antal forelæsningstimer",null,"Udgift til forelæsningstimer ",{"$f":"B12*'Adm.ark satser'!C2","v":0},{"$f":"'Adm.ark satser'!G1","v":"2024-04-01"}]
["Antal diskussionstimer",null,"Udgift til diskussionstimer ",{"$f":"B13*'Adm.ark satser'!C3","v":0},{"$f":"IF(E12<((NOW())-180),\"Det ser ud til at du bruger et gammelt ark\",\"\")","v":""}]
["Antal medhjælper timer",null,"Udgift til medhjælpertimer",{"$f":"B14*'Adm.ark satser'!C4","v":0}]
[null,null,"Beløb i alt",{"$f":"SUM(D12+D13+D14)","v":0}]
[]
["Udfyldes automatisk, trækkes fra delkursuslederark"]
[]
["Speciale:",{"$f":"'Delkursusleder 1'!B6","v":"[vælg fra liste]"}]
[]
["Kursusnavn:",{"$f":"'Delkursusleder 1'!B8","v":"[vælg fra liste]"}]
[]
["Dato for første undervisningsdag DD-MM-ÅÅ:",{"$f":"+'Delkursusleder 1'!B23","v":"00:00:00"},{"$f":"IF(B23>'Delkursusleder 1'!$D$24+181,\"Datoen ser ud til ikke at passe i enten format eller til perioden\",\"\")","v":""}]
[]
["Kursussted, by:",{"$f":"'Delkursusleder 1'!B12:D12","v":0}]
[]
["Dit honorar udbetales til NemKonto. Lønsedlen sendes til din e-boks. "]
["Ved CVR./SE-nr. SKAL der sendes e-faktura til EAN nr: 5798000362147 via sundhedsstyrelsens hjemmeside."]
[]
["Evt. bemærkninger"]

{"sheet":"Honorarlønnet 4","index":8,"n_rows":30,"n_cols":5,"rows_kept":30,"cut":false,"hidden":false,"merged":[[1,2,1,4],[24,1,24,3],[30,0,33,4],[0,1,0,4],[6,2,6,3],[20,1,20,3],[18,1,18,3],[8,1,8,3],[4,1,4,3]]}
[null,"Honorar"]
[null,null,"NB. Skemaet SKAL udfyldes elektronisk"]
["Udfyldes af underviser"]
[{"$f":"IFERROR(IF(LEN(B7)>10,\"CPR-nummer ikke gyldigt - du har mere end 10 tegn med. Husk ikke at inkludere bindestreg\",IF(LEN(B7)=0,\"\",IF(LEN(B7)<10,\"CPR-nummer ikke gyldigt - Du har indtastet for få tegn\",IF(0=MOD(LEFT(B7)*4+MID(B7,2,1)*3+MID(B7,3,1)*2+MID(B7,4,1)*7+MID(B7,5,1)*6+MID(B7,6,1)*5+(MID(B7,7,1)*4+MID(B7,8,1)*3)+MID(B7,9,1)*2+MID(B7,10,1),11),\"\",\"CPR-nummer ikke gyldigt - Tjek cifrene i dit CPR igennem igen\")))),\"CPR-nummer ikke gyldigt - Et af cifrene i dit CPR er ikke et tal\")","v":""}]
["Navn:"]
[]
["Cpr.nr.:",null,"Jeg sender en faktura"]
["Ingen bindestreg. CPR-nummer fremgår af formellinje under tastning, hvorefter det skjules."]
["E-mail"]
[]
["Udfyldes af underviser","Obligatorisk",null,"Udfyldes automatisk","Aktuel sats"]
["Antal forelæsningstimer",null,"Udgift til forelæsningstimer ",{"$f":"B12*'Adm.ark satser'!C2","v":0},{"$f":"'Adm.ark satser'!G1","v":"2024-04-01"}]
["Antal diskussionstimer",null,"Udgift til diskussionstimer ",{"$f":"B13*'Adm.ark satser'!C3","v":0},{"$f":"IF(E12<((NOW())-180),\"Det ser ud til at du bruger et gammelt ark\",\"\")","v":""}]
["Antal medhjælper timer",null,"Udgift til medhjælpertimer",{"$f":"B14*'Adm.ark satser'!C4","v":0}]
[null,null,"Beløb i alt",{"$f":"SUM(D12+D13+D14)","v":0}]
[]
["Udfyldes automatisk, trækkes fra delkursuslederark"]
[]
["Speciale:",{"$f":"'Delkursusleder 1'!B6","v":"[vælg fra liste]"}]
[]
["Kursusnavn:",{"$f":"'Delkursusleder 1'!B8","v":"[vælg fra liste]"}]
[]
["Dato for første undervisningsdag DD-MM-ÅÅ:",{"$f":"+'Delkursusleder 1'!B23","v":"00:00:00"},{"$f":"IF(B23>'Delkursusleder 1'!$D$24+181,\"Datoen ser ud til ikke at passe i enten format eller til perioden\",\"\")","v":""}]
[]
["Kursussted, by:",{"$f":"'Delkursusleder 1'!B12:D12","v":0}]
[]
["Dit honorar udbetales til NemKonto. Lønsedlen sendes til din e-boks. "]
["Ved CVR./SE-nr. SKAL der sendes e-faktura til EAN nr: 5798000362147 via sundhedsstyrelsens hjemmeside."]
[]
["Evt. bemærkninger"]

{"sheet":"Honorarlønnet 5","index":9,"n_rows":30,"n_cols":5,"rows_kept":30,"cut":false,"hidden":false,"merged":[[1,2,1,4],[24,1,24,3],[30,0,33,4],[0,1,0,4],[6,2,6,3],[20,1,20,3],[18,1,18,3],[8,1,8,3],[4,1,4,3]]}
[null,"Honorar"]
[null,null,"NB. Skemaet SKAL udfyldes elektronisk"]
["Udfyldes af underviser"]
[{"$f":"IFERROR(IF(LEN(B7)>10,\"CPR-nummer ikke gyldigt - du har mere end 10 tegn med. Husk ikke at inkludere bindestreg\",IF(LEN(B7)=0,\"\",IF(LEN(B7)<10,\"CPR-nummer ikke gyldigt - Du har indtastet for få tegn\",IF(0=MOD(LEFT(B7)*4+MID(B7,2,1)*3+MID(B7,3,1)*2+MID(B7,4,1)*7+MID(B7,5,1)*6+MID(B7,6,1)*5+(MID(B7,7,1)*4+MID(B7,8,1)*3)+MID(B7,9,1)*2+MID(B7,10,1),11),\"\",\"CPR-nummer ikke gyldigt - Tjek cifrene i dit CPR igennem igen\")))),\"CPR-nummer ikke gyldigt - Et af cifrene i dit CPR er ikke et tal\")","v":""}]
["Navn:"]
[]
["Cpr.nr.:",null,"Jeg sender en faktura"]
["Ingen bindestreg. CPR-nummer fremgår af formellinje under tastning, hvorefter det skjules."]
["E-mail"]
[]
["Udfyldes af underviser","Obligatorisk",null,"Udfyldes automatisk","Aktuel sats"]
["Antal forelæsningstimer",null,"Udgift til forelæsningstimer ",{"$f":"B12*'Adm.ark satser'!C2","v":0},{"$f":"'Adm.ark satser'!G1","v":"2024-04-01"}]
["Antal diskussionstimer",null,"Udgift til diskussionstimer ",{"$f":"B13*'Adm.ark satser'!C3","v":0},{"$f":"IF(E12<((NOW())-180),\"Det ser ud til at du bruger et gammelt ark\",\"\")","v":""}]
["Antal medhjælper timer",null,"Udgift til medhjælpertimer",{"$f":"B14*'Adm.ark satser'!C4","v":0}]
[null,null,"Beløb i alt",{"$f":"SUM(D12+D13+D14)","v":0}]
[]
["Udfyldes automatisk, trækkes fra delkursuslederark"]
[]
["Speciale:",{"$f":"'Delkursusleder 1'!B6","v":"[vælg fra liste]"}]
[]
["Kursusnavn:",{"$f":"'Delkursusleder 1'!B8","v":"[vælg fra liste]"}]
[]
["Dato for første undervisningsdag DD-MM-ÅÅ:",{"$f":"+'Delkursusleder 1'!B23","v":"00:00:00"},{"$f":"IF(B23>'Delkursusleder 1'!$D$24+181,\"Datoen ser ud til ikke at passe i enten format eller til perioden\",\"\")","v":""}]
[]
["Kursussted, by:",{"$f":"'Delkursusleder 1'!B12:D12","v":0}]
[]
["Dit honorar udbetales til NemKonto. Lønsedlen sendes til din e-boks. "]
["Ved CVR./SE-nr. SKAL der sendes e-faktura til EAN nr: 5798000362147 via sundhedsstyrelsens hjemmeside."]
[]
["Evt. bemærkninger"]

{"sheet":"Honorarlønnet 6","index":10,"n_rows":30,"n_cols":5,"rows_kept":30,"cut":false,"hidden":false,"merged":[[1,2,1,4],[24,1,24,3],[30,0,33,4],[0,1,0,4],[6,2,6,3],[20,1,20,3],[18,1,18,3],[8,1,8,3],[4,1,4,3]]}
[null,"Honorar"]
[null,null,"NB. Skemaet SKAL udfyldes elektronisk"]
["Udfyldes af underviser"]
[{"$f":"IFERROR(IF(LEN(B7)>10,\"CPR-nummer ikke gyldigt - du har mere end 10 tegn med. Husk ikke at inkludere bindestreg\",IF(LEN(B7)=0,\"\",IF(LEN(B7)<10,\"CPR-nummer ikke gyldigt - Du har indtastet for få tegn\",IF(0=MOD(LEFT(B7)*4+MID(B7,2,1)*3+MID(B7,3,1)*2+MID(B7,4,1)*7+MID(B7,5,1)*6+MID(B7,6,1)*5+(MID(B7,7,1)*4+MID(B7,8,1)*3)+MID(B7,9,1)*2+MID(B7,10,1),11),\"\",\"CPR-nummer ikke gyldigt - Tjek cifrene i dit CPR igennem igen\")))),\"CPR-nummer ikke gyldigt - Et af cifrene i dit CPR er ikke et tal\")","v":""}]
["Navn:"]
[]
["Cpr.nr.:",null,"Jeg sender en faktura"]
["Ingen bindestreg. CPR-nummer fremgår af formellinje under tastning, hvorefter det skjules."]
["E-mail"]
[]
["Udfyldes af underviser","Obligatorisk",null,"Udfyldes automatisk","Aktuel sats"]
["Antal forelæsningstimer",null,"Udgift til forelæsningstimer ",{"$f":"B12*'Adm.ark satser'!C2","v":0},{"$f":"'Adm.ark satser'!G1","v":"2024-04-01"}]
["Antal diskussionstimer",null,"Udgift til diskussionstimer ",{"$f":"B13*'Adm.ark satser'!C3","v":0},{"$f":"IF(E12<((NOW())-180),\"Det ser ud til at du bruger et gammelt ark\",\"\")","v":""}]
["Antal medhjælper timer",null,"Udgift til medhjælpertimer",{"$f":"B14*'Adm.ark satser'!C4","v":0}]
[null,null,"Beløb i alt",{"$f":"SUM(D12+D13+D14)","v":0}]
[]
["Udfyldes automatisk, trækkes fra delkursuslederark"]
[]
["Speciale:",{"$f":"'Delkursusleder 1'!B6","v":"[vælg fra liste]"}]
[]
["Kursusnavn:",{"$f":"'Delkursusleder 1'!B8","v":"[vælg fra liste]"}]
[]
["Dato for første undervisningsdag DD-MM-ÅÅ:",{"$f":"+'Delkursusleder 1'!B23","v":"00:00:00"},{"$f":"IF(B23>'Delkursusleder 1'!$D$24+181,\"Datoen ser ud til ikke at passe i enten format eller til perioden\",\"\")","v":""}]
[]
["Kursussted, by:",{"$f":"'Delkursusleder 1'!B12:D12","v":0}]
[]
["Dit honorar udbetales til NemKonto. Lønsedlen sendes til din e-boks. "]
["Ved CVR./SE-nr. SKAL der sendes e-faktura til EAN nr: 5798000362147 via sundhedsstyrelsens hjemmeside."]
[]
["Evt. bemærkninger"]

{"sheet":"Honorarlønnet 7","index":11,"n_rows":30,"n_cols":5,"rows_kept":30,"cut":false,"hidden":false,"merged":[[1,2,1,4],[24,1,24,3],[30,0,33,4],[0,1,0,4],[6,2,6,3],[20,1,20,3],[18,1,18,3],[8,1,8,3],[4,1,4,3]]}
[null,"Honorar"]
[null,null,"NB. Skemaet SKAL udfyldes elektronisk"]
["Udfyldes af underviser"]
[{"$f":"IFERROR(IF(LEN(B7)>10,\"CPR-nummer ikke gyldigt - du har mere end 10 tegn med. Husk ikke at inkludere bindestreg\",IF(LEN(B7)=0,\"\",IF(LEN(B7)<10,\"CPR-nummer ikke gyldigt - Du har indtastet for få tegn\",IF(0=MOD(LEFT(B7)*4+MID(B7,2,1)*3+MID(B7,3,1)*2+MID(B7,4,1)*7+MID(B7,5,1)*6+MID(B7,6,1)*5+(MID(B7,7,1)*4+MID(B7,8,1)*3)+MID(B7,9,1)*2+MID(B7,10,1),11),\"\",\"CPR-nummer ikke gyldigt - Tjek cifrene i dit CPR igennem igen\")))),\"CPR-nummer ikke gyldigt - Et af cifrene i dit CPR er ikke et tal\")","v":""}]
["Navn:"]
[]
["Cpr.nr.:",null,"Jeg sender en faktura"]
["Ingen bindestreg. CPR-nummer fremgår af formellinje under tastning, hvorefter det skjules."]
["E-mail"]
[]
["Udfyldes af underviser","Obligatorisk",null,"Udfyldes automatisk","Aktuel sats"]
["Antal forelæsningstimer",null,"Udgift til forelæsningstimer ",{"$f":"B12*'Adm.ark satser'!C2","v":0},{"$f":"'Adm.ark satser'!G1","v":"2024-04-01"}]
["Antal diskussionstimer",null,"Udgift til diskussionstimer ",{"$f":"B13*'Adm.ark satser'!C3","v":0},{"$f":"IF(E12<((NOW())-180),\"Det ser ud til at du bruger et gammelt ark\",\"\")","v":""}]
["Antal medhjælper timer",null,"Udgift til medhjælpertimer",{"$f":"B14*'Adm.ark satser'!C4","v":0}]
[null,null,"Beløb i alt",{"$f":"SUM(D12+D13+D14)","v":0}]
[]
["Udfyldes automatisk, trækkes fra delkursuslederark"]
[]
["Speciale:",{"$f":"'Delkursusleder 1'!B6","v":"[vælg fra liste]"}]
[]
["Kursusnavn:",{"$f":"'Delkursusleder 1'!B8","v":"[vælg fra liste]"}]
[]
["Dato for første undervisningsdag DD-MM-ÅÅ:",{"$f":"+'Delkursusleder 1'!B23","v":"00:00:00"},{"$f":"IF(B23>'Delkursusleder 1'!$D$24+181,\"Datoen ser ud til ikke at passe i enten format eller til perioden\",\"\")","v":""}]
[]
["Kursussted, by:",{"$f":"'Delkursusleder 1'!B12:D12","v":0}]
[]
["Dit honorar udbetales til NemKonto. Lønsedlen sendes til din e-boks. "]
["Ved CVR./SE-nr. SKAL der sendes e-faktura til EAN nr: 5798000362147 via sundhedsstyrelsens hjemmeside."]
[]
["Evt. bemærkninger"]

{"sheet":"Honorarlønnet 8","index":12,"n_rows":30,"n_cols":5,"rows_kept":30,"cut":false,"hidden":false,"merged":[[1,2,1,4],[24,1,24,3],[30,0,33,4],[0,1,0,4],[6,2,6,3],[20,1,20,3],[18,1,18,3],[8,1,8,3],[4,1,4,3]]}
[null,"Honorar"]
[null,null,"NB. Skemaet SKAL udfyldes elektronisk"]
["Udfyldes af underviser"]
[{"$f":"IFERROR(IF(LEN(B7)>10,\"CPR-nummer ikke gyldigt - du har mere end 10 tegn med. Husk ikke at inkludere bindestreg\",IF(LEN(B7)=0,\"\",IF(LEN(B7)<10,\"CPR-nummer ikke gyldigt - Du har indtastet for få tegn\",IF(0=MOD(LEFT(B7)*4+MID(B7,2,1)*3+MID(B7,3,1)*2+MID(B7,4,1)*7+MID(B7,5,1)*6+MID(B7,6,1)*5+(MID(B7,7,1)*4+MID(B7,8,1)*3)+MID(B7,9,1)*2+MID(B7,10,1),11),\"\",\"CPR-nummer ikke gyldigt - Tjek cifrene i dit CPR igennem igen\")))),\"CPR-nummer ikke gyldigt - Et af cifrene i dit CPR er ikke et tal\")","v":""}]
["Navn:"]
[]
["Cpr.nr.:",null,"Jeg sender en faktura"]
["Ingen bindestreg. CPR-nummer fremgår af formellinje under tastning, hvorefter det skjules."]
["E-mail"]
[]
["Udfyldes af underviser","Obligatorisk",null,"Udfyldes automatisk","Aktuel sats"]
["Antal forelæsningstimer",null,"Udgift til forelæsningstimer ",{"$f":"B12*'Adm.ark satser'!C2","v":0},{"$f":"'Adm.ark satser'!G1","v":"2024-04-01"}]
["Antal diskussionstimer",null,"Udgift til diskussionstimer ",{"$f":"B13*'Adm.ark satser'!C3","v":0},{"$f":"IF(E12<((NOW())-180),\"Det ser ud til at du bruger et gammelt ark\",\"\")","v":""}]
["Antal medhjælper timer",null,"Udgift til medhjælpertimer",{"$f":"B14*'Adm.ark satser'!C4","v":0}]
[null,null,"Beløb i alt",{"$f":"SUM(D12+D13+D14)","v":0}]
[]
["Udfyldes automatisk, trækkes fra delkursuslederark"]
[]
["Speciale:",{"$f":"'Delkursusleder 1'!B6","v":"[vælg fra liste]"}]
[]
["Kursusnavn:",{"$f":"'Delkursusleder 1'!B8","v":"[vælg fra liste]"}]
[]
["Dato for første undervisningsdag DD-MM-ÅÅ:",{"$f":"+'Delkursusleder 1'!B23","v":"00:00:00"},{"$f":"IF(B23>'Delkursusleder 1'!$D$24+181,\"Datoen ser ud til ikke at passe i enten format eller til perioden\",\"\")","v":""}]
[]
["Kursussted, by:",{"$f":"'Delkursusleder 1'!B12:D12","v":0}]
[]
["Dit honorar udbetales til NemKonto. Lønsedlen sendes til din e-boks. "]
["Ved CVR./SE-nr. SKAL der sendes e-faktura til EAN nr: 5798000362147 via sundhedsstyrelsens hjemmeside."]
[]
["Evt. bemærkninger"]

{"sheet":"Honorarlønnet 9","index":13,"n_rows":30,"n_cols":5,"rows_kept":30,"cut":false,"hidden":false,"merged":[[1,2,1,4],[24,1,24,3],[30,0,33,4],[0,1,0,4],[6,2,6,3],[20,1,20,3],[18,1,18,3],[8,1,8,3],[4,1,4,3]]}
[null,"Honorar"]
[null,null,"NB. Skemaet SKAL udfyldes elektronisk"]
["Udfyldes af underviser"]
[{"$f":"IFERROR(IF(LEN(B7)>10,\"CPR-nummer ikke gyldigt - du har mere end 10 tegn med. Husk ikke at inkludere bindestreg\",IF(LEN(B7)=0,\"\",IF(LEN(B7)<10,\"CPR-nummer ikke gyldigt - Du har indtastet for få tegn\",IF(0=MOD(LEFT(B7)*4+MID(B7,2,1)*3+MID(B7,3,1)*2+MID(B7,4,1)*7+MID(B7,5,1)*6+MID(B7,6,1)*5+(MID(B7,7,1)*4+MID(B7,8,1)*3)+MID(B7,9,1)*2+MID(B7,10,1),11),\"\",\"CPR-nummer ikke gyldigt - Tjek cifrene i dit CPR igennem igen\")))),\"CPR-nummer ikke gyldigt - Et af cifrene i dit CPR er ikke et tal\")","v":""}]
["Navn:"]
[]
["Cpr.nr.:",null,"Jeg sender en faktura"]
["Ingen bindestreg. CPR-nummer fremgår af formellinje under tastning, hvorefter det skjules."]
["E-mail"]
[]
["Udfyldes af underviser","Obligatorisk",null,"Udfyldes automatisk","Aktuel sats"]
["Antal forelæsningstimer",null,"Udgift til forelæsningstimer ",{"$f":"B12*'Adm.ark satser'!C2","v":0},{"$f":"'Adm.ark satser'!G1","v":"2024-04-01"}]
["Antal diskussionstimer",null,"Udgift til diskussionstimer ",{"$f":"B13*'Adm.ark satser'!C3","v":0},{"$f":"IF(E12<((NOW())-180),\"Det ser ud til at du bruger et gammelt ark\",\"\")","v":""}]
["Antal medhjælper timer",null,"Udgift til medhjælpertimer",{"$f":"B14*'Adm.ark satser'!C4","v":0}]
[null,null,"Beløb i alt",{"$f":"SUM(D12+D13+D14)","v":0}]
[]
["Udfyldes automatisk, trækkes fra delkursuslederark"]
[]
["Speciale:",{"$f":"'Delkursusleder 1'!B6","v":"[vælg fra liste]"}]
[]
["Kursusnavn:",{"$f":"'Delkursusleder 1'!B8","v":"[vælg fra liste]"}]
[]
["Dato for første undervisningsdag DD-MM-ÅÅ:",{"$f":"+'Delkursusleder 1'!B23","v":"00:00:00"},{"$f":"IF(B23>'Delkursusleder 1'!$D$24+181,\"Datoen ser ud til ikke at passe i enten format eller til perioden\",\"\")","v":""}]
[]
["Kursussted, by:",{"$f":"'Delkursusleder 1'!B12:D12","v":0}]
[]
["Dit honorar udbetales til NemKonto. Lønsedlen sendes til din e-boks. "]
["Ved CVR./SE-nr. SKAL der sendes e-faktura til EAN nr: 5798000362147 via sundhedsstyrelsens hjemmeside."]
[]
["Evt. bemærkninger"]

{"sheet":"Honorarlønnet 10","index":14,"n_rows":30,"n_cols":5,"rows_kept":30,"cut":false,"hidden":false,"merged":[[1,2,1,4],[24,1,24,3],[30,0,33,4],[0,1,0,4],[6,2,6,3],[20,1,20,3],[18,1,18,3],[8,1,8,3],[4,1,4,3]]}
[null,"Honorar"]
[null,null,"NB. Skemaet SKAL udfyldes elektronisk"]
["Udfyldes af underviser"]
[{"$f":"IFERROR(IF(LEN(B7)>10,\"CPR-nummer ikke gyldigt - du har mere end 10 tegn med. Husk ikke at inkludere bindestreg\",IF(LEN(B7)=0,\"\",IF(LEN(B7)<10,\"CPR-nummer ikke gyldigt - Du har indtastet for få tegn\",IF(0=MOD(LEFT(B7)*4+MID(B7,2,1)*3+MID(B7,3,1)*2+MID(B7,4,1)*7+MID(B7,5,1)*6+MID(B7,6,1)*5+(MID(B7,7,1)*4+MID(B7,8,1)*3)+MID(B7,9,1)*2+MID(B7,10,1),11),\"\",\"CPR-nummer ikke gyldigt - Tjek cifrene i dit CPR igennem igen\")))),\"CPR-nummer ikke gyldigt - Et af cifrene i dit CPR er ikke et tal\")","v":""}]
["Navn:"]
[]
["Cpr.nr.:",null,"Jeg sender en faktura"]
["Ingen bindestreg. CPR-nummer fremgår af formellinje under tastning, hvorefter det skjules."]
["E-mail"]
[]
["Udfyldes af underviser","Obligatorisk",null,"Udfyldes automatisk","Aktuel sats"]
["Antal forelæsningstimer",null,"Udgift til forelæsningstimer ",{"$f":"B12*'Adm.ark satser'!C2","v":0},{"$f":"'Adm.ark satser'!G1","v":"2024-04-01"}]
["Antal diskussionstimer",null,"Udgift til diskussionstimer ",{"$f":"B13*'Adm.ark satser'!C3","v":0},{"$f":"IF(E12<((NOW())-180),\"Det ser ud til at du bruger et gammelt ark\",\"\")","v":""}]
["Antal medhjælper timer",null,"Udgift til medhjælpertimer",{"$f":"B14*'Adm.ark satser'!C4","v":0}]
[null,null,"Beløb i alt",{"$f":"SUM(D12+D13+D14)","v":0}]
[]
["Udfyldes automatisk, trækkes fra delkursuslederark"]
[]
["Speciale:",{"$f":"'Delkursusleder 1'!B6","v":"[vælg fra liste]"}]
[]
["Kursusnavn:",{"$f":"'Delkursusleder 1'!B8","v":"[vælg fra liste]"}]
[]
["Dato for første undervisningsdag DD-MM-ÅÅ:",{"$f":"+'Delkursusleder 1'!B23","v":"00:00:00"},{"$f":"IF(B23>'Delkursusleder 1'!$D$24+181,\"Datoen ser ud til ikke at passe i enten format eller til perioden\",\"\")","v":""}]
[]
["Kursussted, by:",{"$f":"'Delkursusleder 1'!B12:D12","v":0}]
[]
["Dit honorar udbetales til NemKonto. Lønsedlen sendes til din e-boks. "]
["Ved CVR./SE-nr. SKAL der sendes e-faktura til EAN nr: 5798000362147 via sundhedsstyrelsens hjemmeside."]
[]
["Evt. bemærkninger"]

{"sheet":"Honorarlønnet 11","index":15,"n_rows":30,"n_cols":5,"rows_kept":30,"cut":false,"hidden":false,"merged":[[1,2,1,4],[24,1,24,3],[30,0,33,4],[0,1,0,4],[6,2,6,3],[20,1,20,3],[18,1,18,3],[8,1,8,3],[4,1,4,3]]}
[null,"Honorar"]
[null,null,"NB. Skemaet SKAL udfyldes elektronisk"]
["Udfyldes af underviser"]
[{"$f":"IFERROR(IF(LEN(B7)>10,\"CPR-nummer ikke gyldigt - du har mere end 10 tegn med. Husk ikke at inkludere bindestreg\",IF(LEN(B7)=0,\"\",IF(LEN(B7)<10,\"CPR-nummer ikke gyldigt - Du har indtastet for få tegn\",IF(0=MOD(LEFT(B7)*4+MID(B7,2,1)*3+MID(B7,3,1)*2+MID(B7,4,1)*7+MID(B7,5,1)*6+MID(B7,6,1)*5+(MID(B7,7,1)*4+MID(B7,8,1)*3)+MID(B7,9,1)*2+MID(B7,10,1),11),\"\",\"CPR-nummer ikke gyldigt - Tjek cifrene i dit CPR igennem igen\")))),\"CPR-nummer ikke gyldigt - Et af cifrene i dit CPR er ikke et tal\")","v":""}]
["Navn:"]
[]
["Cpr.nr.:",null,"Jeg sender en faktura"]
["Ingen bindestreg. CPR-nummer fremgår af formellinje under tastning, hvorefter det skjules."]
["E-mail"]
[]
["Udfyldes af underviser","Obligatorisk",null,"Udfyldes automatisk","Aktuel sats"]
["Antal forelæsningstimer",null,"Udgift til forelæsningstimer ",{"$f":"B12*'Adm.ark satser'!C2","v":0},{"$f":"'Adm.ark satser'!G1","v":"2024-04-01"}]
["Antal diskussionstimer",null,"Udgift til diskussionstimer ",{"$f":"B13*'Adm.ark satser'!C3","v":0},{"$f":"IF(E12<((NOW())-180),\"Det ser ud til at du bruger et gammelt ark\",\"\")","v":""}]
["Antal medhjælper timer",null,"Udgift til medhjælpertimer",{"$f":"B14*'Adm.ark satser'!C4","v":0}]
[null,null,"Beløb i alt",{"$f":"SUM(D12+D13+D14)","v":0}]
[]
["Udfyldes automatisk, trækkes fra delkursuslederark"]
[]
["Speciale:",{"$f":"'Delkursusleder 1'!B6","v":"[vælg fra liste]"}]
[]
["Kursusnavn:",{"$f":"'Delkursusleder 1'!B8","v":"[vælg fra liste]"}]
[]
["Dato for første undervisningsdag DD-MM-ÅÅ:",{"$f":"+'Delkursusleder 1'!B23","v":"00:00:00"},{"$f":"IF(B23>'Delkursusleder 1'!$D$24+181,\"Datoen ser ud til ikke at passe i enten format eller til perioden\",\"\")","v":""}]
[]
["Kursussted, by:",{"$f":"'Delkursusleder 1'!B12:D12","v":0}]
[]
["Dit honorar udbetales til NemKonto. Lønsedlen sendes til din e-boks. "]
["Ved CVR./SE-nr. SKAL der sendes e-faktura til EAN nr: 5798000362147 via sundhedsstyrelsens hjemmeside."]
[]
["Evt. bemærkninger"]

{"sheet":"Honorarlønnet 12","index":16,"n_rows":30,"n_cols":5,"rows_kept":30,"cut":false,"hidden":false,"merged":[[1,2,1,4],[24,1,24,3],[30,0,33,4],[0,1,0,4],[6,2,6,3],[20,1,20,3],[18,1,18,3],[8,1,8,3],[4,1,4,3]]}
[null,"Honorar"]
[null,null,"NB. Skemaet SKAL udfyldes elektronisk"]
["Udfyldes af underviser"]
[{"$f":"IFERROR(IF(LEN(B7)>10,\"CPR-nummer ikke gyldigt - du har mere end 10 tegn med. Husk ikke at inkludere bindestreg\",IF(LEN(B7)=0,\"\",IF(LEN(B7)<10,\"CPR-nummer ikke gyldigt - Du har indtastet for få tegn\",IF(0=MOD(LEFT(B7)*4+MID(B7,2,1)*3+MID(B7,3,1)*2+MID(B7,4,1)*7+MID(B7,5,1)*6+MID(B7,6,1)*5+(MID(B7,7,1)*4+MID(B7,8,1)*3)+MID(B7,9,1)*2+MID(B7,10,1),11),\"\",\"CPR-nummer ikke gyldigt - Tjek cifrene i dit CPR igennem igen\")))),\"CPR-nummer ikke gyldigt - Et af cifrene i dit CPR er ikke et tal\")","v":""}]
["Navn:"]
[]
["Cpr.nr.:",null,"Jeg sender en faktura"]
["Ingen bindestreg. CPR-nummer fremgår af formellinje under tastning, hvorefter det skjules."]
["E-mail"]
[]
["Udfyldes af underviser","Obligatorisk",null,"Udfyldes automatisk","Aktuel sats"]
["Antal forelæsningstimer",null,"Udgift til forelæsningstimer ",{"$f":"B12*'Adm.ark satser'!C2","v":0},{"$f":"'Adm.ark satser'!G1","v":"2024-04-01"}]
["Antal diskussionstimer",null,"Udgift til diskussionstimer ",{"$f":"B13*'Adm.ark satser'!C3","v":0},{"$f":"IF(E12<((NOW())-180),\"Det ser ud til at du bruger et gammelt ark\",\"\")","v":""}]
["Antal medhjælper timer",null,"Udgift til medhjælpertimer",{"$f":"B14*'Adm.ark satser'!C4","v":0}]
[null,null,"Beløb i alt",{"$f":"SUM(D12+D13+D14)","v":0}]
[]
["Udfyldes automatisk, trækkes fra delkursuslederark"]
[]
["Speciale:",{"$f":"'Delkursusleder 1'!B6","v":"[vælg fra liste]"}]
[]
["Kursusnavn:",{"$f":"'Delkursusleder 1'!B8","v":"[vælg fra liste]"}]
[]
["Dato for første undervisningsdag DD-MM-ÅÅ:",{"$f":"+'Delkursusleder 1'!B23","v":"00:00:00"},{"$f":"IF(B23>'Delkursusleder 1'!$D$24+181,\"Datoen ser ud til ikke at passe i enten format eller til perioden\",\"\")","v":""}]
[]
["Kursussted, by:",{"$f":"'Delkursusleder 1'!B12:D12","v":0}]
[]
["Dit honorar udbetales til NemKonto. Lønsedlen sendes til din e-boks. "]
["Ved CVR./SE-nr. SKAL der sendes e-faktura til EAN nr: 5798000362147 via sundhedsstyrelsens hjemmeside."]
[]
["Evt. bemærkninger"]

{"sheet":"Honorarlønnet 13","index":17,"n_rows":30,"n_cols":5,"rows_kept":30,"cut":false,"hidden":false,"merged":[[0,1,0,4],[1,2,1,4],[24,1,24,3],[30,0,33,4],[6,2,6,3],[20,1,20,3],[18,1,18,3],[8,1,8,3],[4,1,4,3]]}
[null,"Honorar"]
[null,null,"NB. Skemaet SKAL udfyldes elektronisk"]
["Udfyldes af underviser"]
[{"$f":"IFERROR(IF(LEN(B7)>10,\"CPR-nummer ikke gyldigt - du har mere end 10 tegn med. Husk ikke at inkludere bindestreg\",IF(LEN(B7)=0,\"\",IF(LEN(B7)<10,\"CPR-nummer ikke gyldigt - Du har indtastet for få tegn\",IF(0=MOD(LEFT(B7)*4+MID(B7,2,1)*3+MID(B7,3,1)*2+MID(B7,4,1)*7+MID(B7,5,1)*6+MID(B7,6,1)*5+(MID(B7,7,1)*4+MID(B7,8,1)*3)+MID(B7,9,1)*2+MID(B7,10,1),11),\"\",\"CPR-nummer ikke gyldigt - Tjek cifrene i dit CPR igennem igen\")))),\"CPR-nummer ikke gyldigt - Et af cifrene i dit CPR er ikke et tal\")","v":""}]
["Navn:"]
[]
["Cpr.nr.:",null,"Jeg sender en faktura"]
["Ingen bindestreg. CPR-nummer fremgår af formellinje under tastning, hvorefter det skjules."]
["E-mail"]
[]
["Udfyldes af underviser","Obligatorisk",null,"Udfyldes automatisk","Aktuel sats"]
["Antal forelæsningstimer",null,"Udgift til forelæsningstimer ",{"$f":"B12*'Adm.ark satser'!C2","v":0},{"$f":"'Adm.ark satser'!G1","v":"2024-04-01"}]
["Antal diskussionstimer",null,"Udgift til diskussionstimer ",{"$f":"B13*'Adm.ark satser'!C3","v":0},{"$f":"IF(E12<((NOW())-180),\"Det ser ud til at du bruger et gammelt ark\",\"\")","v":""}]
["Antal medhjælper timer",null,"Udgift til medhjælpertimer",{"$f":"B14*'Adm.ark satser'!C4","v":0}]
[null,null,"Beløb i alt",{"$f":"SUM(D12+D13+D14)","v":0}]
[]
["Udfyldes automatisk, trækkes fra delkursuslederark"]
[]
["Speciale:",{"$f":"'Delkursusleder 1'!B6","v":"[vælg fra liste]"}]
[]
["Kursusnavn:",{"$f":"'Delkursusleder 1'!B8","v":"[vælg fra liste]"}]
[]
["Dato for første undervisningsdag DD-MM-ÅÅ:",{"$f":"+'Delkursusleder 1'!B23","v":"00:00:00"},{"$f":"IF(B23>'Delkursusleder 1'!$D$24+181,\"Datoen ser ud til ikke at passe i enten format eller til perioden\",\"\")","v":""}]
[]
["Kursussted, by:",{"$f":"'Delkursusleder 1'!B12:D12","v":0}]
[]
["Dit honorar udbetales til NemKonto. Lønsedlen sendes til din e-boks. "]
["Ved CVR./SE-nr. SKAL der sendes e-faktura til EAN nr: 5798000362147 via sundhedsstyrelsens hjemmeside."]
[]
["Evt. bemærkninger"]

{"sheet":"Honorarlønnet 14","index":18,"n_rows":30,"n_cols":5,"rows_kept":30,"cut":false,"hidden":false,"merged":[[0,1,0,4],[1,2,1,4],[24,1,24,3],[30,0,33,4],[6,2,6,3],[4,1,4,3],[20,1,20,3],[18,1,18,3],[8,1,8,3]]}
[null,"Honorar"]
[null,null,"NB. Skemaet SKAL udfyldes elektronisk"]
["Udfyldes af underviser"]
[{"$f":"IFERROR(IF(LEN(B7)>10,\"CPR-nummer ikke gyldigt - du har mere end 10 tegn med. Husk ikke at inkludere bindestreg\",IF(LEN(B7)=0,\"\",IF(LEN(B7)<10,\"CPR-nummer ikke gyldigt - Du har indtastet for få tegn\",IF(0=MOD(LEFT(B7)*4+MID(B7,2,1)*3+MID(B7,3,1)*2+MID(B7,4,1)*7+MID(B7,5,1)*6+MID(B7,6,1)*5+(MID(B7,7,1)*4+MID(B7,8,1)*3)+MID(B7,9,1)*2+MID(B7,10,1),11),\"\",\"CPR-nummer ikke gyldigt - Tjek cifrene i dit CPR igennem igen\")))),\"CPR-nummer ikke gyldigt - Et af cifrene i dit CPR er ikke et tal\")","v":""}]
["Navn:"]
[]
["Cpr.nr.:",null,"Jeg sender en faktura"]
["Ingen bindestreg. CPR-nummer fremgår af formellinje under tastning, hvorefter det skjules."]
["E-mail"]
[]
["Udfyldes af underviser","Obligatorisk",null,"Udfyldes automatisk","Aktuel sats"]
["Antal forelæsningstimer",null,"Udgift til forelæsningstimer ",{"$f":"B12*'Adm.ark satser'!C2","v":0},{"$f":"'Adm.ark satser'!G1","v":"2024-04-01"}]
["Antal diskussionstimer",null,"Udgift til diskussionstimer ",{"$f":"B13*'Adm.ark satser'!C3","v":0},{"$f":"IF(E12<((NOW())-180),\"Det ser ud til at du bruger et gammelt ark\",\"\")","v":""}]
["Antal medhjælper timer",null,"Udgift til medhjælpertimer",{"$f":"B14*'Adm.ark satser'!C4","v":0}]
[null,null,"Beløb i alt",{"$f":"SUM(D12+D13+D14)","v":0}]
[]
["Udfyldes automatisk, trækkes fra delkursuslederark"]
[]
["Speciale:",{"$f":"'Delkursusleder 1'!B6","v":"[vælg fra liste]"}]
[]
["Kursusnavn:",{"$f":"'Delkursusleder 1'!B8","v":"[vælg fra liste]"}]
[]
["Dato for første undervisningsdag DD-MM-ÅÅ:",{"$f":"+'Delkursusleder 1'!B23","v":"00:00:00"},{"$f":"IF(B23>'Delkursusleder 1'!$D$24+181,\"Datoen ser ud til ikke at passe i enten format eller til perioden\",\"\")","v":""}]
[]
["Kursussted, by:",{"$f":"'Delkursusleder 1'!B12:D12","v":0}]
[]
["Dit honorar udbetales til NemKonto. Lønsedlen sendes til din e-boks. "]
["Ved CVR./SE-nr. SKAL der sendes e-faktura til EAN nr: 5798000362147 via sundhedsstyrelsens hjemmeside."]
[]
["Evt. bemærkninger"]

{"sheet":"Honorarlønnet 15","index":19,"n_rows":30,"n_cols":5,"rows_kept":30,"cut":false,"hidden":false,"merged":[[0,1,0,4],[1,2,1,4],[24,1,24,3],[30,0,33,4],[6,2,6,3],[20,1,20,3],[18,1,18,3],[8,1,8,3],[4,1,4,3]]}
[null,"Honorar"]
[null,null,"NB. Skemaet SKAL udfyldes elektronisk"]
["Udfyldes af underviser"]
[{"$f":"IFERROR(IF(LEN(B7)>10,\"CPR-nummer ikke gyldigt - du har mere end 10 tegn med. Husk ikke at inkludere bindestreg\",IF(LEN(B7)=0,\"\",IF(LEN(B7)<10,\"CPR-nummer ikke gyldigt - Du har indtastet for få tegn\",IF(0=MOD(LEFT(B7)*4+MID(B7,2,1)*3+MID(B7,3,1)*2+MID(B7,4,1)*7+MID(B7,5,1)*6+MID(B7,6,1)*5+(MID(B7,7,1)*4+MID(B7,8,1)*3)+MID(B7,9,1)*2+MID(B7,10,1),11),\"\",\"CPR-nummer ikke gyldigt - Tjek cifrene i dit CPR igennem igen\")))),\"CPR-nummer ikke gyldigt - Et af cifrene i dit CPR er ikke et tal\")","v":""}]
["Navn:"]
[]
["Cpr.nr.:",null,"Jeg sender en faktura"]
["Ingen bindestreg. CPR-nummer fremgår af formellinje under tastning, hvorefter det skjules."]
["E-mail"]
[]
["Udfyldes af underviser","Obligatorisk",null,"Udfyldes automatisk","Aktuel sats"]
["Antal forelæsningstimer",null,"Udgift til forelæsningstimer ",{"$f":"B12*'Adm.ark satser'!C2","v":0},{"$f":"'Adm.ark satser'!G1","v":"2024-04-01"}]
["Antal diskussionstimer",null,"Udgift til diskussionstimer ",{"$f":"B13*'Adm.ark satser'!C3","v":0},{"$f":"IF(E12<((NOW())-180),\"Det ser ud til at du bruger et gammelt ark\",\"\")","v":""}]
["Antal medhjælper timer",null,"Udgift til medhjælpertimer",{"$f":"B14*'Adm.ark satser'!C4","v":0}]
[null,null,"Beløb i alt",{"$f":"SUM(D12+D13+D14)","v":0}]
[]
["Udfyldes automatisk, trækkes fra delkursuslederark"]
[]
["Speciale:",{"$f":"'Delkursusleder 1'!B6","v":"[vælg fra liste]"}]
[]
["Kursusnavn:",{"$f":"'Delkursusleder 1'!B8","v":"[vælg fra liste]"}]
[]
["Dato for første undervisningsdag DD-MM-ÅÅ:",{"$f":"+'Delkursusleder 1'!B23","v":"00:00:00"},{"$f":"IF(B23>'Delkursusleder 1'!$D$24+181,\"Datoen ser ud til ikke at passe i enten format eller til perioden\",\"\")","v":""}]
[]
["Kursussted, by:",{"$f":"'Delkursusleder 1'!B12:D12","v":0}]
[]
["Dit honorar udbetales til NemKonto. Lønsedlen sendes til din e-boks. "]
["Ved CVR./SE-nr. SKAL der sendes e-faktura til EAN nr: 5798000362147 via sundhedsstyrelsens hjemmeside."]
[]
["Evt. bemærkninger"]

{"sheet":"Sekretær","index":20,"n_rows":25,"n_cols":6,"rows_kept":25,"cut":false,"hidden":false,"merged":[[6,5,6,6],[0,1,0,3],[1,2,1,3],[25,0,28,3],[19,1,19,2],[6,1,6,3],[4,1,4,3],[8,1,8,3],[17,1,17,3],[15,1,15,3]]}
[null,"Honorar Sekretær"]
[null,null,"NB. Skemaet SKAL udfyldes elektronisk"]
["Udfyldes af sekretær"]
[{"$f":"IFERROR(IF(LEN(B7)>10,\"CPR-nummer ikke gyldigt - du har mere end 10 tegn med. Husk ikke at inkludere bindestreg\",IF(LEN(B7)=0,\"\",IF(LEN(B7)<10,\"CPR-nummer ikke gyldigt - Du har indtastet for få tegn\",IF(0=MOD(LEFT(B7)*4+MID(B7,2,1)*3+MID(B7,3,1)*2+MID(B7,4,1)*7+MID(B7,5,1)*6+MID(B7,6,1)*5+(MID(B7,7,1)*4+MID(B7,8,1)*3)+MID(B7,9,1)*2+MID(B7,10,1),11),\"\",\"CPR-nummer ikke gyldigt - Tjek cifrene i dit CPR igennem igen\")))),\"CPR-nummer ikke gyldigt - Et af cifrene i dit CPR er ikke et tal\")","v":""}]
["Navn:"]
[]
["Cpr.nr.: ",null,null,null,null,"Jeg sender en faktura"]
[null,"Ingen bindestreg. CPR-nummer er skjult."]
["E-mail"]
[]
["Honorar sekretær\n (tast her)",null,"Max beløb til deling mellem sekretær og hovedkursusleder",{"$f":"'Adm.ark satser'!K2","v":9000}]
[null,null,"Total beløb for sekretær og hovedkursusleder",{"$f":"A12+Hovedkursusleder!A12","v":0}]
[]
["Udfyldes automatisk, trækkes fra delkursuslederark"]
[]
["Speciale:",{"$f":"'Delkursusleder 1'!B6","v":"[vælg fra liste]"}]
[]
["Kursusnavn:",{"$f":"'Delkursusleder 1'!B8","v":"[vælg fra liste]"}]
[]
["Dato for første undervisningsdag DD-MM-ÅÅ:",{"$f":"+'Delkursusleder 1'!B23","v":"00:00:00"},null,{"$f":"'Honorarlønnet 15'!C23","v":""}]
[]
["Dit honorar udbetales til NemKonto. Lønsedlen sendes til din e-boks. "]
["Ved CVR./SE-nr. SKAL der sendes e-faktura til EAN nr: 5798000362147 via sundhedsstyrelsens hjemmeside."]
[]
["Evt. bemærkninger"]

{"sheet":"Samlingsark","index":21,"n_rows":24,"n_cols":14,"rows_kept":24,"cut":false,"hidden":false,"merged":[[0,0,0,13],[1,0,2,0],[1,1,2,1],[1,2,2,2],[1,3,2,3],[1,4,2,4],[1,5,2,5],[1,6,2,6],[1,7,2,7],[1,13,2,13]]}
["Udfyldes automatisk"]
["Rolle","Navn","CPR","Kursusnummer","Antal sekretær timer","Antal forelæsningstimer","Antal diskussionstimer","Antal medhjælpertimer","Delkursuslederhonrar","Administrationshonorar","Forelæsningstimer ","Diskususionstimer ","Medhjælpertimer","Beløb i alt"]
[null,null,null,null,null,null,null,null,"Udgiftstype 4","Udgiftstype 5","Udgiftstype 1","Udgiftstype 2","Udgiftstype 3"]
["Delkursusleder 1",{"$f":"'Delkursusleder 1'!B14:D14","v":0},{"$f":"'Delkursusleder 1'!B16","v":0},{"$f":"'Delkursusleder 1'!B10","v":"Kursusnummer findes automatisk efter du har indtastet speciale/kursusnavn"},"-",{"$f":"'Delkursusleder 1'!B29","v":0},{"$f":"'Delkursusleder 1'!B30","v":0},{"$f":"'Delkursusleder 1'!B31","v":0},{"$f":"'Delkursusleder 1'!A39","v":0},"-",{"$f":"'Delkursusleder 1'!D29","v":0},{"$f":"'Delkursusleder 1'!D30","v":0},{"$f":"'Delkursusleder 1'!D31","v":0},{"$f":"I4+K4+L4+M4","v":0}]
["Evt. delkursusleder 2",{"$f":"'(Evt. delkursusleder 2)'!B6:D6","v":0},{"$f":"'(Evt. delkursusleder 2)'!B8","v":0},{"$f":"'Delkursusleder 1'!$B$10","v":"Kursusnummer findes automatisk efter du har indtastet speciale/kursusnavn"},"-",{"$f":"'(Evt. delkursusleder 2)'!B34","v":0},{"$f":"'(Evt. delkursusleder 2)'!B35","v":0},{"$f":"'(Evt. delkursusleder 2)'!B36","v":0},{"$f":"+'(Evt. delkursusleder 2)'!A22","v":0},"-",{"$f":"'(Evt. delkursusleder 2)'!D34","v":0},{"$f":"'(Evt. delkursusleder 2)'!D35","v":0},{"$f":"'(Evt. delkursusleder 2)'!D36","v":0},{"$f":"I5+K5+L5+M5","v":0}]
["Hovedkursusleder",{"$f":"+Hovedkursusleder!B5:D5","v":0},{"$f":"+Hovedkursusleder!B7","v":0},{"$f":"'Delkursusleder 1'!$B$10","v":"Kursusnummer findes automatisk efter du har indtastet speciale/kursusnavn"},"-","-","-","-","-",{"$f":"+Hovedkursusleder!A12","v":0},"-","-","-",{"$f":"J6","v":0}]
["Sekretær",{"$f":"Sekretær!B5","v":0},{"$f":"+Sekretær!B7","v":0},{"$f":"'Delkursusleder 1'!$B$10","v":"Kursusnummer findes automatisk efter du har indtastet speciale/kursusnavn"},"-","-","-","-","-",{"$f":"+Sekretær!A12","v":0},"-","-","-",{"$f":"J7","v":0}]
["Honorarlønnet 1",{"$f":"'Honorarlønnet 1'!B5","v":0},{"$f":"+'Honorarlønnet 1'!$B$7","v":0},{"$f":"'Delkursusleder 1'!$B$10","v":"Kursusnummer findes automatisk efter du har indtastet speciale/kursusnavn"},"-",{"$f":"'Honorarlønnet 1'!B12","v":0},{"$f":"'Honorarlønnet 1'!B13","v":0},{"$f":"'Honorarlønnet 1'!B14","v":0},"-","-",{"$f":"'Honorarlønnet 1'!$D$12","v":0},{"$f":"'Honorarlønnet 1'!$D$13","v":0},{"$f":"'Honorarlønnet 1'!$D$14","v":0},{"$f":"K8+L8+M8","v":0}]
["Honorarlønnet 2",{"$f":"'Honorarlønnet 2'!B5","v":0},{"$f":"+'Honorarlønnet 2'!$B$7","v":0},{"$f":"'Delkursusleder 1'!$B$10","v":"Kursusnummer findes automatisk efter du har indtastet speciale/kursusnavn"},"-",{"$f":"+'Honorarlønnet 2'!$B12","v":0},{"$f":"+'Honorarlønnet 2'!$B13","v":0},{"$f":"+'Honorarlønnet 2'!$B14","v":0},"-","-",{"$f":"'Honorarlønnet 2'!$D$12","v":0},{"$f":"'Honorarlønnet 2'!$D$13","v":0},{"$f":"'Honorarlønnet 2'!$D$14","v":0},{"$f":"K9+L9+M9","v":0}]
["Honorarlønnet 3",{"$f":"'Honorarlønnet 3'!B5","v":0},{"$f":"+'Honorarlønnet 3'!$B$7","v":0},{"$f":"'Delkursusleder 1'!$B$10","v":"Kursusnummer findes automatisk efter du har indtastet speciale/kursusnavn"},"-",{"$f":"+'Honorarlønnet 3'!B12","v":0},{"$f":"+'Honorarlønnet 3'!$B$13","v":0},{"$f":"+'Honorarlønnet 3'!$B$14","v":0},"-","-",{"$f":"'Honorarlønnet 3'!$D$12","v":0},{"$f":"'Honorarlønnet 3'!$D$13","v":0},{"$f":"'Honorarlønnet 3'!$D$14","v":0},0]
["Honorarlønnet 4",{"$f":"'Honorarlønnet 4'!B5","v":0},{"$f":"+'Honorarlønnet 4'!$B$7","v":0},{"$f":"'Delkursusleder 1'!$B$10","v":"Kursusnummer findes automatisk efter du har indtastet speciale/kursusnavn"},"-",{"$f":"+'Honorarlønnet 4'!$B$12","v":0},{"$f":"+'Honorarlønnet 4'!$B$13","v":0},{"$f":"+'Honorarlønnet 4'!$B$14","v":0},"-","-",{"$f":"'Honorarlønnet 4'!$D$12","v":0},{"$f":"'Honorarlønnet 4'!$D$13","v":0},{"$f":"'Honorarlønnet 4'!$D$14","v":0},0]
["Honorarlønnet 5",{"$f":"'Honorarlønnet 5'!B5","v":0},{"$f":"+'Honorarlønnet 5'!$B$7","v":0},{"$f":"'Delkursusleder 1'!$B$10","v":"Kursusnummer findes automatisk efter du har indtastet speciale/kursusnavn"},"-",{"$f":"+'Honorarlønnet 5'!$B$12","v":0},{"$f":"+'Honorarlønnet 5'!$B$13","v":0},{"$f":"+'Honorarlønnet 5'!$B$14","v":0},"-","-",{"$f":"'Honorarlønnet 5'!$D$12","v":0},{"$f":"'Honorarlønnet 5'!$D$13","v":0},{"$f":"'Honorarlønnet 5'!$D$14","v":0},0]
["Honorarlønnet 6",{"$f":"'Honorarlønnet 6'!B5","v":0},{"$f":"+'Honorarlønnet 6'!$B$7","v":0},{"$f":"'Delkursusleder 1'!$B$10","v":"Kursusnummer findes automatisk efter du har indtastet speciale/kursusnavn"},"-",{"$f":"+'Honorarlønnet 6'!$B$12","v":0},{"$f":"+'Honorarlønnet 6'!$B$13","v":0},{"$f":"+'Honorarlønnet 6'!$B$14","v":0},"-","-",{"$f":"'Honorarlønnet 6'!$D$12","v":0},{"$f":"'Honorarlønnet 6'!$D$13","v":0},{"$f":"'Honorarlønnet 6'!$D$14","v":0},0]
["Honorarlønnet 7",{"$f":"'Honorarlønnet 7'!B5","v":0},{"$f":"+'Honorarlønnet 7'!$B$7","v":0},{"$f":"'Delkursusleder 1'!$B$10","v":"Kursusnummer findes automatisk efter du har indtastet speciale/kursusnavn"},"-",{"$f":"+'Honorarlønnet 7'!$B$12","v":0},{"$f":"+'Honorarlønnet 7'!$B$13","v":0},{"$f":"+'Honorarlønnet 7'!$B$14","v":0},"-","-",{"$f":"'Honorarlønnet 7'!$D$12","v":0},{"$f":"'Honorarlønnet 7'!$D$13","v":0},{"$f":"'Honorarlønnet 7'!$D$14","v":0},0]
["Honorarlønnet 8",{"$f":"'Honorarlønnet 8'!B5","v":0},{"$f":"+'Honorarlønnet 8'!$B$7","v":0},{"$f":"'Delkursusleder 1'!$B$10","v":"Kursusnummer findes automatisk efter du har indtastet speciale/kursusnavn"},"-",{"$f":"+'Honorarlønnet 8'!$B$12","v":0},{"$f":"+'Honorarlønnet 8'!$B$13","v":0},{"$f":"+'Honorarlønnet 8'!$B$14","v":0},"-","-",{"$f":"'Honorarlønnet 8'!$D$12","v":0},{"$f":"'Honorarlønnet 8'!$D$13","v":0},{"$f":"'Honorarlønnet 8'!$D$14","v":0},0]
["Honorarlønnet 9",{"$f":"'Honorarlønnet 9'!B5","v":0},{"$f":"+'Honorarlønnet 9'!$B$7","v":0},{"$f":"'Delkursusleder 1'!$B$10","v":"Kursusnummer findes automatisk efter du har indtastet speciale/kursusnavn"},"-",{"$f":"+'Honorarlønnet 9'!$B$12","v":0},{"$f":"+'Honorarlønnet 9'!$B$13","v":0},{"$f":"+'Honorarlønnet 9'!$B$14","v":0},"-","-",{"$f":"'Honorarlønnet 9'!$D$12","v":0},{"$f":"'Honorarlønnet 9'!$D$13","v":0},{"$f":"'Honorarlønnet 9'!$D$14","v":0},0]
["Honorarlønnet 10",{"$f":"'Honorarlønnet 10'!B5","v":0},{"$f":"+'Honorarlønnet 10'!$B$7","v":0},{"$f":"'Delkursusleder 1'!$B$10","v":"Kursusnummer findes automatisk efter du har indtastet speciale/kursusnavn"},"-",{"$f":"+'Honorarlønnet 10'!$B$12","v":0},{"$f":"+'Honorarlønnet 10'!$B$13","v":0},{"$f":"+'Honorarlønnet 10'!$B$14","v":0},"-","-",{"$f":"'Honorarlønnet 10'!$D$12","v":0},{"$f":"'Honorarlønnet 10'!$D$13","v":0},{"$f":"'Honorarlønnet 10'!$D$14","v":0},0]
["Honorarlønnet 11",{"$f":"'Honorarlønnet 11'!B5","v":0},{"$f":"+'Honorarlønnet 11'!$B$7","v":0},{"$f":"'Delkursusleder 1'!$B$10","v":"Kursusnummer findes automatisk efter du har indtastet speciale/kursusnavn"},"-",{"$f":"+'Honorarlønnet 11'!$B$12","v":0},{"$f":"+'Honorarlønnet 11'!$B$13","v":0},{"$f":"+'Honorarlønnet 11'!$B$14","v":0},"-","-",{"$f":"'Honorarlønnet 11'!$D$12","v":0},{"$f":"'Honorarlønnet 11'!$D$13","v":0},{"$f":"'Honorarlønnet 11'!$D$14","v":0},0]
["Honorarlønnet 12",{"$f":"'Honorarlønnet 12'!B5","v":0},{"$f":"+'Honorarlønnet 12'!$B$7","v":0},{"$f":"'Delkursusleder 1'!$B$10","v":"Kursusnummer findes automatisk efter du har indtastet speciale/kursusnavn"},"-",{"$f":"+'Honorarlønnet 12'!$B$12","v":0},{"$f":"+'Honorarlønnet 12'!$B$13","v":0},{"$f":"+'Honorarlønnet 12'!$B$14","v":0},"-","-",{"$f":"'Honorarlønnet 12'!$D$12","v":0},{"$f":"'Honorarlønnet 12'!$D$13","v":0},{"$f":"'Honorarlønnet 12'!$D$14","v":0},0]
["Honorarlønnet 13",{"$f":"'Honorarlønnet 13'!B5","v":0},{"$f":"+'Honorarlønnet 13'!$B$7","v":0},{"$f":"'Delkursusleder 1'!$B$10","v":"Kursusnummer findes automatisk efter du har indtastet speciale/kursusnavn"},"-",{"$f":"+'Honorarlønnet 13'!$B$12","v":0},{"$f":"+'Honorarlønnet 13'!$B$13","v":0},{"$f":"+'Honorarlønnet 13'!$B$14","v":0},"-","-",{"$f":"'Honorarlønnet 13'!$D$12","v":0},{"$f":"'Honorarlønnet 13'!$D$13","v":0},{"$f":"'Honorarlønnet 13'!$D$14","v":0},{"$f":"K20+L20+M20","v":0}]
["Honorarlønnet 14",{"$f":"'Honorarlønnet 14'!B5","v":0},{"$f":"+'Honorarlønnet 14'!$B$7","v":0},{"$f":"'Delkursusleder 1'!$B$10","v":"Kursusnummer findes automatisk efter du har indtastet speciale/kursusnavn"},"-",{"$f":"+'Honorarlønnet 14'!$B$12","v":0},{"$f":"+'Honorarlønnet 14'!$B$13","v":0},{"$f":"+'Honorarlønnet 14'!$B$14","v":0},"-","-",{"$f":"'Honorarlønnet 14'!$D$12","v":0},{"$f":"'Honorarlønnet 14'!$D$13","v":0},{"$f":"'Honorarlønnet 14'!$D$14","v":0},0]
["Honorarlønnet 15",{"$f":"'Honorarlønnet 15'!B5","v":0},{"$f":"+'Honorarlønnet 15'!$B$7","v":0},{"$f":"'Delkursusleder 1'!$B$10","v":"Kursusnummer findes automatisk efter du har indtastet speciale/kursusnavn"},"-",{"$f":"+'Honorarlønnet 15'!$B$12","v":0},{"$f":"+'Honorarlønnet 15'!$B$13","v":0},{"$f":"+'Honorarlønnet 15'!$B$14","v":0},"-","-",{"$f":"'Honorarlønnet 15'!$D$12","v":0},{"$f":"'Honorarlønnet 15'!$D$13","v":0},{"$f":"'Honorarlønnet 15'!$D$14","v":0},0]
["Total timer/beløb",null,null,null,"-",{"$f":"SUM(F4:F22)","v":0},{"$f":"SUM(G4:G22)","v":0},{"$f":"SUM(H4:H22)","v":0},{"$f":"SUM(I4:I5)","v":0},{"$f":"SUM(J6:J7)","v":0},{"$f":"SUM(K4:K22)","v":0},{"$f":"SUM(L4:L22)","v":0},{"$f":"SUM(M4:M22)","v":0},{"$f":"SUM(N4:N22)","v":0}]
[null,null,null,null,null,null,null,null,"Den nederste række i denne fane, 'skal kopieres med i mail til hovedkursusleder, når delkursusleder kvitterer for oplysningernes rigtighed. "]

{"sheet":"Hovedkursusleder","index":22,"n_rows":25,"n_cols":7,"rows_kept":25,"cut":false,"hidden":false,"merged":[[10,6,10,7],[0,1,0,4],[1,2,1,4],[19,1,19,2],[6,1,6,3],[4,1,4,3],[17,1,17,3],[15,1,15,3],[8,1,8,3],[19,3,19,5]]}
[null,"Honorar Hovedkursusleder"]
[null,null,"NB. Skemaet SKAL udfyldes elektronisk"]
["Udfyldes af hovedkursusleder"]
[{"$f":"IFERROR(IF(LEN(B7)>10,\"CPR-nummer ikke gyldigt - du har mere end 10 tegn med. Husk ikke at inkludere bindestreg\",IF(LEN(B7)=0,\"\",IF(LEN(B7)<10,\"CPR-nummer ikke gyldigt - Du har indtastet for få tegn\",IF(0=MOD(LEFT(B7)*4+MID(B7,2,1)*3+MID(B7,3,1)*2+MID(B7,4,1)*7+MID(B7,5,1)*6+MID(B7,6,1)*5+(MID(B7,7,1)*4+MID(B7,8,1)*3)+MID(B7,9,1)*2+MID(B7,10,1),11),\"\",\"CPR-nummer ikke gyldigt - Tjek cifrene i dit CPR igennem igen\")))),\"CPR-nummer ikke gyldigt - Et af cifrene i dit CPR er ikke et tal\")","v":""}]
["Navn:"]
[]
["Cpr.nr.: "]
[null,"Ingen bindestreg. CPR-nummer skjult"]
["E-mail"]
[]
["Honorar hovedkursusleder\n (tast her)",null,"Max beløb til deling mellem sekretær og hovedkursusleder",{"$f":"'Adm.ark satser'!K2","v":9000},null,null,"Jeg sender en faktura"]
[null,null,"Total beløb for sekretær og hovedkursusleder",{"$f":"A12+Sekretær!A12","v":0}]
[]
["Udfyldes automatisk, trækkes fra delkursuslederark"]
[]
["Speciale:",{"$f":"'Delkursusleder 1'!B6","v":"[vælg fra liste]"}]
[]
["Kursusnavn:",{"$f":"'Delkursusleder 1'!B8","v":"[vælg fra liste]"}]
[]
["Dato for første undervisningsdag DD-MM-ÅÅ:",{"$f":"'Delkursusleder 1'!B23","v":"00:00:00"},null,{"$f":"'Honorarlønnet 15'!C23","v":""}]
[]
["Dit honorar udbetales til NemKonto. Lønsedlen sendes til din e-boks. "]
["Ved CVR./SE-nr. SKAL der sendes e-faktura til EAN nr: 5798000362147 via sundhedsstyrelsens hjemmeside."]
[]
["Evt. bemærkninger"]

{"sheet":"SST, økonomi","index":23,"n_rows":74,"n_cols":10,"rows_kept":74,"cut":false,"hidden":false,"merged":[[0,0,0,1]]}
["Sundhedsstyrelsens økonomioverblik"]
[]
["Specialenavn:"]
[{"$f":"+'Delkursusleder 1'!B6","v":"[vælg fra liste]"}]
[]
["Kursusnavn","Kursus nummer"]
[{"$f":"+'Delkursusleder 1'!B8","v":"[vælg fra liste]"},{"$f":"+'Delkursusleder 1'!B10","v":"Kursusnummer findes automatisk efter du har indtastet speciale/kursusnavn"}]
[]
[]
["Dato/periode for undervisning:"]
[{"$f":"+'Delkursusleder 1'!B23","v":"00:00:00"}]
[]
["Delkursusleder:","E-mail:"]
[{"$f":"+'Delkursusleder 1'!B14","v":0},{"$f":"'Delkursusleder 1'!B21:D21","v":0}]
[]
["Godkendelse foregår via email og sikker post - se vejledning"]
[]
["Rolle","Navn","Udgiftstype","Antal","Samlet beløb",null,"SST Opsamling","Udgiftstype","Antal timer er lagt","Undervisningsomkostning"]
["Delkursusleder 1 - adm",{"$f":"+'Delkursusleder 1'!B14","v":0},"Delkursuslederhonorar","Udfyldes ikke",{"$f":"'Delkursusleder 1'!A39","v":0},null,"Antal forelæsningstimer",{"$f":"+'Adm.ark satser'!D2","v":1},{"$f":"D23+D26+D29+D32+D35+D38+D41+D44+D47+D50+D53+D56+D59+D62+D65+D68+D71","v":0},0]
["Delkursusleder 2",{"$f":"'(Evt. delkursusleder 2)'!B6:D6","v":0},"Delkursuslederhonorar","Udfyldes ikke",{"$f":"'(Evt. delkursusleder 2)'!A22","v":0},null,"Antal diskussionstimer",{"$f":"+'Adm.ark satser'!D3","v":2},0,0]
["Sekretær",{"$f":"+Sekretær!B5","v":0},"Administrationshonorar","Udfyldes ikke",{"$f":"+Sekretær!A12","v":0},null,"Antal medhjælpertimer",{"$f":"+'Adm.ark satser'!D4","v":3},{"$f":"D25+D28+D31+D34+D37+D40+D43+D46+D49+D52+D55+D58+D61+D64+D67+D70+D73","v":0},0]
["Hovedkursusleder",{"$f":"+Hovedkursusleder!B5","v":0},"Administrationshonorar","Udfyldes ikke",{"$f":"+Hovedkursusleder!A12","v":0},null,"Delkursuslederhonorar",{"$f":"+'Adm.ark satser'!D5","v":4},0,{"$f":"E19+E20","v":0}]
["Delkursusleder 1 - evt. underviser",{"$f":"'Delkursusleder 1'!B14:D14","v":0},"Antal forlæsningstimer",{"$f":"'Delkursusleder 1'!B29","v":0},{"$f":"'Delkursusleder 1'!D29","v":0},null,"Administrationshonorar",5,0,{"$f":"E21+E22","v":0}]
["Delkursusleder 1 - evt. underviser",{"$f":"'Delkursusleder 1'!B14:D14","v":0},"Antal diskussionstimer",{"$f":"'Delkursusleder 1'!B30","v":0},{"$f":"'Delkursusleder 1'!D30","v":0},null,"I alt",null,{"$f":"SUM(I19:I23)","v":0},{"$f":"SUM(J19:J23)","v":0}]
["Delkursusleder 1 - evt. underviser",{"$f":"'Delkursusleder 1'!B14:D14","v":0},"Antal medhjælper timer",{"$f":"'Delkursusleder 1'!B31","v":0},{"$f":"'Delkursusleder 1'!D31","v":0}]
["Delkursusleder 2 - evt. underviser",{"$f":"'(Evt. delkursusleder 2)'!B6:D6","v":0},"Antal forlæsningstimer",{"$f":"'(Evt. delkursusleder 2)'!B34","v":0},{"$f":"'(Evt. delkursusleder 2)'!D34","v":0}]
["Delkursusleder 2 - evt. underviser",{"$f":"'(Evt. delkursusleder 2)'!B6:D6","v":0},"Antal diskussionstimer",{"$f":"'(Evt. delkursusleder 2)'!B35","v":0},{"$f":"'(Evt. delkursusleder 2)'!D35","v":0}]
["Delkursusleder 2 - evt. underviser",{"$f":"'(Evt. delkursusleder 2)'!B6:D6","v":0},"Antal medhjælper timer",{"$f":"'(Evt. delkursusleder 2)'!B36","v":0},{"$f":"'(Evt. delkursusleder 2)'!D36","v":0}]
["Honorarlønnet 1",{"$f":"'Honorarlønnet 1'!$B$5","v":0},"Antal forlæsningstimer",{"$f":"'Honorarlønnet 1'!$B$12","v":0},{"$f":"'Honorarlønnet 1'!$D$12","v":0}]
["Honorarlønnet 1",{"$f":"'Honorarlønnet 1'!$B$5","v":0},"Antal diskussionstimer",{"$f":"'Honorarlønnet 1'!$B$13","v":0},{"$f":"'Honorarlønnet 1'!$D$13","v":0}]
["Honorarlønnet 1",{"$f":"'Honorarlønnet 1'!$B$5","v":0},"Antal medhjælper timer",{"$f":"'Honorarlønnet 1'!$B$14","v":0},{"$f":"'Honorarlønnet 1'!$D$14","v":0}]
["Honorarlønnet 2",{"$f":"'Honorarlønnet 2'!B$5","v":0},"Antal forlæsningstimer",{"$f":"'Honorarlønnet 2'!$B$12","v":0},{"$f":"'Honorarlønnet 2'!$D$12","v":0}]
["Honorarlønnet 2",{"$f":"'Honorarlønnet 2'!$B$5","v":0},"Antal diskussionstimer",{"$f":"'Honorarlønnet 2'!$B$13","v":0},{"$f":"'Honorarlønnet 2'!$D$13","v":0}]
["Honorarlønnet 2",{"$f":"'Honorarlønnet 2'!$B$5","v":0},"Antal medhjælper timer",{"$f":"'Honorarlønnet 2'!$B$14","v":0},{"$f":"'Honorarlønnet 2'!$D$14","v":0}]
["Honorarlønnet 3",{"$f":"'Honorarlønnet 3'!$B$5","v":0},"Antal forlæsningstimer",{"$f":"'Honorarlønnet 3'!$B$12","v":0},{"$f":"'Honorarlønnet 3'!$D$12","v":0}]
["Honorarlønnet 3",{"$f":"'Honorarlønnet 3'!$B$5","v":0},"Antal diskussionstimer",{"$f":"'Honorarlønnet 3'!$B$13","v":0},{"$f":"'Honorarlønnet 3'!$D$13","v":0}]
["Honorarlønnet 3",{"$f":"'Honorarlønnet 3'!$B$5","v":0},"Antal medhjælper timer",{"$f":"'Honorarlønnet 3'!$B$14","v":0},{"$f":"'Honorarlønnet 3'!$D$14","v":0}]
["Honorarlønnet 4",{"$f":"'Honorarlønnet 4'!$B$5","v":0},"Antal forlæsningstimer",{"$f":"'Honorarlønnet 4'!$B$12","v":0},{"$f":"'Honorarlønnet 4'!$D$12","v":0}]
["Honorarlønnet 4",{"$f":"'Honorarlønnet 4'!$B$5","v":0},"Antal diskussionstimer",{"$f":"'Honorarlønnet 4'!$B$13","v":0},{"$f":"'Honorarlønnet 4'!$D$13","v":0}]
["Honorarlønnet 4",{"$f":"'Honorarlønnet 4'!$B$5","v":0},"Antal medhjælper timer",{"$f":"'Honorarlønnet 4'!$B$14","v":0},{"$f":"'Honorarlønnet 4'!$D$14","v":0}]
["Honorarlønnet 5",{"$f":"'Honorarlønnet 5'!$B$5","v":0},"Antal forlæsningstimer",{"$f":"'Honorarlønnet 5'!$B$12","v":0},{"$f":"'Honorarlønnet 5'!$D$12","v":0}]
["Honorarlønnet 5",{"$f":"'Honorarlønnet 5'!$B$5","v":0},"Antal diskussionstimer",{"$f":"'Honorarlønnet 5'!$B$13","v":0},{"$f":"'Honorarlønnet 5'!$D$13","v":0}]
["Honorarlønnet 5",{"$f":"'Honorarlønnet 5'!$B$5","v":0},"Antal medhjælper timer",{"$f":"'Honorarlønnet 5'!$B$14","v":0},{"$f":"'Honorarlønnet 5'!$D$14","v":0}]
["Honorarlønnet 6",{"$f":"'Honorarlønnet 6'!$B$5","v":0},"Antal forlæsningstimer",{"$f":"'Honorarlønnet 6'!$B$12","v":0},{"$f":"'Honorarlønnet 6'!$D$12","v":0}]
["Honorarlønnet 6",{"$f":"'Honorarlønnet 6'!$B$5","v":0},"Antal diskussionstimer",{"$f":"'Honorarlønnet 6'!$B$13","v":0},{"$f":"'Honorarlønnet 6'!$D$13","v":0}]
["Honorarlønnet 6",{"$f":"'Honorarlønnet 6'!$B$5","v":0},"Antal medhjælper timer",{"$f":"'Honorarlønnet 6'!$B$14","v":0},{"$f":"'Honorarlønnet 6'!$D$14","v":0}]
["Honorarlønnet 7",{"$f":"'Honorarlønnet 7'!$B$5","v":0},"Antal forlæsningstimer",{"$f":"'Honorarlønnet 7'!$B$12","v":0},{"$f":"'Honorarlønnet 7'!$D$12","v":0}]
["Honorarlønnet 7",{"$f":"'Honorarlønnet 7'!$B$5","v":0},"Antal diskussionstimer",{"$f":"'Honorarlønnet 7'!$B$13","v":0},{"$f":"'Honorarlønnet 7'!$D$13","v":0}]
["Honorarlønnet 7",{"$f":"'Honorarlønnet 7'!$B$5","v":0},"Antal medhjælper timer",{"$f":"'Honorarlønnet 7'!$B$14","v":0},{"$f":"'Honorarlønnet 7'!$D$14","v":0}]
["Honorarlønnet 8",{"$f":"'Honorarlønnet 8'!$B$5","v":0},"Antal forlæsningstimer",{"$f":"'Honorarlønnet 8'!$B$12","v":0},{"$f":"'Honorarlønnet 8'!$D$12","v":0}]
["Honorarlønnet 8",{"$f":"'Honorarlønnet 8'!$B$5","v":0},"Antal diskussionstimer",{"$f":"'Honorarlønnet 8'!$B$13","v":0},{"$f":"'Honorarlønnet 8'!$D$13","v":0}]
["Honorarlønnet 8",{"$f":"'Honorarlønnet 8'!$B$5","v":0},"Antal medhjælper timer",{"$f":"'Honorarlønnet 8'!$B$14","v":0},{"$f":"'Honorarlønnet 8'!$D$14","v":0}]
["Honorarlønnet 9",{"$f":"'Honorarlønnet 9'!$B$5","v":0},"Antal forlæsningstimer",{"$f":"'Honorarlønnet 9'!$B$12","v":0},{"$f":"'Honorarlønnet 9'!$D$12","v":0}]
["Honorarlønnet 9",{"$f":"'Honorarlønnet 9'!$B$5","v":0},"Antal diskussionstimer",{"$f":"'Honorarlønnet 9'!$B$13","v":0},{"$f":"'Honorarlønnet 9'!$D$13","v":0}]
["Honorarlønnet 9",{"$f":"'Honorarlønnet 9'!$B$5","v":0},"Antal medhjælper timer",{"$f":"'Honorarlønnet 9'!$B$14","v":0},{"$f":"'Honorarlønnet 9'!$D$14","v":0}]
["Honorarlønnet 10",{"$f":"'Honorarlønnet 10'!$B$5","v":0},"Antal forlæsningstimer",{"$f":"'Honorarlønnet 10'!$B$12","v":0},{"$f":"'Honorarlønnet 10'!$D$12","v":0}]
["Honorarlønnet 10",{"$f":"'Honorarlønnet 10'!$B$5","v":0},"Antal diskussionstimer",{"$f":"'Honorarlønnet 10'!$B$13","v":0},{"$f":"'Honorarlønnet 10'!$D$13","v":0}]
["Honorarlønnet 10",{"$f":"'Honorarlønnet 10'!$B$5","v":0},"Antal medhjælper timer",{"$f":"'Honorarlønnet 10'!$B$14","v":0},{"$f":"'Honorarlønnet 10'!$D$14","v":0}]
["Honorarlønnet 11",{"$f":"'Honorarlønnet 11'!$B$5","v":0},"Antal forlæsningstimer",{"$f":"'Honorarlønnet 11'!$B$12","v":0},{"$f":"'Honorarlønnet 11'!$D$12","v":0}]
["Honorarlønnet 11",{"$f":"'Honorarlønnet 11'!$B$5","v":0},"Antal diskussionstimer",{"$f":"'Honorarlønnet 11'!$B$13","v":0},{"$f":"'Honorarlønnet 11'!$D$13","v":0}]
["Honorarlønnet 11",{"$f":"'Honorarlønnet 11'!$B$5","v":0},"Antal medhjælper timer",{"$f":"'Honorarlønnet 11'!$B$14","v":0},{"$f":"'Honorarlønnet 11'!$D$14","v":0}]
["Honorarlønnet 12",{"$f":"'Honorarlønnet 12'!$B$5","v":0},"Antal forlæsningstimer",{"$f":"'Honorarlønnet 12'!$B$12","v":0},{"$f":"'Honorarlønnet 12'!$D$12","v":0}]
["Honorarlønnet 12",{"$f":"'Honorarlønnet 12'!$B$5","v":0},"Antal diskussionstimer",{"$f":"'Honorarlønnet 12'!$B$13","v":0},{"$f":"'Honorarlønnet 12'!$D$13","v":0}]
["Honorarlønnet 12",{"$f":"'Honorarlønnet 12'!$B$5","v":0},"Antal medhjælper timer",{"$f":"'Honorarlønnet 12'!$B$14","v":0},{"$f":"'Honorarlønnet 12'!$D$14","v":0}]
["Honorarlønnet 13",{"$f":"'Honorarlønnet 13'!$B$5","v":0},"Antal forlæsningstimer",{"$f":"'Honorarlønnet 13'!$B$12","v":0},{"$f":"'Honorarlønnet 13'!$D$12","v":0}]
["Honorarlønnet 13",{"$f":"'Honorarlønnet 13'!$B$5","v":0},"Antal diskussionstimer",{"$f":"'Honorarlønnet 13'!$B$13","v":0},{"$f":"'Honorarlønnet 13'!$D$13","v":0}]
["Honorarlønnet 13",{"$f":"'Honorarlønnet 13'!$B$5","v":0},"Antal medhjælper timer",{"$f":"'Honorarlønnet 13'!$B$14","v":0},{"$f":"'Honorarlønnet 13'!$D$14","v":0}]
["Honorarlønnet 14",{"$f":"'Honorarlønnet 14'!$B$5","v":0},"Antal forlæsningstimer",{"$f":"'Honorarlønnet 14'!$B$12","v":0},{"$f":"'Honorarlønnet 14'!$D$12","v":0}]
["Honorarlønnet 14",{"$f":"'Honorarlønnet 14'!$B$5","v":0},"Antal diskussionstimer",{"$f":"'Honorarlønnet 14'!$B$13","v":0},{"$f":"'Honorarlønnet 14'!$D$13","v":0}]
["Honorarlønnet 14",{"$f":"'Honorarlønnet 14'!$B$5","v":0},"Antal medhjælper timer",{"$f":"'Honorarlønnet 14'!$B$14","v":0},{"$f":"'Honorarlønnet 14'!$D$14","v":0}]
["Honorarlønnet 15",{"$f":"'Honorarlønnet 15'!$B$5","v":0},"Antal forlæsningstimer",{"$f":"'Honorarlønnet 15'!$B$12","v":0},{"$f":"'Honorarlønnet 15'!$D$12","v":0}]
["Honorarlønnet 15",{"$f":"'Honorarlønnet 15'!$B$5","v":0},"Antal diskussionstimer",{"$f":"'Honorarlønnet 15'!$B$13","v":0},{"$f":"'Honorarlønnet 15'!$D$13","v":0}]
["Honorarlønnet 15",{"$f":"'Honorarlønnet 15'!$B$5","v":0},"Antal medhjælper timer",{"$f":"'Honorarlønnet 15'!$B$14","v":0},{"$f":"'Honorarlønnet 15'!$D$14","v":0}]
["I alt",null,null,{"$f":"SUM(D23:D73)","v":0},{"$f":"SUM(E19:E73)","v":0}]

{"sheet":"Lønadm.","index":24,"n_rows":56,"n_cols":19,"rows_kept":56,"cut":false,"hidden":false,"merged":[]}
["CPR fejl?","Cpr.nr.*","Løbenr.","Dato*","Løndelsnr.*","Felt1*","Felt2","Felt3","Felt4","Kreditorkodenr.","Afvigende løndelstekst","Bogf.kreds+delregnskab (8 cifre)","Artskonto (4 cifre)","Segment 1","Segment 2","Segment 3","Segment 4","Segment 5","Segment 6"]
[{"$f":"IF(LEN('Delkursusleder 1'!$C$16)>0,\"Ja\",\"\")","v":""},{"$f":"IF('Delkursusleder 1'!$B$19=\"Ja\",\"Sender faktura\",'Delkursusleder 1'!$B$16)","v":0},null,{"$f":"+'Delkursusleder 1'!$B$23","v":"00:00:00"},2510,{"$f":"Samlingsark!I4","v":0},null,1,null,null,{"$f":"'Delkursusleder 1'!$B$8","v":"[vælg fra liste]"},null,null,1,{"$f":"+Samlingsark!$D$4","v":"Kursusnummer findes automatisk efter du har indtastet speciale/kursusnavn"},{"$f":"IF(Samlingsark!I4>0.1,'Adm.ark satser'!$D$5,0)","v":0}]
[{"$f":"IF(LEN('Delkursusleder 1'!$C$16)>0,\"Ja\",\"\")","v":""},{"$f":"IF('Delkursusleder 1'!$B$19=\"Ja\",\"Sender faktura\",'Delkursusleder 1'!$B$16)","v":0},null,{"$f":"+'Delkursusleder 1'!$B$23","v":"00:00:00"},2510,{"$f":"+Samlingsark!K4","v":0},null,1,null,null,{"$f":"'Delkursusleder 1'!$B$8","v":"[vælg fra liste]"},null,null,1,{"$f":"+Samlingsark!$D$4","v":"Kursusnummer findes automatisk efter du har indtastet speciale/kursusnavn"},{"$f":"IF(Samlingsark!K4>0.1,'Adm.ark satser'!$D$2,0)","v":0}]
[{"$f":"IF(LEN('Delkursusleder 1'!$C$16)>0,\"Ja\",\"\")","v":""},{"$f":"IF('Delkursusleder 1'!$B$19=\"Ja\",\"Sender faktura\",'Delkursusleder 1'!$B$16)","v":0},null,{"$f":"+'Delkursusleder 1'!$B$23","v":"00:00:00"},2510,{"$f":"+Samlingsark!L4","v":0},null,1,null,null,{"$f":"'Delkursusleder 1'!$B$8","v":"[vælg fra liste]"},null,null,1,{"$f":"+Samlingsark!$D$4","v":"Kursusnummer findes automatisk efter du har indtastet speciale/kursusnavn"},{"$f":"IF(Samlingsark!L4>0.1,'Adm.ark satser'!$D$3,0)","v":0}]
[{"$f":"IF(LEN('Delkursusleder 1'!$C$16)>0,\"Ja\",\"\")","v":""},{"$f":"IF('Delkursusleder 1'!$B$19=\"Ja\",\"Sender faktura\",'Delkursusleder 1'!$B$16)","v":0},null,{"$f":"+'Delkursusleder 1'!$B$23","v":"00:00:00"},2510,{"$f":"+Samlingsark!M4","v":0},null,1,null,null,{"$f":"'Delkursusleder 1'!$B$8","v":"[vælg fra liste]"},null,null,1,{"$f":"+Samlingsark!$D$4","v":"Kursusnummer findes automatisk efter du har indtastet speciale/kursusnavn"},{"$f":"IF(Samlingsark!M4>0.1,'Adm.ark satser'!$D$4,0)","v":0}]
[{"$f":"IF(LEN('(Evt. delkursusleder 2)'!$A$11)>0,\"Ja\",\"\")","v":""},{"$f":"IF('(Evt. delkursusleder 2)'!$E$8=\"Ja\",\"Sender faktura\",'(Evt. delkursusleder 2)'!$B$8)","v":0},null,{"$f":"+'Delkursusleder 1'!$B$23","v":"00:00:00"},2510,{"$f":"Samlingsark!I5","v":0},null,1,null,null,{"$f":"'Delkursusleder 1'!$B$8","v":"[vælg fra liste]"},null,null,1,{"$f":"+Samlingsark!$D$4","v":"Kursusnummer findes automatisk efter du har indtastet speciale/kursusnavn"},{"$f":"IF(Samlingsark!I5>0.1,'Adm.ark satser'!$D$5,0)","v":0}]
[{"$f":"IF(LEN('(Evt. delkursusleder 2)'!$A$11)>0,\"Ja\",\"\")","v":""},{"$f":"IF('(Evt. delkursusleder 2)'!$E$8=\"Ja\",\"Sender faktura\",'(Evt. delkursusleder 2)'!$B$8)","v":0},null,{"$f":"+'Delkursusleder 1'!$B$23","v":"00:00:00"},2510,{"$f":"Samlingsark!K5","v":0},null,1,null,null,{"$f":"'Delkursusleder 1'!$B$8","v":"[vælg fra liste]"},null,null,1,{"$f":"+Samlingsark!$D$4","v":"Kursusnummer findes automatisk efter du har indtastet speciale/kursusnavn"},{"$f":"IF(Samlingsark!K5>0.1,'Adm.ark satser'!$D$2,0)","v":0}]
[{"$f":"IF(LEN('(Evt. delkursusleder 2)'!$A$11)>0,\"Ja\",\"\")","v":""},{"$f":"IF('(Evt. delkursusleder 2)'!$E$8=\"Ja\",\"Sender faktura\",'(Evt. delkursusleder 2)'!$B$8)","v":0},null,{"$f":"+'Delkursusleder 1'!$B$23","v":"00:00:00"},2510,{"$f":"Samlingsark!L5","v":0},null,1,null,null,{"$f":"'Delkursusleder 1'!$B$8","v":"[vælg fra liste]"},null,null,1,{"$f":"+Samlingsark!$D$4","v":"Kursusnummer findes automatisk efter du har indtastet speciale/kursusnavn"},{"$f":"IF(Samlingsark!L5>0.1,'Adm.ark satser'!$D$3,0)","v":0}]
[{"$f":"IF(LEN('(Evt. delkursusleder 2)'!$A$11)>0,\"Ja\",\"\")","v":""},{"$f":"IF('(Evt. delkursusleder 2)'!$E$8=\"Ja\",\"Sender faktura\",'(Evt. delkursusleder 2)'!$B$8)","v":0},null,{"$f":"+'Delkursusleder 1'!$B$23","v":"00:00:00"},2510,{"$f":"Samlingsark!M5","v":0},null,1,null,null,{"$f":"'Delkursusleder 1'!$B$8","v":"[vælg fra liste]"},null,null,1,{"$f":"+Samlingsark!$D$4","v":"Kursusnummer findes automatisk efter du har indtastet speciale/kursusnavn"},{"$f":"IF(Samlingsark!M5>0.1,'Adm.ark satser'!$D$4,0)","v":0}]
[{"$f":"IF(LEN(Sekretær!$A$4)>0,\"Ja\",\"\")","v":""},{"$f":"IF(Sekretær!H7=\"Ja\",\"Sender faktura\",Sekretær!B7)","v":0},null,{"$f":"+'Delkursusleder 1'!$B$23","v":"00:00:00"},2510,{"$f":"+Samlingsark!J7","v":0},null,1,null,null,{"$f":"'Delkursusleder 1'!$B$8","v":"[vælg fra liste]"},null,null,1,{"$f":"+Samlingsark!$D$4","v":"Kursusnummer findes automatisk efter du har indtastet speciale/kursusnavn"},{"$f":"IF(Samlingsark!J7>0.1,'Adm.ark satser'!$D$6,0)","v":0}]
[{"$f":"IF(LEN(Hovedkursusleder!$A$4)>0,\"Ja\",\"\")","v":""},{"$f":"IF(Hovedkursusleder!I11=\"Ja\",\"Sender faktura\",+Hovedkursusleder!B7)","v":0},null,{"$f":"+'Delkursusleder 1'!$B$23","v":"00:00:00"},2510,{"$f":"+Samlingsark!J6","v":0},null,1,null,null,{"$f":"'Delkursusleder 1'!$B$8","v":"[vælg fra liste]"},null,null,1,{"$f":"+Samlingsark!$D$4","v":"Kursusnummer findes automatisk efter du har indtastet speciale/kursusnavn"},{"$f":"IF(Samlingsark!J6>0.1,'Adm.ark satser'!$D$6,0)","v":0}]
[{"$f":"IF(LEN('Honorarlønnet 1'!$A$4)>0,\"Ja\",\"\")","v":""},{"$f":"IF('Honorarlønnet 1'!$E$7=\"Ja\",\"Sender faktura\",+'Honorarlønnet 1'!$B$7)","v":0},null,{"$f":"+'Delkursusleder 1'!$B$23","v":"00:00:00"},2510,{"$f":"+Samlingsark!K8","v":0},null,1,null,null,{"$f":"'Delkursusleder 1'!$B$8","v":"[vælg fra liste]"},null,null,1,{"$f":"+Samlingsark!$D$4","v":"Kursusnummer findes automatisk efter du har indtastet speciale/kursusnavn"},{"$f":"IF(Samlingsark!K8>0.1,'Adm.ark satser'!$D$2,0)","v":0}]
[{"$f":"IF(LEN('Honorarlønnet 1'!$A$4)>0,\"Ja\",\"\")","v":""},{"$f":"IF('Honorarlønnet 1'!$E$7=\"Ja\",\"Sender faktura\",+'Honorarlønnet 1'!$B$7)","v":0},null,{"$f":"+'Delkursusleder 1'!$B$23","v":"00:00:00"},2510,{"$f":"+Samlingsark!L8","v":0},null,1,null,null,{"$f":"'Delkursusleder 1'!$B$8","v":"[vælg fra liste]"},null,null,1,{"$f":"+Samlingsark!$D$4","v":"Kursusnummer findes automatisk efter du har indtastet speciale/kursusnavn"},{"$f":"IF(Samlingsark!L8>0.1,'Adm.ark satser'!$D$3,0)","v":0}]
[{"$f":"IF(LEN('Honorarlønnet 1'!$A$4)>0,\"Ja\",\"\")","v":""},{"$f":"IF('Honorarlønnet 1'!$E$7=\"Ja\",\"Sender faktura\",+'Honorarlønnet 1'!$B$7)","v":0},null,{"$f":"+'Delkursusleder 1'!$B$23","v":"00:00:00"},2510,{"$f":"+Samlingsark!M8","v":0},null,1,null,null,{"$f":"'Delkursusleder 1'!$B$8","v":"[vælg fra liste]"},null,null,1,{"$f":"+Samlingsark!$D$4","v":"Kursusnummer findes automatisk efter du har indtastet speciale/kursusnavn"},{"$f":"IF(Samlingsark!M8>0.1,'Adm.ark satser'!$D$4,0)","v":0}]
[{"$f":"IF(LEN('Honorarlønnet 2'!$A$4)>0,\"Ja\",\"\")","v":""},{"$f":"IF('Honorarlønnet 2'!$E$7=\"Ja\",\"Sender faktura\",+'Honorarlønnet 2'!$B$7)","v":0},null,{"$f":"+'Delkursusleder 1'!$B$23","v":"00:00:00"},2510,{"$f":"+Samlingsark!K9","v":0},null,1,null,null,{"$f":"'Delkursusleder 1'!$B$8","v":"[vælg fra liste]"},null,null,1,{"$f":"+Samlingsark!$D$4","v":"Kursusnummer findes automatisk efter du har indtastet speciale/kursusnavn"},{"$f":"IF(Samlingsark!K9>0.1,'Adm.ark satser'!$D$2,0)","v":0}]
[{"$f":"IF(LEN('Honorarlønnet 2'!$A$4)>0,\"Ja\",\"\")","v":""},{"$f":"IF('Honorarlønnet 2'!$E$7=\"Ja\",\"Sender faktura\",+'Honorarlønnet 2'!$B$7)","v":0},null,{"$f":"+'Delkursusleder 1'!$B$23","v":"00:00:00"},2510,{"$f":"+Samlingsark!L9","v":0},null,1,null,null,{"$f":"'Delkursusleder 1'!$B$8","v":"[vælg fra liste]"},null,null,1,{"$f":"+Samlingsark!$D$4","v":"Kursusnummer findes automatisk efter du har indtastet speciale/kursusnavn"},{"$f":"IF(Samlingsark!L9>0.1,'Adm.ark satser'!$D$3,0)","v":0}]
[{"$f":"IF(LEN('Honorarlønnet 2'!$A$4)>0,\"Ja\",\"\")","v":""},{"$f":"IF('Honorarlønnet 2'!$E$7=\"Ja\",\"Sender faktura\",+'Honorarlønnet 2'!$B$7)","v":0},null,{"$f":"+'Delkursusleder 1'!$B$23","v":"00:00:00"},2510,{"$f":"+Samlingsark!M9","v":0},null,1,null,null,{"$f":"'Delkursusleder 1'!$B$8","v":"[vælg fra liste]"},null,null,1,{"$f":"+Samlingsark!$D$4","v":"Kursusnummer findes automatisk efter du har indtastet speciale/kursusnavn"},{"$f":"IF(Samlingsark!M9>0.1,'Adm.ark satser'!$D$4,0)","v":0}]
[{"$f":"IF(LEN('Honorarlønnet 3'!$A$4)>0,\"Ja\",\"\")","v":""},{"$f":"IF('Honorarlønnet 3'!$E$7=\"Ja\",\"Sender faktura\",+'Honorarlønnet 3'!$B$7)","v":0},null,{"$f":"+'Delkursusleder 1'!$B$23","v":"00:00:00"},2510,{"$f":"+Samlingsark!K10","v":0},null,1,null,null,{"$f":"'Delkursusleder 1'!$B$8","v":"[vælg fra liste]"},null,null,1,{"$f":"+Samlingsark!$D$4","v":"Kursusnummer findes automatisk efter du har indtastet speciale/kursusnavn"},{"$f":"IF(Samlingsark!K10>0.1,'Adm.ark satser'!$D$2,0)","v":0}]
[{"$f":"IF(LEN('Honorarlønnet 3'!$A$4)>0,\"Ja\",\"\")","v":""},{"$f":"IF('Honorarlønnet 3'!$E$7=\"Ja\",\"Sender faktura\",+'Honorarlønnet 3'!$B$7)","v":0},null,{"$f":"+'Delkursusleder 1'!$B$23","v":"00:00:00"},2510,{"$f":"+Samlingsark!L10","v":0},null,1,null,null,{"$f":"'Delkursusleder 1'!$B$8","v":"[vælg fra liste]"},null,null,1,{"$f":"+Samlingsark!$D$4","v":"Kursusnummer findes automatisk efter du har indtastet speciale/kursusnavn"},{"$f":"IF(Samlingsark!L10>0.1,'Adm.ark satser'!$D$3,0)","v":0}]
[{"$f":"IF(LEN('Honorarlønnet 3'!$A$4)>0,\"Ja\",\"\")","v":""},{"$f":"IF('Honorarlønnet 3'!$E$7=\"Ja\",\"Sender faktura\",+'Honorarlønnet 3'!$B$7)","v":0},null,{"$f":"+'Delkursusleder 1'!$B$23","v":"00:00:00"},2510,{"$f":"+Samlingsark!M10","v":0},null,1,null,null,{"$f":"'Delkursusleder 1'!$B$8","v":"[vælg fra liste]"},null,null,1,{"$f":"+Samlingsark!$D$4","v":"Kursusnummer findes automatisk efter du har indtastet speciale/kursusnavn"},{"$f":"IF(Samlingsark!M10>0.1,'Adm.ark satser'!$D$4,0)","v":0}]
[{"$f":"IF(LEN('Honorarlønnet 4'!$A$4)>0,\"Ja\",\"\")","v":""},{"$f":"IF('Honorarlønnet 4'!$E$7=\"Ja\",\"Sender faktura\",+'Honorarlønnet 4'!$B$7)","v":0},null,{"$f":"+'Delkursusleder 1'!$B$23","v":"00:00:00"},2510,{"$f":"+Samlingsark!K11","v":0},null,1,null,null,{"$f":"'Delkursusleder 1'!$B$8","v":"[vælg fra liste]"},null,null,1,{"$f":"+Samlingsark!$D$4","v":"Kursusnummer findes automatisk efter du har indtastet speciale/kursusnavn"},{"$f":"IF(Samlingsark!K11>0.1,'Adm.ark satser'!$D$2,0)","v":0}]
[{"$f":"IF(LEN('Honorarlønnet 4'!$A$4)>0,\"Ja\",\"\")","v":""},{"$f":"IF('Honorarlønnet 4'!$E$7=\"Ja\",\"Sender faktura\",+'Honorarlønnet 4'!$B$7)","v":0},null,{"$f":"+'Delkursusleder 1'!$B$23","v":"00:00:00"},2510,{"$f":"+Samlingsark!L11","v":0},null,1,null,null,{"$f":"'Delkursusleder 1'!$B$8","v":"[vælg fra liste]"},null,null,1,{"$f":"+Samlingsark!$D$4","v":"Kursusnummer findes automatisk efter du har indtastet speciale/kursusnavn"},{"$f":"IF(Samlingsark!L11>0.1,'Adm.ark satser'!$D$3,0)","v":0}]
[{"$f":"IF(LEN('Honorarlønnet 4'!$A$4)>0,\"Ja\",\"\")","v":""},{"$f":"IF('Honorarlønnet 4'!$E$7=\"Ja\",\"Sender faktura\",+'Honorarlønnet 4'!$B$7)","v":0},null,{"$f":"+'Delkursusleder 1'!$B$23","v":"00:00:00"},2510,{"$f":"+Samlingsark!M11","v":0},null,1,null,null,{"$f":"'Delkursusleder 1'!$B$8","v":"[vælg fra liste]"},null,null,1,{"$f":"+Samlingsark!$D$4","v":"Kursusnummer findes automatisk efter du har indtastet speciale/kursusnavn"},{"$f":"IF(Samlingsark!M11>0.1,'Adm.ark satser'!$D$4,0)","v":0}]
[{"$f":"IF(LEN('Honorarlønnet 5'!$A$4)>0,\"Ja\",\"\")","v":""},{"$f":"IF('Honorarlønnet 5'!$E$7=\"Ja\",\"Sender faktura\",+'Honorarlønnet 5'!$B$7)","v":0},null,{"$f":"+'Delkursusleder 1'!$B$23","v":"00:00:00"},2510,{"$f":"+Samlingsark!K12","v":0},null,1,null,null,{"$f":"'Delkursusleder 1'!$B$8","v":"[vælg fra liste]"},null,null,1,{"$f":"+Samlingsark!$D$4","v":"Kursusnummer findes automatisk efter du har indtastet speciale/kursusnavn"},{"$f":"IF(Samlingsark!K12>0.1,'Adm.ark satser'!$D$2,0)","v":0}]
[{"$f":"IF(LEN('Honorarlønnet 5'!$A$4)>0,\"Ja\",\"\")","v":""},{"$f":"IF('Honorarlønnet 5'!$E$7=\"Ja\",\"Sender faktura\",+'Honorarlønnet 5'!$B$7)","v":0},null,{"$f":"+'Delkursusleder 1'!$B$23","v":"00:00:00"},2510,{"$f":"+Samlingsark!L12","v":0},null,1,null,null,{"$f":"'Delkursusleder 1'!$B$8","v":"[vælg fra liste]"},null,null,1,{"$f":"+Samlingsark!$D$4","v":"Kursusnummer findes automatisk efter du har indtastet speciale/kursusnavn"},{"$f":"IF(Samlingsark!L12>0.1,'Adm.ark satser'!$D$3,0)","v":0}]
[{"$f":"IF(LEN('Honorarlønnet 5'!$A$4)>0,\"Ja\",\"\")","v":""},{"$f":"IF('Honorarlønnet 5'!$E$7=\"Ja\",\"Sender faktura\",+'Honorarlønnet 5'!$B$7)","v":0},null,{"$f":"+'Delkursusleder 1'!$B$23","v":"00:00:00"},2510,{"$f":"+Samlingsark!M12","v":0},null,1,null,null,{"$f":"'Delkursusleder 1'!$B$8","v":"[vælg fra liste]"},null,null,1,{"$f":"+Samlingsark!$D$4","v":"Kursusnummer findes automatisk efter du har indtastet speciale/kursusnavn"},{"$f":"IF(Samlingsark!M12>0.1,'Adm.ark satser'!$D$4,0)","v":0}]
[{"$f":"IF(LEN('Honorarlønnet 6'!$A$4)>0,\"Ja\",\"\")","v":""},{"$f":"IF('Honorarlønnet 6'!$E$7=\"Ja\",\"Sender faktura\",+'Honorarlønnet 6'!$B$7)","v":0},null,{"$f":"+'Delkursusleder 1'!$B$23","v":"00:00:00"},2510,{"$f":"+Samlingsark!K13","v":0},null,1,null,null,{"$f":"'Delkursusleder 1'!$B$8","v":"[vælg fra liste]"},null,null,1,{"$f":"+Samlingsark!$D$4","v":"Kursusnummer findes automatisk efter du har indtastet speciale/kursusnavn"},{"$f":"IF(Samlingsark!K13>0.1,'Adm.ark satser'!$D$2,0)","v":0}]
[{"$f":"IF(LEN('Honorarlønnet 6'!$A$4)>0,\"Ja\",\"\")","v":""},{"$f":"IF('Honorarlønnet 6'!$E$7=\"Ja\",\"Sender faktura\",+'Honorarlønnet 6'!$B$7)","v":0},null,{"$f":"+'Delkursusleder 1'!$B$23","v":"00:00:00"},2510,{"$f":"+Samlingsark!L13","v":0},null,1,null,null,{"$f":"'Delkursusleder 1'!$B$8","v":"[vælg fra liste]"},null,null,1,{"$f":"+Samlingsark!$D$4","v":"Kursusnummer findes automatisk efter du har indtastet speciale/kursusnavn"},{"$f":"IF(Samlingsark!L13>0.1,'Adm.ark satser'!$D$3,0)","v":0}]
[{"$f":"IF(LEN('Honorarlønnet 6'!$A$4)>0,\"Ja\",\"\")","v":""},{"$f":"IF('Honorarlønnet 6'!$E$7=\"Ja\",\"Sender faktura\",+'Honorarlønnet 6'!$B$7)","v":0},null,{"$f":"+'Delkursusleder 1'!$B$23","v":"00:00:00"},2510,{"$f":"+Samlingsark!M13","v":0},null,1,null,null,{"$f":"'Delkursusleder 1'!$B$8","v":"[vælg fra liste]"},null,null,1,{"$f":"+Samlingsark!$D$4","v":"Kursusnummer findes automatisk efter du har indtastet speciale/kursusnavn"},{"$f":"IF(Samlingsark!M13>0.1,'Adm.ark satser'!$D$4,0)","v":0}]
[{"$f":"IF(LEN('Honorarlønnet 7'!$A$4)>0,\"Ja\",\"\")","v":""},{"$f":"IF('Honorarlønnet 7'!$E$7=\"Ja\",\"Sender faktura\",+'Honorarlønnet 7'!$B$7)","v":0},null,{"$f":"+'Delkursusleder 1'!$B$23","v":"00:00:00"},2510,{"$f":"+Samlingsark!K14","v":0},null,1,null,null,{"$f":"'Delkursusleder 1'!$B$8","v":"[vælg fra liste]"},null,null,1,{"$f":"+Samlingsark!$D$4","v":"Kursusnummer findes automatisk efter du har indtastet speciale/kursusnavn"},{"$f":"IF(Samlingsark!K14>0.1,'Adm.ark satser'!$D$2,0)","v":0}]
[{"$f":"IF(LEN('Honorarlønnet 7'!$A$4)>0,\"Ja\",\"\")","v":""},{"$f":"IF('Honorarlønnet 7'!$E$7=\"Ja\",\"Sender faktura\",+'Honorarlønnet 7'!$B$7)","v":0},null,{"$f":"+'Delkursusleder 1'!$B$23","v":"00:00:00"},2510,{"$f":"+Samlingsark!L14","v":0},null,1,null,null,{"$f":"'Delkursusleder 1'!$B$8","v":"[vælg fra liste]"},null,null,1,{"$f":"+Samlingsark!$D$4","v":"Kursusnummer findes automatisk efter du har indtastet speciale/kursusnavn"},{"$f":"IF(Samlingsark!L14>0.1,'Adm.ark satser'!$D$3,0)","v":0}]
[{"$f":"IF(LEN('Honorarlønnet 7'!$A$4)>0,\"Ja\",\"\")","v":""},{"$f":"IF('Honorarlønnet 7'!$E$7=\"Ja\",\"Sender faktura\",+'Honorarlønnet 7'!$B$7)","v":0},null,{"$f":"+'Delkursusleder 1'!$B$23","v":"00:00:00"},2510,{"$f":"+Samlingsark!M14","v":0},null,1,null,null,{"$f":"'Delkursusleder 1'!$B$8","v":"[vælg fra liste]"},null,null,1,{"$f":"+Samlingsark!$D$4","v":"Kursusnummer findes automatisk efter du har indtastet speciale/kursusnavn"},{"$f":"IF(Samlingsark!M14>0.1,'Adm.ark satser'!$D$4,0)","v":0}]
[{"$f":"IF(LEN('Honorarlønnet 8'!$A$4)>0,\"Ja\",\"\")","v":""},{"$f":"IF('Honorarlønnet 8'!$E$7=\"Ja\",\"Sender faktura\",+'Honorarlønnet 8'!$B$7)","v":0},null,{"$f":"+'Delkursusleder 1'!$B$23","v":"00:00:00"},2510,{"$f":"+Samlingsark!K15","v":0},null,1,null,null,{"$f":"'Delkursusleder 1'!$B$8","v":"[vælg fra liste]"},null,null,1,{"$f":"+Samlingsark!$D$4","v":"Kursusnummer findes automatisk efter du har indtastet speciale/kursusnavn"},{"$f":"IF(Samlingsark!K15>0.1,'Adm.ark satser'!$D$2,0)","v":0}]
[{"$f":"IF(LEN('Honorarlønnet 8'!$A$4)>0,\"Ja\",\"\")","v":""},{"$f":"IF('Honorarlønnet 8'!$E$7=\"Ja\",\"Sender faktura\",+'Honorarlønnet 8'!$B$7)","v":0},null,{"$f":"+'Delkursusleder 1'!$B$23","v":"00:00:00"},2510,{"$f":"+Samlingsark!L15","v":0},null,1,null,null,{"$f":"'Delkursusleder 1'!$B$8","v":"[vælg fra liste]"},null,null,1,{"$f":"+Samlingsark!$D$4","v":"Kursusnummer findes automatisk efter du har indtastet speciale/kursusnavn"},{"$f":"IF(Samlingsark!L15>0.1,'Adm.ark satser'!$D$3,0)","v":0}]
[{"$f":"IF(LEN('Honorarlønnet 8'!$A$4)>0,\"Ja\",\"\")","v":""},{"$f":"IF('Honorarlønnet 8'!$E$7=\"Ja\",\"Sender faktura\",+'Honorarlønnet 8'!$B$7)","v":0},null,{"$f":"+'Delkursusleder 1'!$B$23","v":"00:00:00"},2510,{"$f":"+Samlingsark!M15","v":0},null,1,null,null,{"$f":"'Delkursusleder 1'!$B$8","v":"[vælg fra liste]"},null,null,1,{"$f":"+Samlingsark!$D$4","v":"Kursusnummer findes automatisk efter du har indtastet speciale/kursusnavn"},{"$f":"IF(Samlingsark!M15>0.1,'Adm.ark satser'!$D$4,0)","v":0}]
[{"$f":"IF(LEN('Honorarlønnet 9'!$A$4)>0,\"Ja\",\"\")","v":""},{"$f":"IF('Honorarlønnet 9'!$E$7=\"Ja\",\"Sender faktura\",+'Honorarlønnet 9'!$B$7)","v":0},null,{"$f":"+'Delkursusleder 1'!$B$23","v":"00:00:00"},2510,{"$f":"+Samlingsark!K16","v":0},null,1,null,null,{"$f":"'Delkursusleder 1'!$B$8","v":"[vælg fra liste]"},null,null,1,{"$f":"+Samlingsark!$D$4","v":"Kursusnummer findes automatisk efter du har indtastet speciale/kursusnavn"},{"$f":"IF(Samlingsark!K16>0.1,'Adm.ark satser'!$D$2,0)","v":0}]
[{"$f":"IF(LEN('Honorarlønnet 9'!$A$4)>0,\"Ja\",\"\")","v":""},{"$f":"IF('Honorarlønnet 9'!$E$7=\"Ja\",\"Sender faktura\",+'Honorarlønnet 9'!$B$7)","v":0},null,{"$f":"+'Delkursusleder 1'!$B$23","v":"00:00:00"},2510,{"$f":"+Samlingsark!L16","v":0},null,1,null,null,{"$f":"'Delkursusleder 1'!$B$8","v":"[vælg fra liste]"},null,null,1,{"$f":"+Samlingsark!$D$4","v":"Kursusnummer findes automatisk efter du har indtastet speciale/kursusnavn"},{"$f":"IF(Samlingsark!L16>0.1,'Adm.ark satser'!$D$3,0)","v":0}]
[{"$f":"IF(LEN('Honorarlønnet 9'!$A$4)>0,\"Ja\",\"\")","v":""},{"$f":"IF('Honorarlønnet 9'!$E$7=\"Ja\",\"Sender faktura\",+'Honorarlønnet 9'!$B$7)","v":0},null,{"$f":"+'Delkursusleder 1'!$B$23","v":"00:00:00"},2510,{"$f":"+Samlingsark!M16","v":0},null,1,null,null,{"$f":"'Delkursusleder 1'!$B$8","v":"[vælg fra liste]"},null,null,1,{"$f":"+Samlingsark!$D$4","v":"Kursusnummer findes automatisk efter du har indtastet speciale/kursusnavn"},{"$f":"IF(Samlingsark!M16>0.1,'Adm.ark satser'!$D$4,0)","v":0}]
[{"$f":"IF(LEN('Honorarlønnet 10'!$A$4)>0,\"Ja\",\"\")","v":""},{"$f":"IF('Honorarlønnet 10'!$E$7=\"Ja\",\"Sender faktura\",+'Honorarlønnet 10'!$B$7)","v":0},null,{"$f":"+'Delkursusleder 1'!$B$23","v":"00:00:00"},2510,{"$f":"+Samlingsark!K17","v":0},null,1,null,null,{"$f":"'Delkursusleder 1'!$B$8","v":"[vælg fra liste]"},null,null,1,{"$f":"+Samlingsark!$D$4","v":"Kursusnummer findes automatisk efter du har indtastet speciale/kursusnavn"},{"$f":"IF(Samlingsark!K17>0.1,'Adm.ark satser'!$D$2,0)","v":0}]
[{"$f":"IF(LEN('Honorarlønnet 10'!$A$4)>0,\"Ja\",\"\")","v":""},{"$f":"IF('Honorarlønnet 10'!$E$7=\"Ja\",\"Sender faktura\",+'Honorarlønnet 10'!$B$7)","v":0},null,{"$f":"+'Delkursusleder 1'!$B$23","v":"00:00:00"},2510,{"$f":"+Samlingsark!L17","v":0},null,1,null,null,{"$f":"'Delkursusleder 1'!$B$8","v":"[vælg fra liste]"},null,null,1,{"$f":"+Samlingsark!$D$4","v":"Kursusnummer findes automatisk efter du har indtastet speciale/kursusnavn"},{"$f":"IF(Samlingsark!L17>0.1,'Adm.ark satser'!$D$3,0)","v":0}]
[{"$f":"IF(LEN('Honorarlønnet 10'!$A$4)>0,\"Ja\",\"\")","v":""},{"$f":"IF('Honorarlønnet 10'!$E$7=\"Ja\",\"Sender faktura\",+'Honorarlønnet 10'!$B$7)","v":0},null,{"$f":"+'Delkursusleder 1'!$B$23","v":"00:00:00"},2510,{"$f":"+Samlingsark!M17","v":0},null,1,null,null,{"$f":"'Delkursusleder 1'!$B$8","v":"[vælg fra liste]"},null,null,1,{"$f":"+Samlingsark!$D$4","v":"Kursusnummer findes automatisk efter du har indtastet speciale/kursusnavn"},{"$f":"IF(Samlingsark!M17>0.1,'Adm.ark satser'!$D$4,0)","v":0}]
[{"$f":"IF(LEN('Honorarlønnet 11'!$A$4)>0,\"Ja\",\"\")","v":""},{"$f":"IF('Honorarlønnet 11'!$E$7=\"Ja\",\"Sender faktura\",+'Honorarlønnet 11'!$B$7)","v":0},null,{"$f":"+'Delkursusleder 1'!$B$23","v":"00:00:00"},2510,{"$f":"+Samlingsark!K18","v":0},null,1,null,null,{"$f":"'Delkursusleder 1'!$B$8","v":"[vælg fra liste]"},null,null,1,{"$f":"+Samlingsark!$D$4","v":"Kursusnummer findes automatisk efter du har indtastet speciale/kursusnavn"},{"$f":"IF(Samlingsark!K18>0.1,'Adm.ark satser'!$D$2,0)","v":0}]
[{"$f":"IF(LEN('Honorarlønnet 11'!$A$4)>0,\"Ja\",\"\")","v":""},{"$f":"IF('Honorarlønnet 11'!$E$7=\"Ja\",\"Sender faktura\",+'Honorarlønnet 11'!$B$7)","v":0},null,{"$f":"+'Delkursusleder 1'!$B$23","v":"00:00:00"},2510,{"$f":"+Samlingsark!L18","v":0},null,1,null,null,{"$f":"'Delkursusleder 1'!$B$8","v":"[vælg fra liste]"},null,null,1,{"$f":"+Samlingsark!$D$4","v":"Kursusnummer findes automatisk efter du har indtastet speciale/kursusnavn"},{"$f":"IF(Samlingsark!L18>0.1,'Adm.ark satser'!$D$3,0)","v":0}]
[{"$f":"IF(LEN('Honorarlønnet 11'!$A$4)>0,\"Ja\",\"\")","v":""},{"$f":"IF('Honorarlønnet 11'!$E$7=\"Ja\",\"Sender faktura\",+'Honorarlønnet 11'!$B$7)","v":0},null,{"$f":"+'Delkursusleder 1'!$B$23","v":"00:00:00"},2510,{"$f":"+Samlingsark!M18","v":0},null,1,null,null,{"$f":"'Delkursusleder 1'!$B$8","v":"[vælg fra liste]"},null,null,1,{"$f":"+Samlingsark!$D$4","v":"Kursusnummer findes automatisk efter du har indtastet speciale/kursusnavn"},{"$f":"IF(Samlingsark!M18>0.1,'Adm.ark satser'!$D$4,0)","v":0}]
[{"$f":"IF(LEN('Honorarlønnet 12'!$A$4)>0,\"Ja\",\"\")","v":""},{"$f":"IF('Honorarlønnet 12'!$E$7=\"Ja\",\"Sender faktura\",+'Honorarlønnet 12'!$B$7)","v":0},null,{"$f":"+'Delkursusleder 1'!$B$23","v":"00:00:00"},2510,{"$f":"+Samlingsark!K19","v":0},null,1,null,null,{"$f":"'Delkursusleder 1'!$B$8","v":"[vælg fra liste]"},null,null,1,{"$f":"+Samlingsark!$D$4","v":"Kursusnummer findes automatisk efter du har indtastet speciale/kursusnavn"},{"$f":"IF(Samlingsark!K19>0.1,'Adm.ark satser'!$D$2,0)","v":0}]
[{"$f":"IF(LEN('Honorarlønnet 12'!$A$4)>0,\"Ja\",\"\")","v":""},{"$f":"IF('Honorarlønnet 12'!$E$7=\"Ja\",\"Sender faktura\",+'Honorarlønnet 12'!$B$7)","v":0},null,{"$f":"+'Delkursusleder 1'!$B$23","v":"00:00:00"},2510,{"$f":"+Samlingsark!L19","v":0},null,1,null,null,{"$f":"'Delkursusleder 1'!$B$8","v":"[vælg fra liste]"},null,null,1,{"$f":"+Samlingsark!$D$4","v":"Kursusnummer findes automatisk efter du har indtastet speciale/kursusnavn"},{"$f":"IF(Samlingsark!L19>0.1,'Adm.ark satser'!$D$3,0)","v":0}]
[{"$f":"IF(LEN('Honorarlønnet 12'!$A$4)>0,\"Ja\",\"\")","v":""},{"$f":"IF('Honorarlønnet 12'!$E$7=\"Ja\",\"Sender faktura\",+'Honorarlønnet 12'!$B$7)","v":0},null,{"$f":"+'Delkursusleder 1'!$B$23","v":"00:00:00"},2510,{"$f":"+Samlingsark!M19","v":0},null,1,null,null,{"$f":"'Delkursusleder 1'!$B$8","v":"[vælg fra liste]"},null,null,1,{"$f":"+Samlingsark!$D$4","v":"Kursusnummer findes automatisk efter du har indtastet speciale/kursusnavn"},{"$f":"IF(Samlingsark!M19>0.1,'Adm.ark satser'!$D$4,0)","v":0}]
[{"$f":"IF(LEN('Honorarlønnet 13'!$A$4)>0,\"Ja\",\"\")","v":""},{"$f":"IF('Honorarlønnet 13'!$E$7=\"Ja\",\"Sender faktura\",+'Honorarlønnet 13'!$B$7)","v":0},null,{"$f":"+'Delkursusleder 1'!$B$23","v":"00:00:00"},2510,{"$f":"+Samlingsark!K20","v":0},null,1,null,null,{"$f":"'Delkursusleder 1'!$B$8","v":"[vælg fra liste]"},null,null,1,{"$f":"+Samlingsark!$D$4","v":"Kursusnummer findes automatisk efter du har indtastet speciale/kursusnavn"},{"$f":"IF(Samlingsark!K20>0.1,'Adm.ark satser'!$D$2,0)","v":0}]
[{"$f":"IF(LEN('Honorarlønnet 13'!$A$4)>0,\"Ja\",\"\")","v":""},{"$f":"IF('Honorarlønnet 13'!$E$7=\"Ja\",\"Sender faktura\",+'Honorarlønnet 13'!$B$7)","v":0},null,{"$f":"+'Delkursusleder 1'!$B$23","v":"00:00:00"},2510,{"$f":"+Samlingsark!L20","v":0},null,1,null,null,{"$f":"'Delkursusleder 1'!$B$8","v":"[vælg fra liste]"},null,null,1,{"$f":"+Samlingsark!$D$4","v":"Kursusnummer findes automatisk efter du har indtastet speciale/kursusnavn"},{"$f":"IF(Samlingsark!L20>0.1,'Adm.ark satser'!$D$3,0)","v":0}]
[{"$f":"IF(LEN('Honorarlønnet 13'!$A$4)>0,\"Ja\",\"\")","v":""},{"$f":"IF('Honorarlønnet 13'!$E$7=\"Ja\",\"Sender faktura\",+'Honorarlønnet 13'!$B$7)","v":0},null,{"$f":"+'Delkursusleder 1'!$B$23","v":"00:00:00"},2510,{"$f":"+Samlingsark!M20","v":0},null,1,null,null,{"$f":"'Delkursusleder 1'!$B$8","v":"[vælg fra liste]"},null,null,1,{"$f":"+Samlingsark!$D$4","v":"Kursusnummer findes automatisk efter du har indtastet speciale/kursusnavn"},{"$f":"IF(Samlingsark!M20>0.1,'Adm.ark satser'!$D$4,0)","v":0}]
[{"$f":"IF(LEN('Honorarlønnet 14'!$A$4)>0,\"Ja\",\"\")","v":""},{"$f":"IF('Honorarlønnet 14'!$E$7=\"Ja\",\"Sender faktura\",+'Honorarlønnet 14'!$B$7)","v":0},null,{"$f":"+'Delkursusleder 1'!$B$23","v":"00:00:00"},2510,{"$f":"+Samlingsark!K21","v":0},null,1,null,null,{"$f":"'Delkursusleder 1'!$B$8","v":"[vælg fra liste]"},null,null,1,{"$f":"+Samlingsark!$D$4","v":"Kursusnummer findes automatisk efter du har indtastet speciale/kursusnavn"},{"$f":"IF(Samlingsark!K21>0.1,'Adm.ark satser'!$D$2,0)","v":0}]
[{"$f":"IF(LEN('Honorarlønnet 14'!$A$4)>0,\"Ja\",\"\")","v":""},{"$f":"IF('Honorarlønnet 14'!$E$7=\"Ja\",\"Sender faktura\",+'Honorarlønnet 14'!$B$7)","v":0},null,{"$f":"+'Delkursusleder 1'!$B$23","v":"00:00:00"},2510,{"$f":"+Samlingsark!L21","v":0},null,1,null,null,{"$f":"'Delkursusleder 1'!$B$8","v":"[vælg fra liste]"},null,null,1,{"$f":"+Samlingsark!$D$4","v":"Kursusnummer findes automatisk efter du har indtastet speciale/kursusnavn"},{"$f":"IF(Samlingsark!L21>0.1,'Adm.ark satser'!$D$3,0)","v":0}]
[{"$f":"IF(LEN('Honorarlønnet 14'!$A$4)>0,\"Ja\",\"\")","v":""},{"$f":"IF('Honorarlønnet 14'!$E$7=\"Ja\",\"Sender faktura\",+'Honorarlønnet 14'!$B$7)","v":0},null,{"$f":"+'Delkursusleder 1'!$B$23","v":"00:00:00"},2510,{"$f":"+Samlingsark!M21","v":0},null,1,null,null,{"$f":"'Delkursusleder 1'!$B$8","v":"[vælg fra liste]"},null,null,1,{"$f":"+Samlingsark!$D$4","v":"Kursusnummer findes automatisk efter du har indtastet speciale/kursusnavn"},{"$f":"IF(Samlingsark!M21>0.1,'Adm.ark satser'!$D$4,0)","v":0}]
[{"$f":"IF(LEN('Honorarlønnet 15'!$A$4)>0,\"Ja\",\"\")","v":""},{"$f":"IF('Honorarlønnet 15'!$E$7=\"Ja\",\"Sender faktura\",+'Honorarlønnet 15'!$B$7)","v":0},null,{"$f":"+'Delkursusleder 1'!$B$23","v":"00:00:00"},2510,{"$f":"+Samlingsark!K22","v":0},null,1,null,null,{"$f":"'Delkursusleder 1'!$B$8","v":"[vælg fra liste]"},null,null,1,{"$f":"+Samlingsark!$D$4","v":"Kursusnummer findes automatisk efter du har indtastet speciale/kursusnavn"},{"$f":"IF(Samlingsark!K22>0.1,'Adm.ark satser'!$D$2,0)","v":0}]
[{"$f":"IF(LEN('Honorarlønnet 15'!$A$4)>0,\"Ja\",\"\")","v":""},{"$f":"IF('Honorarlønnet 15'!$E$7=\"Ja\",\"Sender faktura\",+'Honorarlønnet 15'!$B$7)","v":0},null,{"$f":"+'Delkursusleder 1'!$B$23","v":"00:00:00"},2510,{"$f":"+Samlingsark!L22","v":0},null,1,null,null,{"$f":"'Delkursusleder 1'!$B$8","v":"[vælg fra liste]"},null,null,1,{"$f":"+Samlingsark!$D$4","v":"Kursusnummer findes automatisk efter du har indtastet speciale/kursusnavn"},{"$f":"IF(Samlingsark!L22>0.1,'Adm.ark satser'!$D$3,0)","v":0}]
[{"$f":"IF(LEN('Honorarlønnet 15'!$A$4)>0,\"Ja\",\"\")","v":""},{"$f":"IF('Honorarlønnet 15'!$E$7=\"Ja\",\"Sender faktura\",+'Honorarlønnet 15'!$B$7)","v":0},null,{"$f":"+'Delkursusleder 1'!$B$23","v":"00:00:00"},2510,{"$f":"+Samlingsark!M22","v":0},null,1,null,null,{"$f":"'Delkursusleder 1'!$B$8","v":"[vælg fra liste]"},null,null,1,{"$f":"+Samlingsark!$D$4","v":"Kursusnummer findes automatisk efter du har indtastet speciale/kursusnavn"},{"$f":"IF(Samlingsark!M22>0.1,'Adm.ark satser'!$D$4,0)","v":0}]

{"sheet":"Lønadm_backup","index":25,"n_rows":56,"n_cols":20,"rows_kept":56,"cut":false,"hidden":true,"merged":[]}
["CPR fejl?","Cpr.nr.*","Løbenr.","Dato*","Løndelsnr.*","Felt1*","Felt2","Felt3","Felt4","Kreditorkodenr.","Afvigende løndelstekst","Bogf.kreds+delregnskab (8 cifre)","Artskonto (4 cifre)","Segment 1","Segment 2","Segment 3","Segment 4","Segment 5","Segment 6","Navn"]
[{"$f":"IF(LEN('Delkursusleder 1'!$C$16)>0,\"Ja\",\"\")","v":""},{"$f":"IF('Delkursusleder 1'!$B$19=\"Ja\",\"Sender faktura\",'Delkursusleder 1'!$B$16)","v":0},null,{"$f":"+'Delkursusleder 1'!$B$23","v":"00:00:00"},2510,{"$f":"Samlingsark!I4","v":0},null,1,null,null,{"$f":"'Delkursusleder 1'!$B$8","v":"[vælg fra liste]"},null,null,1,{"$f":"+Samlingsark!$D$4","v":"Kursusnummer findes automatisk efter du har indtastet speciale/kursusnavn"},{"$f":"IF(Samlingsark!I4>0.1,'Adm.ark satser'!$D$5,0)","v":0},null,null,null,"Delkursusleder 1"]
[{"$f":"IF(LEN('Delkursusleder 1'!$C$16)>0,\"Ja\",\"\")","v":""},{"$f":"IF('Delkursusleder 1'!$B$19=\"Ja\",\"Sender faktura\",'Delkursusleder 1'!$B$16)","v":0},null,{"$f":"+'Delkursusleder 1'!$B$23","v":"00:00:00"},2510,{"$f":"+Samlingsark!K4","v":0},null,1,null,null,{"$f":"'Delkursusleder 1'!$B$8","v":"[vælg fra liste]"},null,null,1,{"$f":"+Samlingsark!$D$4","v":"Kursusnummer findes automatisk efter du har indtastet speciale/kursusnavn"},{"$f":"IF(Samlingsark!K4>0.1,'Adm.ark satser'!$D$2,0)","v":0},null,null,null,"Delkursusleder 1"]
[{"$f":"IF(LEN('Delkursusleder 1'!$C$16)>0,\"Ja\",\"\")","v":""},{"$f":"IF('Delkursusleder 1'!$B$19=\"Ja\",\"Sender faktura\",'Delkursusleder 1'!$B$16)","v":0},null,{"$f":"+'Delkursusleder 1'!$B$23","v":"00:00:00"},2510,{"$f":"+Samlingsark!L4","v":0},null,1,null,null,{"$f":"'Delkursusleder 1'!$B$8","v":"[vælg fra liste]"},null,null,1,{"$f":"+Samlingsark!$D$4","v":"Kursusnummer findes automatisk efter du har indtastet speciale/kursusnavn"},{"$f":"IF(Samlingsark!L4>0.1,'Adm.ark satser'!$D$3,0)","v":0},null,null,null,"Delkursusleder 1"]
[{"$f":"IF(LEN('Delkursusleder 1'!$C$16)>0,\"Ja\",\"\")","v":""},{"$f":"IF('Delkursusleder 1'!$B$19=\"Ja\",\"Sender faktura\",'Delkursusleder 1'!$B$16)","v":0},null,{"$f":"+'Delkursusleder 1'!$B$23","v":"00:00:00"},2510,{"$f":"+Samlingsark!M4","v":0},null,1,null,null,{"$f":"'Delkursusleder 1'!$B$8","v":"[vælg fra liste]"},null,null,1,{"$f":"+Samlingsark!$D$4","v":"Kursusnummer findes automatisk efter du har indtastet speciale/kursusnavn"},{"$f":"IF(Samlingsark!M4>0.1,'Adm.ark satser'!$D$4,0)","v":0},null,null,null,"Delkursusleder 1"]
[{"$f":"IF(LEN('(Evt. delkursusleder 2)'!$A$11)>0,\"Ja\",\"\")","v":""},{"$f":"IF('(Evt. delkursusleder 2)'!$E$8=\"Ja\",\"Sender faktura\",'(Evt. delkursusleder 2)'!$B$8)","v":0},null,{"$f":"+'Delkursusleder 1'!$B$23","v":"00:00:00"},2510,{"$f":"Samlingsark!I5","v":0},null,1,null,null,{"$f":"'Delkursusleder 1'!$B$8","v":"[vælg fra liste]"},null,null,1,{"$f":"+Samlingsark!$D$4","v":"Kursusnummer findes automatisk efter du har indtastet speciale/kursusnavn"},{"$f":"IF(Samlingsark!I5>0.1,'Adm.ark satser'!$D$5,0)","v":0},null,null,null,"Evt. delkursusleder 2"]
[{"$f":"IF(LEN('(Evt. delkursusleder 2)'!$A$11)>0,\"Ja\",\"\")","v":""},{"$f":"IF('(Evt. delkursusleder 2)'!$E$8=\"Ja\",\"Sender faktura\",'(Evt. delkursusleder 2)'!$B$8)","v":0},null,{"$f":"+'Delkursusleder 1'!$B$23","v":"00:00:00"},2510,{"$f":"Samlingsark!K5","v":0},null,1,null,null,{"$f":"'Delkursusleder 1'!$B$8","v":"[vælg fra liste]"},null,null,1,{"$f":"+Samlingsark!$D$4","v":"Kursusnummer findes automatisk efter du har indtastet speciale/kursusnavn"},{"$f":"IF(Samlingsark!K5>0.1,'Adm.ark satser'!$D$2,0)","v":0},null,null,null,"Evt. delkursusleder 2"]
[{"$f":"IF(LEN('(Evt. delkursusleder 2)'!$A$11)>0,\"Ja\",\"\")","v":""},{"$f":"IF('(Evt. delkursusleder 2)'!$E$8=\"Ja\",\"Sender faktura\",'(Evt. delkursusleder 2)'!$B$8)","v":0},null,{"$f":"+'Delkursusleder 1'!$B$23","v":"00:00:00"},2510,{"$f":"Samlingsark!L5","v":0},null,1,null,null,{"$f":"'Delkursusleder 1'!$B$8","v":"[vælg fra liste]"},null,null,1,{"$f":"+Samlingsark!$D$4","v":"Kursusnummer findes automatisk efter du har indtastet speciale/kursusnavn"},{"$f":"IF(Samlingsark!L5>0.1,'Adm.ark satser'!$D$3,0)","v":0},null,null,null,"Evt. delkursusleder 2"]
[{"$f":"IF(LEN('(Evt. delkursusleder 2)'!$A$11)>0,\"Ja\",\"\")","v":""},{"$f":"IF('(Evt. delkursusleder 2)'!$E$8=\"Ja\",\"Sender faktura\",'(Evt. delkursusleder 2)'!$B$8)","v":0},null,{"$f":"+'Delkursusleder 1'!$B$23","v":"00:00:00"},2510,{"$f":"Samlingsark!M5","v":0},null,1,null,null,{"$f":"'Delkursusleder 1'!$B$8","v":"[vælg fra liste]"},null,null,1,{"$f":"+Samlingsark!$D$4","v":"Kursusnummer findes automatisk efter du har indtastet speciale/kursusnavn"},{"$f":"IF(Samlingsark!M5>0.1,'Adm.ark satser'!$D$4,0)","v":0},null,null,null,"Evt. delkursusleder 2"]
[{"$f":"IF(LEN(Sekretær!$A$4)>0,\"Ja\",\"\")","v":""},{"$f":"IF(Sekretær!H7=\"Ja\",\"Sender faktura\",Sekretær!B7)","v":0},null,{"$f":"+'Delkursusleder 1'!$B$23","v":"00:00:00"},2510,{"$f":"+Samlingsark!J7","v":0},null,1,null,null,{"$f":"'Delkursusleder 1'!$B$8","v":"[vælg fra liste]"},null,null,1,{"$f":"+Samlingsark!$D$4","v":"Kursusnummer findes automatisk efter du har indtastet speciale/kursusnavn"},{"$f":"IF(Samlingsark!J7>0.1,'Adm.ark satser'!$D$6,0)","v":0},null,null,null,"Sekretær"]
[{"$f":"IF(LEN(Hovedkursusleder!$A$4)>0,\"Ja\",\"\")","v":""},{"$f":"IF(Hovedkursusleder!I11=\"Ja\",\"Sender faktura\",+Hovedkursusleder!B7)","v":0},null,{"$f":"+'Delkursusleder 1'!$B$23","v":"00:00:00"},2510,{"$f":"+Samlingsark!J6","v":0},null,1,null,null,{"$f":"'Delkursusleder 1'!$B$8","v":"[vælg fra liste]"},null,null,1,{"$f":"+Samlingsark!$D$4","v":"Kursusnummer findes automatisk efter du har indtastet speciale/kursusnavn"},{"$f":"IF(Samlingsark!J6>0.1,'Adm.ark satser'!$D$6,0)","v":0},null,null,null,"Hovedkursusleder"]
[{"$f":"IF(LEN('Honorarlønnet 1'!$A$4)>0,\"Ja\",\"\")","v":""},{"$f":"IF('Honorarlønnet 1'!$E$7=\"Ja\",\"Sender faktura\",+'Honorarlønnet 1'!$B$7)","v":0},null,{"$f":"+'Delkursusleder 1'!$B$23","v":"00:00:00"},2510,{"$f":"+Samlingsark!K8","v":0},null,1,null,null,{"$f":"'Delkursusleder 1'!$B$8","v":"[vælg fra liste]"},null,null,1,{"$f":"+Samlingsark!$D$4","v":"Kursusnummer findes automatisk efter du har indtastet speciale/kursusnavn"},{"$f":"IF(Samlingsark!K8>0.1,'Adm.ark satser'!$D$2,0)","v":0},null,null,null,{"$f":"'Honorarlønnet 1'!$B$5","v":0}]
[{"$f":"IF(LEN('Honorarlønnet 1'!$A$4)>0,\"Ja\",\"\")","v":""},{"$f":"IF('Honorarlønnet 1'!$E$7=\"Ja\",\"Sender faktura\",+'Honorarlønnet 1'!$B$7)","v":0},null,{"$f":"+'Delkursusleder 1'!$B$23","v":"00:00:00"},2510,{"$f":"+Samlingsark!L8","v":0},null,1,null,null,{"$f":"'Delkursusleder 1'!$B$8","v":"[vælg fra liste]"},null,null,1,{"$f":"+Samlingsark!$D$4","v":"Kursusnummer findes automatisk efter du har indtastet speciale/kursusnavn"},{"$f":"IF(Samlingsark!L8>0.1,'Adm.ark satser'!$D$3,0)","v":0},null,null,null,{"$f":"'Honorarlønnet 1'!$B$5","v":0}]
[{"$f":"IF(LEN('Honorarlønnet 1'!$A$4)>0,\"Ja\",\"\")","v":""},{"$f":"IF('Honorarlønnet 1'!$E$7=\"Ja\",\"Sender faktura\",+'Honorarlønnet 1'!$B$7)","v":0},null,{"$f":"+'Delkursusleder 1'!$B$23","v":"00:00:00"},2510,{"$f":"+Samlingsark!M8","v":0},null,1,null,null,{"$f":"'Delkursusleder 1'!$B$8","v":"[vælg fra liste]"},null,null,1,{"$f":"+Samlingsark!$D$4","v":"Kursusnummer findes automatisk efter du har indtastet speciale/kursusnavn"},{"$f":"IF(Samlingsark!M8>0.1,'Adm.ark satser'!$D$4,0)","v":0},null,null,null,{"$f":"'Honorarlønnet 1'!$B$5","v":0}]
[{"$f":"IF(LEN('Honorarlønnet 2'!$A$4)>0,\"Ja\",\"\")","v":""},{"$f":"IF('Honorarlønnet 2'!$E$7=\"Ja\",\"Sender faktura\",+'Honorarlønnet 2'!$B$7)","v":0},null,{"$f":"+'Delkursusleder 1'!$B$23","v":"00:00:00"},2510,{"$f":"+Samlingsark!K9","v":0},null,1,null,null,{"$f":"'Delkursusleder 1'!$B$8","v":"[vælg fra liste]"},null,null,1,{"$f":"+Samlingsark!$D$4","v":"Kursusnummer findes automatisk efter du har indtastet speciale/kursusnavn"},{"$f":"IF(Samlingsark!K9>0.1,'Adm.ark satser'!$D$2,0)","v":0},null,null,null,{"$f":"'Honorarlønnet 2'!$B$5","v":0}]
[{"$f":"IF(LEN('Honorarlønnet 2'!$A$4)>0,\"Ja\",\"\")","v":""},{"$f":"IF('Honorarlønnet 2'!$E$7=\"Ja\",\"Sender faktura\",+'Honorarlønnet 2'!$B$7)","v":0},null,{"$f":"+'Delkursusleder 1'!$B$23","v":"00:00:00"},2510,{"$f":"+Samlingsark!L9","v":0},null,1,null,null,{"$f":"'Delkursusleder 1'!$B$8","v":"[vælg fra liste]"},null,null,1,{"$f":"+Samlingsark!$D$4","v":"Kursusnummer findes automatisk efter du har indtastet speciale/kursusnavn"},{"$f":"IF(Samlingsark!L9>0.1,'Adm.ark satser'!$D$3,0)","v":0},null,null,null,{"$f":"'Honorarlønnet 2'!$B$5","v":0}]
[{"$f":"IF(LEN('Honorarlønnet 2'!$A$4)>0,\"Ja\",\"\")","v":""},{"$f":"IF('Honorarlønnet 2'!$E$7=\"Ja\",\"Sender faktura\",+'Honorarlønnet 2'!$B$7)","v":0},null,{"$f":"+'Delkursusleder 1'!$B$23","v":"00:00:00"},2510,{"$f":"+Samlingsark!M9","v":0},null,1,null,null,{"$f":"'Delkursusleder 1'!$B$8","v":"[vælg fra liste]"},null,null,1,{"$f":"+Samlingsark!$D$4","v":"Kursusnummer findes automatisk efter du har indtastet speciale/kursusnavn"},{"$f":"IF(Samlingsark!M9>0.1,'Adm.ark satser'!$D$4,0)","v":0},null,null,null,{"$f":"'Honorarlønnet 2'!$B$5","v":0}]
[{"$f":"IF(LEN('Honorarlønnet 3'!$A$4)>0,\"Ja\",\"\")","v":""},{"$f":"IF('Honorarlønnet 3'!$E$7=\"Ja\",\"Sender faktura\",+'Honorarlønnet 3'!$B$7)","v":0},null,{"$f":"+'Delkursusleder 1'!$B$23","v":"00:00:00"},2510,{"$f":"+Samlingsark!K10","v":0},null,1,null,null,{"$f":"'Delkursusleder 1'!$B$8","v":"[vælg fra liste]"},null,null,1,{"$f":"+Samlingsark!$D$4","v":"Kursusnummer findes automatisk efter du har indtastet speciale/kursusnavn"},{"$f":"IF(Samlingsark!K10>0.1,'Adm.ark satser'!$D$2,0)","v":0},null,null,null,{"$f":"'Honorarlønnet 3'!$B$5","v":0}]
[{"$f":"IF(LEN('Honorarlønnet 3'!$A$4)>0,\"Ja\",\"\")","v":""},{"$f":"IF('Honorarlønnet 3'!$E$7=\"Ja\",\"Sender faktura\",+'Honorarlønnet 3'!$B$7)","v":0},null,{"$f":"+'Delkursusleder 1'!$B$23","v":"00:00:00"},2510,{"$f":"+Samlingsark!L10","v":0},null,1,null,null,{"$f":"'Delkursusleder 1'!$B$8","v":"[vælg fra liste]"},null,null,1,{"$f":"+Samlingsark!$D$4","v":"Kursusnummer findes automatisk efter du har indtastet speciale/kursusnavn"},{"$f":"IF(Samlingsark!L10>0.1,'Adm.ark satser'!$D$3,0)","v":0},null,null,null,{"$f":"'Honorarlønnet 3'!$B$5","v":0}]
[{"$f":"IF(LEN('Honorarlønnet 3'!$A$4)>0,\"Ja\",\"\")","v":""},{"$f":"IF('Honorarlønnet 3'!$E$7=\"Ja\",\"Sender faktura\",+'Honorarlønnet 3'!$B$7)","v":0},null,{"$f":"+'Delkursusleder 1'!$B$23","v":"00:00:00"},2510,{"$f":"+Samlingsark!M10","v":0},null,1,null,null,{"$f":"'Delkursusleder 1'!$B$8","v":"[vælg fra liste]"},null,null,1,{"$f":"+Samlingsark!$D$4","v":"Kursusnummer findes automatisk efter du har indtastet speciale/kursusnavn"},{"$f":"IF(Samlingsark!M10>0.1,'Adm.ark satser'!$D$4,0)","v":0},null,null,null,{"$f":"'Honorarlønnet 3'!$B$5","v":0}]
[{"$f":"IF(LEN('Honorarlønnet 4'!$A$4)>0,\"Ja\",\"\")","v":""},{"$f":"IF('Honorarlønnet 4'!$E$7=\"Ja\",\"Sender faktura\",+'Honorarlønnet 4'!$B$7)","v":0},null,{"$f":"+'Delkursusleder 1'!$B$23","v":"00:00:00"},2510,{"$f":"+Samlingsark!K11","v":0},null,1,null,null,{"$f":"'Delkursusleder 1'!$B$8","v":"[vælg fra liste]"},null,null,1,{"$f":"+Samlingsark!$D$4","v":"Kursusnummer findes automatisk efter du har indtastet speciale/kursusnavn"},{"$f":"IF(Samlingsark!K11>0.1,'Adm.ark satser'!$D$2,0)","v":0},null,null,null,{"$f":"'Honorarlønnet 4'!$B$5","v":0}]
[{"$f":"IF(LEN('Honorarlønnet 4'!$A$4)>0,\"Ja\",\"\")","v":""},{"$f":"IF('Honorarlønnet 4'!$E$7=\"Ja\",\"Sender faktura\",+'Honorarlønnet 4'!$B$7)","v":0},null,{"$f":"+'Delkursusleder 1'!$B$23","v":"00:00:00"},2510,{"$f":"+Samlingsark!L11","v":0},null,1,null,null,{"$f":"'Delkursusleder 1'!$B$8","v":"[vælg fra liste]"},null,null,1,{"$f":"+Samlingsark!$D$4","v":"Kursusnummer findes automatisk efter du har indtastet speciale/kursusnavn"},{"$f":"IF(Samlingsark!L11>0.1,'Adm.ark satser'!$D$3,0)","v":0},null,null,null,{"$f":"'Honorarlønnet 4'!$B$5","v":0}]
[{"$f":"IF(LEN('Honorarlønnet 4'!$A$4)>0,\"Ja\",\"\")","v":""},{"$f":"IF('Honorarlønnet 4'!$E$7=\"Ja\",\"Sender faktura\",+'Honorarlønnet 4'!$B$7)","v":0},null,{"$f":"+'Delkursusleder 1'!$B$23","v":"00:00:00"},2510,{"$f":"+Samlingsark!M11","v":0},null,1,null,null,{"$f":"'Delkursusleder 1'!$B$8","v":"[vælg fra liste]"},null,null,1,{"$f":"+Samlingsark!$D$4","v":"Kursusnummer findes automatisk efter du har indtastet speciale/kursusnavn"},{"$f":"IF(Samlingsark!M11>0.1,'Adm.ark satser'!$D$4,0)","v":0},null,null,null,{"$f":"'Honorarlønnet 4'!$B$5","v":0}]
[{"$f":"IF(LEN('Honorarlønnet 5'!$A$4)>0,\"Ja\",\"\")","v":""},{"$f":"IF('Honorarlønnet 5'!$E$7=\"Ja\",\"Sender faktura\",+'Honorarlønnet 5'!$B$7)","v":0},null,{"$f":"+'Delkursusleder 1'!$B$23","v":"00:00:00"},2510,{"$f":"+Samlingsark!K12","v":0},null,1,null,null,{"$f":"'Delkursusleder 1'!$B$8","v":"[vælg fra liste]"},null,null,1,{"$f":"+Samlingsark!$D$4","v":"Kursusnummer findes automatisk efter du har indtastet speciale/kursusnavn"},{"$f":"IF(Samlingsark!K12>0.1,'Adm.ark satser'!$D$2,0)","v":0},null,null,null,{"$f":"'Honorarlønnet 5'!$B$5","v":0}]
[{"$f":"IF(LEN('Honorarlønnet 5'!$A$4)>0,\"Ja\",\"\")","v":""},{"$f":"IF('Honorarlønnet 5'!$E$7=\"Ja\",\"Sender faktura\",+'Honorarlønnet 5'!$B$7)","v":0},null,{"$f":"+'Delkursusleder 1'!$B$23","v":"00:00:00"},2510,{"$f":"+Samlingsark!L12","v":0},null,1,null,null,{"$f":"'Delkursusleder 1'!$B$8","v":"[vælg fra liste]"},null,null,1,{"$f":"+Samlingsark!$D$4","v":"Kursusnummer findes automatisk efter du har indtastet speciale/kursusnavn"},{"$f":"IF(Samlingsark!L12>0.1,'Adm.ark satser'!$D$3,0)","v":0},null,null,null,{"$f":"'Honorarlønnet 5'!$B$5","v":0}]
[{"$f":"IF(LEN('Honorarlønnet 5'!$A$4)>0,\"Ja\",\"\")","v":""},{"$f":"IF('Honorarlønnet 5'!$E$7=\"Ja\",\"Sender faktura\",+'Honorarlønnet 5'!$B$7)","v":0},null,{"$f":"+'Delkursusleder 1'!$B$23","v":"00:00:00"},2510,{"$f":"+Samlingsark!M12","v":0},null,1,null,null,{"$f":"'Delkursusleder 1'!$B$8","v":"[vælg fra liste]"},null,null,1,{"$f":"+Samlingsark!$D$4","v":"Kursusnummer findes automatisk efter du har indtastet speciale/kursusnavn"},{"$f":"IF(Samlingsark!M12>0.1,'Adm.ark satser'!$D$4,0)","v":0},null,null,null,{"$f":"'Honorarlønnet 5'!$B$5","v":0}]
[{"$f":"IF(LEN('Honorarlønnet 6'!$A$4)>0,\"Ja\",\"\")","v":""},{"$f":"IF('Honorarlønnet 6'!$E$7=\"Ja\",\"Sender faktura\",+'Honorarlønnet 6'!$B$7)","v":0},null,{"$f":"+'Delkursusleder 1'!$B$23","v":"00:00:00"},2510,{"$f":"+Samlingsark!K13","v":0},null,1,null,null,{"$f":"'Delkursusleder 1'!$B$8","v":"[vælg fra liste]"},null,null,1,{"$f":"+Samlingsark!$D$4","v":"Kursusnummer findes automatisk efter du har indtastet speciale/kursusnavn"},{"$f":"IF(Samlingsark!K13>0.1,'Adm.ark satser'!$D$2,0)","v":0},null,null,null,{"$f":"'Honorarlønnet 6'!$B$5","v":0}]
[{"$f":"IF(LEN('Honorarlønnet 6'!$A$4)>0,\"Ja\",\"\")","v":""},{"$f":"IF('Honorarlønnet 6'!$E$7=\"Ja\",\"Sender faktura\",+'Honorarlønnet 6'!$B$7)","v":0},null,{"$f":"+'Delkursusleder 1'!$B$23","v":"00:00:00"},2510,{"$f":"+Samlingsark!L13","v":0},null,1,null,null,{"$f":"'Delkursusleder 1'!$B$8","v":"[vælg fra liste]"},null,null,1,{"$f":"+Samlingsark!$D$4","v":"Kursusnummer findes automatisk efter du har indtastet speciale/kursusnavn"},{"$f":"IF(Samlingsark!L13>0.1,'Adm.ark satser'!$D$3,0)","v":0},null,null,null,{"$f":"'Honorarlønnet 6'!$B$5","v":0}]
[{"$f":"IF(LEN('Honorarlønnet 6'!$A$4)>0,\"Ja\",\"\")","v":""},{"$f":"IF('Honorarlønnet 6'!$E$7=\"Ja\",\"Sender faktura\",+'Honorarlønnet 6'!$B$7)","v":0},null,{"$f":"+'Delkursusleder 1'!$B$23","v":"00:00:00"},2510,{"$f":"+Samlingsark!M13","v":0},null,1,null,null,{"$f":"'Delkursusleder 1'!$B$8","v":"[vælg fra liste]"},null,null,1,{"$f":"+Samlingsark!$D$4","v":"Kursusnummer findes automatisk efter du har indtastet speciale/kursusnavn"},{"$f":"IF(Samlingsark!M13>0.1,'Adm.ark satser'!$D$4,0)","v":0},null,null,null,{"$f":"'Honorarlønnet 6'!$B$5","v":0}]
[{"$f":"IF(LEN('Honorarlønnet 7'!$A$4)>0,\"Ja\",\"\")","v":""},{"$f":"IF('Honorarlønnet 7'!$E$7=\"Ja\",\"Sender faktura\",+'Honorarlønnet 7'!$B$7)","v":0},null,{"$f":"+'Delkursusleder 1'!$B$23","v":"00:00:00"},2510,{"$f":"+Samlingsark!K14","v":0},null,1,null,null,{"$f":"'Delkursusleder 1'!$B$8","v":"[vælg fra liste]"},null,null,1,{"$f":"+Samlingsark!$D$4","v":"Kursusnummer findes automatisk efter du har indtastet speciale/kursusnavn"},{"$f":"IF(Samlingsark!K14>0.1,'Adm.ark satser'!$D$2,0)","v":0},null,null,null,{"$f":"'Honorarlønnet 7'!$B$5","v":0}]
[{"$f":"IF(LEN('Honorarlønnet 7'!$A$4)>0,\"Ja\",\"\")","v":""},{"$f":"IF('Honorarlønnet 7'!$E$7=\"Ja\",\"Sender faktura\",+'Honorarlønnet 7'!$B$7)","v":0},null,{"$f":"+'Delkursusleder 1'!$B$23","v":"00:00:00"},2510,{"$f":"+Samlingsark!L14","v":0},null,1,null,null,{"$f":"'Delkursusleder 1'!$B$8","v":"[vælg fra liste]"},null,null,1,{"$f":"+Samlingsark!$D$4","v":"Kursusnummer findes automatisk efter du har indtastet speciale/kursusnavn"},{"$f":"IF(Samlingsark!L14>0.1,'Adm.ark satser'!$D$3,0)","v":0},null,null,null,{"$f":"'Honorarlønnet 7'!$B$5","v":0}]
[{"$f":"IF(LEN('Honorarlønnet 7'!$A$4)>0,\"Ja\",\"\")","v":""},{"$f":"IF('Honorarlønnet 7'!$E$7=\"Ja\",\"Sender faktura\",+'Honorarlønnet 7'!$B$7)","v":0},null,{"$f":"+'Delkursusleder 1'!$B$23","v":"00:00:00"},2510,{"$f":"+Samlingsark!M14","v":0},null,1,null,null,{"$f":"'Delkursusleder 1'!$B$8","v":"[vælg fra liste]"},null,null,1,{"$f":"+Samlingsark!$D$4","v":"Kursusnummer findes automatisk efter du har indtastet speciale/kursusnavn"},{"$f":"IF(Samlingsark!M14>0.1,'Adm.ark satser'!$D$4,0)","v":0},null,null,null,{"$f":"'Honorarlønnet 7'!$B$5","v":0}]
[{"$f":"IF(LEN('Honorarlønnet 8'!$A$4)>0,\"Ja\",\"\")","v":""},{"$f":"IF('Honorarlønnet 8'!$E$7=\"Ja\",\"Sender faktura\",+'Honorarlønnet 8'!$B$7)","v":0},null,{"$f":"+'Delkursusleder 1'!$B$23","v":"00:00:00"},2510,{"$f":"+Samlingsark!K15","v":0},null,1,null,null,{"$f":"'Delkursusleder 1'!$B$8","v":"[vælg fra liste]"},null,null,1,{"$f":"+Samlingsark!$D$4","v":"Kursusnummer findes automatisk efter du har indtastet speciale/kursusnavn"},{"$f":"IF(Samlingsark!K15>0.1,'Adm.ark satser'!$D$2,0)","v":0},null,null,null,{"$f":"'Honorarlønnet 8'!$B$5","v":0}]
[{"$f":"IF(LEN('Honorarlønnet 8'!$A$4)>0,\"Ja\",\"\")","v":""},{"$f":"IF('Honorarlønnet 8'!$E$7=\"Ja\",\"Sender faktura\",+'Honorarlønnet 8'!$B$7)","v":0},null,{"$f":"+'Delkursusleder 1'!$B$23","v":"00:00:00"},2510,{"$f":"+Samlingsark!L15","v":0},null,1,null,null,{"$f":"'Delkursusleder 1'!$B$8","v":"[vælg fra liste]"},null,null,1,{"$f":"+Samlingsark!$D$4","v":"Kursusnummer findes automatisk efter du har indtastet speciale/kursusnavn"},{"$f":"IF(Samlingsark!L15>0.1,'Adm.ark satser'!$D$3,0)","v":0},null,null,null,{"$f":"'Honorarlønnet 8'!$B$5","v":0}]
[{"$f":"IF(LEN('Honorarlønnet 8'!$A$4)>0,\"Ja\",\"\")","v":""},{"$f":"IF('Honorarlønnet 8'!$E$7=\"Ja\",\"Sender faktura\",+'Honorarlønnet 8'!$B$7)","v":0},null,{"$f":"+'Delkursusleder 1'!$B$23","v":"00:00:00"},2510,{"$f":"+Samlingsark!M15","v":0},null,1,null,null,{"$f":"'Delkursusleder 1'!$B$8","v":"[vælg fra liste]"},null,null,1,{"$f":"+Samlingsark!$D$4","v":"Kursusnummer findes automatisk efter du har indtastet speciale/kursusnavn"},{"$f":"IF(Samlingsark!M15>0.1,'Adm.ark satser'!$D$4,0)","v":0},null,null,null,{"$f":"'Honorarlønnet 8'!$B$5","v":0}]
[{"$f":"IF(LEN('Honorarlønnet 9'!$A$4)>0,\"Ja\",\"\")","v":""},{"$f":"IF('Honorarlønnet 9'!$E$7=\"Ja\",\"Sender faktura\",+'Honorarlønnet 9'!$B$7)","v":0},null,{"$f":"+'Delkursusleder 1'!$B$23","v":"00:00:00"},2510,{"$f":"+Samlingsark!K16","v":0},null,1,null,null,{"$f":"'Delkursusleder 1'!$B$8","v":"[vælg fra liste]"},null,null,1,{"$f":"+Samlingsark!$D$4","v":"Kursusnummer findes automatisk efter du har indtastet speciale/kursusnavn"},{"$f":"IF(Samlingsark!K16>0.1,'Adm.ark satser'!$D$2,0)","v":0},null,null,null,{"$f":"'Honorarlønnet 9'!$B$5","v":0}]
[{"$f":"IF(LEN('Honorarlønnet 9'!$A$4)>0,\"Ja\",\"\")","v":""},{"$f":"IF('Honorarlønnet 9'!$E$7=\"Ja\",\"Sender faktura\",+'Honorarlønnet 9'!$B$7)","v":0},null,{"$f":"+'Delkursusleder 1'!$B$23","v":"00:00:00"},2510,{"$f":"+Samlingsark!L16","v":0},null,1,null,null,{"$f":"'Delkursusleder 1'!$B$8","v":"[vælg fra liste]"},null,null,1,{"$f":"+Samlingsark!$D$4","v":"Kursusnummer findes automatisk efter du har indtastet speciale/kursusnavn"},{"$f":"IF(Samlingsark!L16>0.1,'Adm.ark satser'!$D$3,0)","v":0},null,null,null,{"$f":"'Honorarlønnet 9'!$B$5","v":0}]
[{"$f":"IF(LEN('Honorarlønnet 9'!$A$4)>0,\"Ja\",\"\")","v":""},{"$f":"IF('Honorarlønnet 9'!$E$7=\"Ja\",\"Sender faktura\",+'Honorarlønnet 9'!$B$7)","v":0},null,{"$f":"+'Delkursusleder 1'!$B$23","v":"00:00:00"},2510,{"$f":"+Samlingsark!M16","v":0},null,1,null,null,{"$f":"'Delkursusleder 1'!$B$8","v":"[vælg fra liste]"},null,null,1,{"$f":"+Samlingsark!$D$4","v":"Kursusnummer findes automatisk efter du har indtastet speciale/kursusnavn"},{"$f":"IF(Samlingsark!M16>0.1,'Adm.ark satser'!$D$4,0)","v":0},null,null,null,{"$f":"'Honorarlønnet 9'!$B$5","v":0}]
[{"$f":"IF(LEN('Honorarlønnet 10'!$A$4)>0,\"Ja\",\"\")","v":""},{"$f":"IF('Honorarlønnet 10'!$E$7=\"Ja\",\"Sender faktura\",+'Honorarlønnet 10'!$B$7)","v":0},null,{"$f":"+'Delkursusleder 1'!$B$23","v":"00:00:00"},2510,{"$f":"+Samlingsark!K17","v":0},null,1,null,null,{"$f":"'Delkursusleder 1'!$B$8","v":"[vælg fra liste]"},null,null,1,{"$f":"+Samlingsark!$D$4","v":"Kursusnummer findes automatisk efter du har indtastet speciale/kursusnavn"},{"$f":"IF(Samlingsark!K17>0.1,'Adm.ark satser'!$D$2,0)","v":0},null,null,null,{"$f":"'Honorarlønnet 10'!$B$5","v":0}]
[{"$f":"IF(LEN('Honorarlønnet 10'!$A$4)>0,\"Ja\",\"\")","v":""},{"$f":"IF('Honorarlønnet 10'!$E$7=\"Ja\",\"Sender faktura\",+'Honorarlønnet 10'!$B$7)","v":0},null,{"$f":"+'Delkursusleder 1'!$B$23","v":"00:00:00"},2510,{"$f":"+Samlingsark!L17","v":0},null,1,null,null,{"$f":"'Delkursusleder 1'!$B$8","v":"[vælg fra liste]"},null,null,1,{"$f":"+Samlingsark!$D$4","v":"Kursusnummer findes automatisk efter du har indtastet speciale/kursusnavn"},{"$f":"IF(Samlingsark!L17>0.1,'Adm.ark satser'!$D$3,0)","v":0},null,null,null,{"$f":"'Honorarlønnet 10'!$B$5","v":0}]
[{"$f":"IF(LEN('Honorarlønnet 10'!$A$4)>0,\"Ja\",\"\")","v":""},{"$f":"IF('Honorarlønnet 10'!$E$7=\"Ja\",\"Sender faktura\",+'Honorarlønnet 10'!$B$7)","v":0},null,{"$f":"+'Delkursusleder 1'!$B$23","v":"00:00:00"},2510,{"$f":"+Samlingsark!M17","v":0},null,1,null,null,{"$f":"'Delkursusleder 1'!$B$8","v":"[vælg fra liste]"},null,null,1,{"$f":"+Samlingsark!$D$4","v":"Kursusnummer findes automatisk efter du har indtastet speciale/kursusnavn"},{"$f":"IF(Samlingsark!M17>0.1,'Adm.ark satser'!$D$4,0)","v":0},null,null,null,{"$f":"'Honorarlønnet 10'!$B$5","v":0}]
[{"$f":"IF(LEN('Honorarlønnet 11'!$A$4)>0,\"Ja\",\"\")","v":""},{"$f":"IF('Honorarlønnet 11'!$E$7=\"Ja\",\"Sender faktura\",+'Honorarlønnet 11'!$B$7)","v":0},null,{"$f":"+'Delkursusleder 1'!$B$23","v":"00:00:00"},2510,{"$f":"+Samlingsark!K18","v":0},null,1,null,null,{"$f":"'Delkursusleder 1'!$B$8","v":"[vælg fra liste]"},null,null,1,{"$f":"+Samlingsark!$D$4","v":"Kursusnummer findes automatisk efter du har indtastet speciale/kursusnavn"},{"$f":"IF(Samlingsark!K18>0.1,'Adm.ark satser'!$D$2,0)","v":0},null,null,null,{"$f":"'Honorarlønnet 11'!$B$5","v":0}]
[{"$f":"IF(LEN('Honorarlønnet 11'!$A$4)>0,\"Ja\",\"\")","v":""},{"$f":"IF('Honorarlønnet 11'!$E$7=\"Ja\",\"Sender faktura\",+'Honorarlønnet 11'!$B$7)","v":0},null,{"$f":"+'Delkursusleder 1'!$B$23","v":"00:00:00"},2510,{"$f":"+Samlingsark!L18","v":0},null,1,null,null,{"$f":"'Delkursusleder 1'!$B$8","v":"[vælg fra liste]"},null,null,1,{"$f":"+Samlingsark!$D$4","v":"Kursusnummer findes automatisk efter du har indtastet speciale/kursusnavn"},{"$f":"IF(Samlingsark!L18>0.1,'Adm.ark satser'!$D$3,0)","v":0},null,null,null,{"$f":"'Honorarlønnet 11'!$B$5","v":0}]
[{"$f":"IF(LEN('Honorarlønnet 11'!$A$4)>0,\"Ja\",\"\")","v":""},{"$f":"IF('Honorarlønnet 11'!$E$7=\"Ja\",\"Sender faktura\",+'Honorarlønnet 11'!$B$7)","v":0},null,{"$f":"+'Delkursusleder 1'!$B$23","v":"00:00:00"},2510,{"$f":"+Samlingsark!M18","v":0},null,1,null,null,{"$f":"'Delkursusleder 1'!$B$8","v":"[vælg fra liste]"},null,null,1,{"$f":"+Samlingsark!$D$4","v":"Kursusnummer findes automatisk efter du har indtastet speciale/kursusnavn"},{"$f":"IF(Samlingsark!M18>0.1,'Adm.ark satser'!$D$4,0)","v":0},null,null,null,{"$f":"'Honorarlønnet 11'!$B$5","v":0}]
[{"$f":"IF(LEN('Honorarlønnet 12'!$A$4)>0,\"Ja\",\"\")","v":""},{"$f":"IF('Honorarlønnet 12'!$E$7=\"Ja\",\"Sender faktura\",+'Honorarlønnet 12'!$B$7)","v":0},null,{"$f":"+'Delkursusleder 1'!$B$23","v":"00:00:00"},2510,{"$f":"+Samlingsark!K19","v":0},null,1,null,null,{"$f":"'Delkursusleder 1'!$B$8","v":"[vælg fra liste]"},null,null,1,{"$f":"+Samlingsark!$D$4","v":"Kursusnummer findes automatisk efter du har indtastet speciale/kursusnavn"},{"$f":"IF(Samlingsark!K19>0.1,'Adm.ark satser'!$D$2,0)","v":0},null,null,null,{"$f":"'Honorarlønnet 12'!$B$5","v":0}]
[{"$f":"IF(LEN('Honorarlønnet 12'!$A$4)>0,\"Ja\",\"\")","v":""},{"$f":"IF('Honorarlønnet 12'!$E$7=\"Ja\",\"Sender faktura\",+'Honorarlønnet 12'!$B$7)","v":0},null,{"$f":"+'Delkursusleder 1'!$B$23","v":"00:00:00"},2510,{"$f":"+Samlingsark!L19","v":0},null,1,null,null,{"$f":"'Delkursusleder 1'!$B$8","v":"[vælg fra liste]"},null,null,1,{"$f":"+Samlingsark!$D$4","v":"Kursusnummer findes automatisk efter du har indtastet speciale/kursusnavn"},{"$f":"IF(Samlingsark!L19>0.1,'Adm.ark satser'!$D$3,0)","v":0},null,null,null,{"$f":"'Honorarlønnet 12'!$B$5","v":0}]
[{"$f":"IF(LEN('Honorarlønnet 12'!$A$4)>0,\"Ja\",\"\")","v":""},{"$f":"IF('Honorarlønnet 12'!$E$7=\"Ja\",\"Sender faktura\",+'Honorarlønnet 12'!$B$7)","v":0},null,{"$f":"+'Delkursusleder 1'!$B$23","v":"00:00:00"},2510,{"$f":"+Samlingsark!M19","v":0},null,1,null,null,{"$f":"'Delkursusleder 1'!$B$8","v":"[vælg fra liste]"},null,null,1,{"$f":"+Samlingsark!$D$4","v":"Kursusnummer findes automatisk efter du har indtastet speciale/kursusnavn"},{"$f":"IF(Samlingsark!M19>0.1,'Adm.ark satser'!$D$4,0)","v":0},null,null,null,{"$f":"'Honorarlønnet 12'!$B$5","v":0}]
[{"$f":"IF(LEN('Honorarlønnet 13'!$A$4)>0,\"Ja\",\"\")","v":""},{"$f":"IF('Honorarlønnet 13'!$E$7=\"Ja\",\"Sender faktura\",+'Honorarlønnet 13'!$B$7)","v":0},null,{"$f":"+'Delkursusleder 1'!$B$23","v":"00:00:00"},2510,{"$f":"+Samlingsark!K20","v":0},null,1,null,null,{"$f":"'Delkursusleder 1'!$B$8","v":"[vælg fra liste]"},null,null,1,{"$f":"+Samlingsark!$D$4","v":"Kursusnummer findes automatisk efter du har indtastet speciale/kursusnavn"},{"$f":"IF(Samlingsark!K20>0.1,'Adm.ark satser'!$D$2,0)","v":0},null,null,null,{"$f":"'Honorarlønnet 13'!$B$5","v":0}]
[{"$f":"IF(LEN('Honorarlønnet 13'!$A$4)>0,\"Ja\",\"\")","v":""},{"$f":"IF('Honorarlønnet 13'!$E$7=\"Ja\",\"Sender faktura\",+'Honorarlønnet 13'!$B$7)","v":0},null,{"$f":"+'Delkursusleder 1'!$B$23","v":"00:00:00"},2510,{"$f":"+Samlingsark!L20","v":0},null,1,null,null,{"$f":"'Delkursusleder 1'!$B$8","v":"[vælg fra liste]"},null,null,1,{"$f":"+Samlingsark!$D$4","v":"Kursusnummer findes automatisk efter du har indtastet speciale/kursusnavn"},{"$f":"IF(Samlingsark!L20>0.1,'Adm.ark satser'!$D$3,0)","v":0},null,null,null,{"$f":"'Honorarlønnet 13'!$B$5","v":0}]
[{"$f":"IF(LEN('Honorarlønnet 13'!$A$4)>0,\"Ja\",\"\")","v":""},{"$f":"IF('Honorarlønnet 13'!$E$7=\"Ja\",\"Sender faktura\",+'Honorarlønnet 13'!$B$7)","v":0},null,{"$f":"+'Delkursusleder 1'!$B$23","v":"00:00:00"},2510,{"$f":"+Samlingsark!M20","v":0},null,1,null,null,{"$f":"'Delkursusleder 1'!$B$8","v":"[vælg fra liste]"},null,null,1,{"$f":"+Samlingsark!$D$4","v":"Kursusnummer findes automatisk efter du har indtastet speciale/kursusnavn"},{"$f":"IF(Samlingsark!M20>0.1,'Adm.ark satser'!$D$4,0)","v":0},null,null,null,{"$f":"'Honorarlønnet 13'!$B$5","v":0}]
[{"$f":"IF(LEN('Honorarlønnet 14'!$A$4)>0,\"Ja\",\"\")","v":""},{"$f":"IF('Honorarlønnet 14'!$E$7=\"Ja\",\"Sender faktura\",+'Honorarlønnet 14'!$B$7)","v":0},null,{"$f":"+'Delkursusleder 1'!$B$23","v":"00:00:00"},2510,{"$f":"+Samlingsark!K21","v":0},null,1,null,null,{"$f":"'Delkursusleder 1'!$B$8","v":"[vælg fra liste]"},null,null,1,{"$f":"+Samlingsark!$D$4","v":"Kursusnummer findes automatisk efter du har indtastet speciale/kursusnavn"},{"$f":"IF(Samlingsark!K21>0.1,'Adm.ark satser'!$D$2,0)","v":0},null,null,null,{"$f":"'Honorarlønnet 14'!$B$5","v":0}]
[{"$f":"IF(LEN('Honorarlønnet 14'!$A$4)>0,\"Ja\",\"\")","v":""},{"$f":"IF('Honorarlønnet 14'!$E$7=\"Ja\",\"Sender faktura\",+'Honorarlønnet 14'!$B$7)","v":0},null,{"$f":"+'Delkursusleder 1'!$B$23","v":"00:00:00"},2510,{"$f":"+Samlingsark!L21","v":0},null,1,null,null,{"$f":"'Delkursusleder 1'!$B$8","v":"[vælg fra liste]"},null,null,1,{"$f":"+Samlingsark!$D$4","v":"Kursusnummer findes automatisk efter du har indtastet speciale/kursusnavn"},{"$f":"IF(Samlingsark!L21>0.1,'Adm.ark satser'!$D$3,0)","v":0},null,null,null,{"$f":"'Honorarlønnet 14'!$B$5","v":0}]
[{"$f":"IF(LEN('Honorarlønnet 14'!$A$4)>0,\"Ja\",\"\")","v":""},{"$f":"IF('Honorarlønnet 14'!$E$7=\"Ja\",\"Sender faktura\",+'Honorarlønnet 14'!$B$7)","v":0},null,{"$f":"+'Delkursusleder 1'!$B$23","v":"00:00:00"},2510,{"$f":"+Samlingsark!M21","v":0},null,1,null,null,{"$f":"'Delkursusleder 1'!$B$8","v":"[vælg fra liste]"},null,null,1,{"$f":"+Samlingsark!$D$4","v":"Kursusnummer findes automatisk efter du har indtastet speciale/kursusnavn"},{"$f":"IF(Samlingsark!M21>0.1,'Adm.ark satser'!$D$4,0)","v":0},null,null,null,{"$f":"'Honorarlønnet 14'!$B$5","v":0}]
[{"$f":"IF(LEN('Honorarlønnet 15'!$A$4)>0,\"Ja\",\"\")","v":""},{"$f":"IF('Honorarlønnet 15'!$E$7=\"Ja\",\"Sender faktura\",+'Honorarlønnet 15'!$B$7)","v":0},null,{"$f":"+'Delkursusleder 1'!$B$23","v":"00:00:00"},2510,{"$f":"+Samlingsark!K22","v":0},null,1,null,null,{"$f":"'Delkursusleder 1'!$B$8","v":"[vælg fra liste]"},null,null,1,{"$f":"+Samlingsark!$D$4","v":"Kursusnummer findes automatisk efter du har indtastet speciale/kursusnavn"},{"$f":"IF(Samlingsark!K22>0.1,'Adm.ark satser'!$D$2,0)","v":0},null,null,null,{"$f":"'Honorarlønnet 15'!$B$5","v":0}]
[{"$f":"IF(LEN('Honorarlønnet 15'!$A$4)>0,\"Ja\",\"\")","v":""},{"$f":"IF('Honorarlønnet 15'!$E$7=\"Ja\",\"Sender faktura\",+'Honorarlønnet 15'!$B$7)","v":0},null,{"$f":"+'Delkursusleder 1'!$B$23","v":"00:00:00"},2510,{"$f":"+Samlingsark!L22","v":0},null,1,null,null,{"$f":"'Delkursusleder 1'!$B$8","v":"[vælg fra liste]"},null,null,1,{"$f":"+Samlingsark!$D$4","v":"Kursusnummer findes automatisk efter du har indtastet speciale/kursusnavn"},{"$f":"IF(Samlingsark!L22>0.1,'Adm.ark satser'!$D$3,0)","v":0},null,null,null,{"$f":"'Honorarlønnet 15'!$B$5","v":0}]
[{"$f":"IF(LEN('Honorarlønnet 15'!$A$4)>0,\"Ja\",\"\")","v":""},{"$f":"IF('Honorarlønnet 15'!$E$7=\"Ja\",\"Sender faktura\",+'Honorarlønnet 15'!$B$7)","v":0},null,{"$f":"+'Delkursusleder 1'!$B$23","v":"00:00:00"},2510,{"$f":"+Samlingsark!M22","v":0},null,1,null,null,{"$f":"'Delkursusleder 1'!$B$8","v":"[vælg fra liste]"},null,null,1,{"$f":"+Samlingsark!$D$4","v":"Kursusnummer findes automatisk efter du har indtastet speciale/kursusnavn"},{"$f":"IF(Samlingsark!M22>0.1,'Adm.ark satser'!$D$4,0)","v":0},null,null,null,{"$f":"'Honorarlønnet 15'!$B$5","v":0}]

{"sheet":"Adm.ark satser","index":26,"n_rows":8,"n_cols":13,"rows_kept":8,"cut":false,"hidden":false,"merged":[[0,0,0,1]]}
["Satser (marts 12-niv.)",null,"Satser (aktuelt niv.) ","Udgiftstype",null,"Regulerings-procent","2024-04-01",null,"Satser okt. '97 niv.",null,"Max beløb til deling sekretær og hovedkursusleder",null,"Sender faktura"]
["Forelæsningstimer",1570.98,{"$f":"+B2*$G$2","v":1929.26869566},1,null,null,1.228067,null,1198.6199999999999,null,{"$f":"+C6","v":9000},null,"Ja"]
["Diskussionstimer",392.74,{"$f":"+B3*$G$2","v":482.31103358000001},2,null,null,null,null,299.64999999999998,null,null,null,"Nej"]
["Medhjælpertimer",259.89999999999998,319.17461329999998,3,null,null,null,null,197.78]
["Delkursuslederhonorar",8000,{"$f":"+B5","v":8000},4,null,null,null,null,8000,"*Bemærk fast beløb, reguleres ikke"]
["Administrationshonorar",9000,{"$f":"+B6","v":9000},5,null,null,null,null,9000,"*Bemærk fast beløb, reguleres ikke"]
["Hovedkursusledertime",275.92,{"$f":"+B7*$G$2","v":338.84824664000001},5,null,null,null,null,"Ukendt"]
["Sekretærtimer",160.80000000000001,{"$f":"+B8*$G$2","v":197.47317360000002},5,null,null,null,null,"Ukendt"]